{"text_format":"1","workbook":"xlsx","n_sheets":13,"sheets":["Makró1","Azonosítás","Nyilatkozat","Partnerek","Ki- és beutazó hallgatók","Ki- és beutazó okt, személyzet","Pénzügyi elszámolás","Pályázói adatok","Segédadatok","Segédadatok2","ráták","Erasmus_kodok","Munka1"],"not_rendered":{"charts":0,"images":0,"macros":0,"external_links":0,"defined_names":108,"comments":6,"pivot_tables":0},"unopened":[],"bounds":{"document_bytes":16777216,"sheet_cells":100000,"rows_first":2000,"rows_last":500,"rows_between":2000,"halvings":0,"cell_chars":16384,"cell_head_chars":4096},"cells_cut":0,"cells_raw":0,"read":"whole","date_system":"1900"}

{"sheet":"Makró1","index":0,"n_rows":0,"n_cols":0,"rows_kept":0,"cut":false,"hidden":true,"merged":[]}

{"sheet":"Azonosítás","index":1,"n_rows":37,"n_cols":3,"rows_kept":37,"cut":false,"hidden":false,"merged":[[36,0,36,2],[5,0,5,2],[11,0,11,2],[34,0,34,2],[2,0,2,2],[3,0,3,2],[7,0,7,2],[8,0,8,2],[10,0,10,2],[6,0,6,2],[4,0,4,2],[35,0,35,2],[31,0,31,2],[32,0,32,2],[33,0,33,2]]}
[]
[null,"Beszámoló típusa:","Verzió: 2.0"]
[]
[]
["Szerződésszám:"]
[]
[]
[{"$f":"IF(A9=\"\",\"\",\"Intézmény neve:\")","v":""}]
[{"$f":"IFERROR(INDEX('Pályázói adatok'!A2:C10,MATCH($A$6,'Pályázói adatok'!A2:A10),3),\"\")","v":""}]
[]
[{"$f":"IF(Erasmus_kod=\"\",\"\",\"Erasmus kód\")","v":""}]
[{"$f":"IFERROR(INDEX(Alapadatok,MATCH($A$6,Szerzodesszam),2),\"\")","v":""}]
[]
[]
[]
[]
[]
[]
[]
[]
[]
[]
[]
[]
[]
[]
[]
[]
[]
[]
[]
["Benyújtási határidő : 2014. április 30."]
[]
["Benyújtási határidő : 2014. október 30."]
["Erasmus évközi beszámoló 2013/2014"]
["Erasmus módosított évközi beszámoló 2013/2014"]
["Erasmus éves beszámoló 2013/2014"]

{"sheet":"Nyilatkozat","index":2,"n_rows":28,"n_cols":6,"rows_kept":28,"cut":false,"hidden":false,"merged":[[27,5,27,7],[17,0,18,7],[14,0,16,7],[22,4,22,6],[1,0,1,7],[3,0,3,7],[5,0,7,7],[9,0,12,7],[21,4,21,6],[25,4,25,6]]}
[]
["Nyilatkozat"]
[]
[]
[]
["Alulírott, mint a pályázó intézmény hivatalos képviselője aláírásommal igazolom, hogy a beszámolóban megadott adatok – legjobb tudomásom és ismereteim szerint – valósak és helytállók, a mobilitásban részt vevőkkel a szükséges szerződéseket minden esetben megkötöttük."]
[]
[]
[]
["Aláírásommal hozzájárulok, hogy a Tempus Közalapítvány a beszámolóban megadott adatokat kizárólag a beszámoló feldolgozása  érdekében kezelje, feldolgozza és azokat legalább 5 évig megőrizze. Hozzájárulok ahhoz, hogy az adatok feldolgozását követően az intézmény e beszámolóban feltüntetett főbb adatait a Tempus Közalapítvány nyilvánosságra hozza. "]
[]
[]
[]
[]
["Aláírásommal igazolom, hogy EGT mobilitásokat csak érvényes kétoldalú megállapodás birtokában hajtunk végre."]
[]
[]
[]
[]
["Kelt:"]
[]
["Név:",null,null,null,"Aláírás"]
["Beosztás:"]
[]
[]
["Név:",null,null,null,"Ellenjegyző aláírás (ha szükséges)"]
["Beosztás:"]
[null,null,null,null,null,"PH."]

{"sheet":"Partnerek","index":3,"n_rows":108,"n_cols":17,"rows_kept":108,"cut":false,"hidden":false,"merged":[[2,3,2,4],[3,3,3,4]]}
[]
[null,null,"Intézményi partnerek"]
[]
[null,null,null,"EGT koordinátor aláírása"]
[null,null,"Intézmény neve:",{"$f":"IFERROR(IF(Azonosítás!$A$9=\"\",\"\",Azonosítás!$A$9),\"\")","v":""}]
[null,null,"Szerződésszám:",{"$f":"IFERROR(Azonosítás!$A$6,\"\")","v":0},{"$f":"TODAY()","v":"2017-01-06"}]
[]
["Partnerazonosító","Partner Erasmus-kódja","Partner hivatalos neve (eredeti neve)","Partner angol neve","Intézmény típusa","Tevékenység jellege","Jogi státusz","Gazdasági\nágazat","Irányító-\nszám","Város","Ország","NUTS kód","Adószám","Kétoldalú egyezmény létrejötte (ÉÉÉÉ/HH/NN)","Partner kontaktszemély neve","Partnerszemély telefonszáma","Partner kontaktszemély e-mailcíme"]
[{"$f":"IF(Azonosítás!A9=\"\",\"\",Azonosítás!$A$9)","v":""},null,{"$f":"IF(Azonosítás!$A$9=\"\",\"\",Azonosítás!$A$9)","v":""},null,null,null,null,null,null,null,{"$f":"IF(A9<>\"\",\"HU\",\"\")","v":""},null,null,{"$f":"IF(C9<>\"\",\"---\",\"\")","v":""},null,null,{"$f":"IFERROR(IF(B9<>\"\",VLOOKUP(B9,'Pályázói adatok'!B:BD,52,FALSE),\"\"),\"\")","v":""}]
[]
[null,null,null,null,null,null,null,null,null,{"$f":"IFERROR(VLOOKUP(B11,Erasmus_kodok!C$1:F$64,4,FALSE),\"\")","v":""},{"$f":"IFERROR(VLOOKUP(B11,Erasmus_kodok!C$1:F$64,3,FALSE),\"\")","v":""}]
[null,null,null,null,null,null,null,null,null,{"$f":"IFERROR(VLOOKUP(B12,Erasmus_kodok!C$1:F$64,4,FALSE),\"\")","v":""},{"$f":"IFERROR(VLOOKUP(B12,Erasmus_kodok!C$1:F$64,3,FALSE),\"\")","v":""}]
[null,null,null,null,null,null,null,null,null,{"$f":"IFERROR(VLOOKUP(B13,Erasmus_kodok!C$1:F$64,4,FALSE),\"\")","v":""},{"$f":"IFERROR(VLOOKUP(B13,Erasmus_kodok!C$1:F$64,3,FALSE),\"\")","v":""}]
[null,null,null,null,null,null,null,null,null,{"$f":"IFERROR(VLOOKUP(B14,Erasmus_kodok!C$1:F$64,4,FALSE),\"\")","v":""},{"$f":"IFERROR(VLOOKUP(B14,Erasmus_kodok!C$1:F$64,3,FALSE),\"\")","v":""}]
[null,null,null,null,null,null,null,null,null,{"$f":"IFERROR(VLOOKUP(B15,Erasmus_kodok!C$1:F$64,4,FALSE),\"\")","v":""},{"$f":"IFERROR(VLOOKUP(B15,Erasmus_kodok!C$1:F$64,3,FALSE),\"\")","v":""}]
[null,null,null,null,null,null,null,null,null,{"$f":"IFERROR(VLOOKUP(B16,Erasmus_kodok!C$1:F$64,4,FALSE),\"\")","v":""},{"$f":"IFERROR(VLOOKUP(B16,Erasmus_kodok!C$1:F$64,3,FALSE),\"\")","v":""}]
[null,null,null,null,null,null,null,null,null,{"$f":"IFERROR(VLOOKUP(B17,Erasmus_kodok!C$1:F$64,4,FALSE),\"\")","v":""},{"$f":"IFERROR(VLOOKUP(B17,Erasmus_kodok!C$1:F$64,3,FALSE),\"\")","v":""}]
[null,null,null,null,null,null,null,null,null,{"$f":"IFERROR(VLOOKUP(B18,Erasmus_kodok!C$1:F$64,4,FALSE),\"\")","v":""},{"$f":"IFERROR(VLOOKUP(B18,Erasmus_kodok!C$1:F$64,3,FALSE),\"\")","v":""}]
[null,null,null,null,null,null,null,null,null,{"$f":"IFERROR(VLOOKUP(B19,Erasmus_kodok!C$1:F$64,4,FALSE),\"\")","v":""},{"$f":"IFERROR(VLOOKUP(B19,Erasmus_kodok!C$1:F$64,3,FALSE),\"\")","v":""}]
[null,null,null,null,null,null,null,null,null,{"$f":"IFERROR(VLOOKUP(B20,Erasmus_kodok!C$1:F$64,4,FALSE),\"\")","v":""},{"$f":"IFERROR(VLOOKUP(B20,Erasmus_kodok!C$1:F$64,3,FALSE),\"\")","v":""}]
[null,null,null,null,null,null,null,null,null,{"$f":"IFERROR(VLOOKUP(B21,Erasmus_kodok!C$1:F$64,4,FALSE),\"\")","v":""},{"$f":"IFERROR(VLOOKUP(B21,Erasmus_kodok!C$1:F$64,3,FALSE),\"\")","v":""}]
[null,null,null,null,null,null,null,null,null,{"$f":"IFERROR(VLOOKUP(B22,Erasmus_kodok!C$1:F$64,4,FALSE),\"\")","v":""},{"$f":"IFERROR(VLOOKUP(B22,Erasmus_kodok!C$1:F$64,3,FALSE),\"\")","v":""}]
[null,null,null,null,null,null,null,null,null,{"$f":"IFERROR(VLOOKUP(B23,Erasmus_kodok!C$1:F$64,4,FALSE),\"\")","v":""},{"$f":"IFERROR(VLOOKUP(B23,Erasmus_kodok!C$1:F$64,3,FALSE),\"\")","v":""}]
[null,null,null,null,null,null,null,null,null,{"$f":"IFERROR(VLOOKUP(B24,Erasmus_kodok!C$1:F$64,4,FALSE),\"\")","v":""},{"$f":"IFERROR(VLOOKUP(B24,Erasmus_kodok!C$1:F$64,3,FALSE),\"\")","v":""}]
[null,null,null,null,null,null,null,null,null,{"$f":"IFERROR(VLOOKUP(B25,Erasmus_kodok!C$1:F$64,4,FALSE),\"\")","v":""},{"$f":"IFERROR(VLOOKUP(B25,Erasmus_kodok!C$1:F$64,3,FALSE),\"\")","v":""}]
[null,null,null,null,null,null,null,null,null,{"$f":"IFERROR(VLOOKUP(B26,Erasmus_kodok!C$1:F$64,4,FALSE),\"\")","v":""},{"$f":"IFERROR(VLOOKUP(B26,Erasmus_kodok!C$1:F$64,3,FALSE),\"\")","v":""}]
[null,null,null,null,null,null,null,null,null,{"$f":"IFERROR(VLOOKUP(B27,Erasmus_kodok!C$1:F$64,4,FALSE),\"\")","v":""},{"$f":"IFERROR(VLOOKUP(B27,Erasmus_kodok!C$1:F$64,3,FALSE),\"\")","v":""}]
[null,null,null,null,null,null,null,null,null,{"$f":"IFERROR(VLOOKUP(B28,Erasmus_kodok!C$1:F$64,4,FALSE),\"\")","v":""},{"$f":"IFERROR(VLOOKUP(B28,Erasmus_kodok!C$1:F$64,3,FALSE),\"\")","v":""}]
[null,null,null,null,null,null,null,null,null,{"$f":"IFERROR(VLOOKUP(B29,Erasmus_kodok!C$1:F$64,4,FALSE),\"\")","v":""},{"$f":"IFERROR(VLOOKUP(B29,Erasmus_kodok!C$1:F$64,3,FALSE),\"\")","v":""}]
[null,null,null,null,null,null,null,null,null,{"$f":"IFERROR(VLOOKUP(B30,Erasmus_kodok!C$1:F$64,4,FALSE),\"\")","v":""},{"$f":"IFERROR(VLOOKUP(B30,Erasmus_kodok!C$1:F$64,3,FALSE),\"\")","v":""}]
[null,null,null,null,null,null,null,null,null,{"$f":"IFERROR(VLOOKUP(B31,Erasmus_kodok!C$1:F$64,4,FALSE),\"\")","v":""},{"$f":"IFERROR(VLOOKUP(B31,Erasmus_kodok!C$1:F$64,3,FALSE),\"\")","v":""}]
[null,null,null,null,null,null,null,null,null,{"$f":"IFERROR(VLOOKUP(B32,Erasmus_kodok!C$1:F$64,4,FALSE),\"\")","v":""},{"$f":"IFERROR(VLOOKUP(B32,Erasmus_kodok!C$1:F$64,3,FALSE),\"\")","v":""}]
[null,null,null,null,null,null,null,null,null,{"$f":"IFERROR(VLOOKUP(B33,Erasmus_kodok!C$1:F$64,4,FALSE),\"\")","v":""},{"$f":"IFERROR(VLOOKUP(B33,Erasmus_kodok!C$1:F$64,3,FALSE),\"\")","v":""}]
[null,null,null,null,null,null,null,null,null,{"$f":"IFERROR(VLOOKUP(B34,Erasmus_kodok!C$1:F$64,4,FALSE),\"\")","v":""},{"$f":"IFERROR(VLOOKUP(B34,Erasmus_kodok!C$1:F$64,3,FALSE),\"\")","v":""}]
[null,null,null,null,null,null,null,null,null,{"$f":"IFERROR(VLOOKUP(B35,Erasmus_kodok!C$1:F$64,4,FALSE),\"\")","v":""},{"$f":"IFERROR(VLOOKUP(B35,Erasmus_kodok!C$1:F$64,3,FALSE),\"\")","v":""}]
[null,null,null,null,null,null,null,null,null,{"$f":"IFERROR(VLOOKUP(B36,Erasmus_kodok!C$1:F$64,4,FALSE),\"\")","v":""},{"$f":"IFERROR(VLOOKUP(B36,Erasmus_kodok!C$1:F$64,3,FALSE),\"\")","v":""}]
[null,null,null,null,null,null,null,null,null,{"$f":"IFERROR(VLOOKUP(B37,Erasmus_kodok!C$1:F$64,4,FALSE),\"\")","v":""},{"$f":"IFERROR(VLOOKUP(B37,Erasmus_kodok!C$1:F$64,3,FALSE),\"\")","v":""}]
[null,null,null,null,null,null,null,null,null,{"$f":"IFERROR(VLOOKUP(B38,Erasmus_kodok!C$1:F$64,4,FALSE),\"\")","v":""},{"$f":"IFERROR(VLOOKUP(B38,Erasmus_kodok!C$1:F$64,3,FALSE),\"\")","v":""}]
[null,null,null,null,null,null,null,null,null,{"$f":"IFERROR(VLOOKUP(B39,Erasmus_kodok!C$1:F$64,4,FALSE),\"\")","v":""},{"$f":"IFERROR(VLOOKUP(B39,Erasmus_kodok!C$1:F$64,3,FALSE),\"\")","v":""}]
[null,null,null,null,null,null,null,null,null,{"$f":"IFERROR(VLOOKUP(B40,Erasmus_kodok!C$1:F$64,4,FALSE),\"\")","v":""},{"$f":"IFERROR(VLOOKUP(B40,Erasmus_kodok!C$1:F$64,3,FALSE),\"\")","v":""}]
[null,null,null,null,null,null,null,null,null,{"$f":"IFERROR(VLOOKUP(B41,Erasmus_kodok!C$1:F$64,4,FALSE),\"\")","v":""},{"$f":"IFERROR(VLOOKUP(B41,Erasmus_kodok!C$1:F$64,3,FALSE),\"\")","v":""}]
[null,null,null,null,null,null,null,null,null,{"$f":"IFERROR(VLOOKUP(B42,Erasmus_kodok!C$1:F$64,4,FALSE),\"\")","v":""},{"$f":"IFERROR(VLOOKUP(B42,Erasmus_kodok!C$1:F$64,3,FALSE),\"\")","v":""}]
[null,null,null,null,null,null,null,null,null,{"$f":"IFERROR(VLOOKUP(B43,Erasmus_kodok!C$1:F$64,4,FALSE),\"\")","v":""},{"$f":"IFERROR(VLOOKUP(B43,Erasmus_kodok!C$1:F$64,3,FALSE),\"\")","v":""}]
[null,null,null,null,null,null,null,null,null,{"$f":"IFERROR(VLOOKUP(B44,Erasmus_kodok!C$1:F$64,4,FALSE),\"\")","v":""},{"$f":"IFERROR(VLOOKUP(B44,Erasmus_kodok!C$1:F$64,3,FALSE),\"\")","v":""}]
[null,null,null,null,null,null,null,null,null,{"$f":"IFERROR(VLOOKUP(B45,Erasmus_kodok!C$1:F$64,4,FALSE),\"\")","v":""},{"$f":"IFERROR(VLOOKUP(B45,Erasmus_kodok!C$1:F$64,3,FALSE),\"\")","v":""}]
[null,null,null,null,null,null,null,null,null,{"$f":"IFERROR(VLOOKUP(B46,Erasmus_kodok!C$1:F$64,4,FALSE),\"\")","v":""},{"$f":"IFERROR(VLOOKUP(B46,Erasmus_kodok!C$1:F$64,3,FALSE),\"\")","v":""}]
[null,null,null,null,null,null,null,null,null,{"$f":"IFERROR(VLOOKUP(B47,Erasmus_kodok!C$1:F$64,4,FALSE),\"\")","v":""},{"$f":"IFERROR(VLOOKUP(B47,Erasmus_kodok!C$1:F$64,3,FALSE),\"\")","v":""}]
[null,null,null,null,null,null,null,null,null,{"$f":"IFERROR(VLOOKUP(B48,Erasmus_kodok!C$1:F$64,4,FALSE),\"\")","v":""},{"$f":"IFERROR(VLOOKUP(B48,Erasmus_kodok!C$1:F$64,3,FALSE),\"\")","v":""}]
[null,null,null,null,null,null,null,null,null,{"$f":"IFERROR(VLOOKUP(B49,Erasmus_kodok!C$1:F$64,4,FALSE),\"\")","v":""},{"$f":"IFERROR(VLOOKUP(B49,Erasmus_kodok!C$1:F$64,3,FALSE),\"\")","v":""}]
[null,null,null,null,null,null,null,null,null,{"$f":"IFERROR(VLOOKUP(B50,Erasmus_kodok!C$1:F$64,4,FALSE),\"\")","v":""},{"$f":"IFERROR(VLOOKUP(B50,Erasmus_kodok!C$1:F$64,3,FALSE),\"\")","v":""}]
[null,null,null,null,null,null,null,null,null,{"$f":"IFERROR(VLOOKUP(B51,Erasmus_kodok!C$1:F$64,4,FALSE),\"\")","v":""},{"$f":"IFERROR(VLOOKUP(B51,Erasmus_kodok!C$1:F$64,3,FALSE),\"\")","v":""}]
[null,null,null,null,null,null,null,null,null,{"$f":"IFERROR(VLOOKUP(B52,Erasmus_kodok!C$1:F$64,4,FALSE),\"\")","v":""},{"$f":"IFERROR(VLOOKUP(B52,Erasmus_kodok!C$1:F$64,3,FALSE),\"\")","v":""}]
[null,null,null,null,null,null,null,null,null,{"$f":"IFERROR(VLOOKUP(B53,Erasmus_kodok!C$1:F$64,4,FALSE),\"\")","v":""},{"$f":"IFERROR(VLOOKUP(B53,Erasmus_kodok!C$1:F$64,3,FALSE),\"\")","v":""}]
[null,null,null,null,null,null,null,null,null,{"$f":"IFERROR(VLOOKUP(B54,Erasmus_kodok!C$1:F$64,4,FALSE),\"\")","v":""},{"$f":"IFERROR(VLOOKUP(B54,Erasmus_kodok!C$1:F$64,3,FALSE),\"\")","v":""}]
[null,null,null,null,null,null,null,null,null,{"$f":"IFERROR(VLOOKUP(B55,Erasmus_kodok!C$1:F$64,4,FALSE),\"\")","v":""},{"$f":"IFERROR(VLOOKUP(B55,Erasmus_kodok!C$1:F$64,3,FALSE),\"\")","v":""}]
[null,null,null,null,null,null,null,null,null,{"$f":"IFERROR(VLOOKUP(B56,Erasmus_kodok!C$1:F$64,4,FALSE),\"\")","v":""},{"$f":"IFERROR(VLOOKUP(B56,Erasmus_kodok!C$1:F$64,3,FALSE),\"\")","v":""}]
[null,null,null,null,null,null,null,null,null,{"$f":"IFERROR(VLOOKUP(B57,Erasmus_kodok!C$1:F$64,4,FALSE),\"\")","v":""},{"$f":"IFERROR(VLOOKUP(B57,Erasmus_kodok!C$1:F$64,3,FALSE),\"\")","v":""}]
[null,null,null,null,null,null,null,null,null,{"$f":"IFERROR(VLOOKUP(B58,Erasmus_kodok!C$1:F$64,4,FALSE),\"\")","v":""},{"$f":"IFERROR(VLOOKUP(B58,Erasmus_kodok!C$1:F$64,3,FALSE),\"\")","v":""}]
[null,null,null,null,null,null,null,null,null,{"$f":"IFERROR(VLOOKUP(B59,Erasmus_kodok!C$1:F$64,4,FALSE),\"\")","v":""},{"$f":"IFERROR(VLOOKUP(B59,Erasmus_kodok!C$1:F$64,3,FALSE),\"\")","v":""}]
[null,null,null,null,null,null,null,null,null,{"$f":"IFERROR(VLOOKUP(B60,Erasmus_kodok!C$1:F$64,4,FALSE),\"\")","v":""},{"$f":"IFERROR(VLOOKUP(B60,Erasmus_kodok!C$1:F$64,3,FALSE),\"\")","v":""}]
[null,null,null,null,null,null,null,null,null,{"$f":"IFERROR(VLOOKUP(B61,Erasmus_kodok!C$1:F$64,4,FALSE),\"\")","v":""},{"$f":"IFERROR(VLOOKUP(B61,Erasmus_kodok!C$1:F$64,3,FALSE),\"\")","v":""}]
[null,null,null,null,null,null,null,null,null,{"$f":"IFERROR(VLOOKUP(B62,Erasmus_kodok!C$1:F$64,4,FALSE),\"\")","v":""},{"$f":"IFERROR(VLOOKUP(B62,Erasmus_kodok!C$1:F$64,3,FALSE),\"\")","v":""}]
[null,null,null,null,null,null,null,null,null,{"$f":"IFERROR(VLOOKUP(B63,Erasmus_kodok!C$1:F$64,4,FALSE),\"\")","v":""},{"$f":"IFERROR(VLOOKUP(B63,Erasmus_kodok!C$1:F$64,3,FALSE),\"\")","v":""}]
[null,null,null,null,null,null,null,null,null,{"$f":"IFERROR(VLOOKUP(B64,Erasmus_kodok!C$1:F$64,4,FALSE),\"\")","v":""},{"$f":"IFERROR(VLOOKUP(B64,Erasmus_kodok!C$1:F$64,3,FALSE),\"\")","v":""}]
[null,null,null,null,null,null,null,null,null,{"$f":"IFERROR(VLOOKUP(B65,Erasmus_kodok!C$1:F$64,4,FALSE),\"\")","v":""},{"$f":"IFERROR(VLOOKUP(B65,Erasmus_kodok!C$1:F$64,3,FALSE),\"\")","v":""}]
[null,null,null,null,null,null,null,null,null,{"$f":"IFERROR(VLOOKUP(B66,Erasmus_kodok!C$1:F$64,4,FALSE),\"\")","v":""},{"$f":"IFERROR(VLOOKUP(B66,Erasmus_kodok!C$1:F$64,3,FALSE),\"\")","v":""}]
[null,null,null,null,null,null,null,null,null,{"$f":"IFERROR(VLOOKUP(B67,Erasmus_kodok!C$1:F$64,4,FALSE),\"\")","v":""},{"$f":"IFERROR(VLOOKUP(B67,Erasmus_kodok!C$1:F$64,3,FALSE),\"\")","v":""}]
[null,null,null,null,null,null,null,null,null,{"$f":"IFERROR(VLOOKUP(B68,Erasmus_kodok!C$1:F$64,4,FALSE),\"\")","v":""},{"$f":"IFERROR(VLOOKUP(B68,Erasmus_kodok!C$1:F$64,3,FALSE),\"\")","v":""}]
[null,null,null,null,null,null,null,null,null,{"$f":"IFERROR(VLOOKUP(B69,Erasmus_kodok!C$1:F$64,4,FALSE),\"\")","v":""},{"$f":"IFERROR(VLOOKUP(B69,Erasmus_kodok!C$1:F$64,3,FALSE),\"\")","v":""}]
[null,null,null,null,null,null,null,null,null,{"$f":"IFERROR(VLOOKUP(B70,Erasmus_kodok!C$1:F$64,4,FALSE),\"\")","v":""},{"$f":"IFERROR(VLOOKUP(B70,Erasmus_kodok!C$1:F$64,3,FALSE),\"\")","v":""}]
[null,null,null,null,null,null,null,null,null,{"$f":"IFERROR(VLOOKUP(B71,Erasmus_kodok!C$1:F$64,4,FALSE),\"\")","v":""},{"$f":"IFERROR(VLOOKUP(B71,Erasmus_kodok!C$1:F$64,3,FALSE),\"\")","v":""}]
[null,null,null,null,null,null,null,null,null,{"$f":"IFERROR(VLOOKUP(B72,Erasmus_kodok!C$1:F$64,4,FALSE),\"\")","v":""},{"$f":"IFERROR(VLOOKUP(B72,Erasmus_kodok!C$1:F$64,3,FALSE),\"\")","v":""}]
[null,null,null,null,null,null,null,null,null,{"$f":"IFERROR(VLOOKUP(B73,Erasmus_kodok!C$1:F$64,4,FALSE),\"\")","v":""},{"$f":"IFERROR(VLOOKUP(B73,Erasmus_kodok!C$1:F$64,3,FALSE),\"\")","v":""}]
[null,null,null,null,null,null,null,null,null,{"$f":"IFERROR(VLOOKUP(B74,Erasmus_kodok!C$1:F$64,4,FALSE),\"\")","v":""},{"$f":"IFERROR(VLOOKUP(B74,Erasmus_kodok!C$1:F$64,3,FALSE),\"\")","v":""}]
[null,null,null,null,null,null,null,null,null,{"$f":"IFERROR(VLOOKUP(B75,Erasmus_kodok!C$1:F$64,4,FALSE),\"\")","v":""},{"$f":"IFERROR(VLOOKUP(B75,Erasmus_kodok!C$1:F$64,3,FALSE),\"\")","v":""}]
[null,null,null,null,null,null,null,null,null,{"$f":"IFERROR(VLOOKUP(B76,Erasmus_kodok!C$1:F$64,4,FALSE),\"\")","v":""},{"$f":"IFERROR(VLOOKUP(B76,Erasmus_kodok!C$1:F$64,3,FALSE),\"\")","v":""}]
[null,null,null,null,null,null,null,null,null,{"$f":"IFERROR(VLOOKUP(B77,Erasmus_kodok!C$1:F$64,4,FALSE),\"\")","v":""},{"$f":"IFERROR(VLOOKUP(B77,Erasmus_kodok!C$1:F$64,3,FALSE),\"\")","v":""}]
[null,null,null,null,null,null,null,null,null,{"$f":"IFERROR(VLOOKUP(B78,Erasmus_kodok!C$1:F$64,4,FALSE),\"\")","v":""},{"$f":"IFERROR(VLOOKUP(B78,Erasmus_kodok!C$1:F$64,3,FALSE),\"\")","v":""}]
[null,null,null,null,null,null,null,null,null,{"$f":"IFERROR(VLOOKUP(B79,Erasmus_kodok!C$1:F$64,4,FALSE),\"\")","v":""},{"$f":"IFERROR(VLOOKUP(B79,Erasmus_kodok!C$1:F$64,3,FALSE),\"\")","v":""}]
[null,null,null,null,null,null,null,null,null,{"$f":"IFERROR(VLOOKUP(B80,Erasmus_kodok!C$1:F$64,4,FALSE),\"\")","v":""},{"$f":"IFERROR(VLOOKUP(B80,Erasmus_kodok!C$1:F$64,3,FALSE),\"\")","v":""}]
[null,null,null,null,null,null,null,null,null,{"$f":"IFERROR(VLOOKUP(B81,Erasmus_kodok!C$1:F$64,4,FALSE),\"\")","v":""},{"$f":"IFERROR(VLOOKUP(B81,Erasmus_kodok!C$1:F$64,3,FALSE),\"\")","v":""}]
[null,null,null,null,null,null,null,null,null,{"$f":"IFERROR(VLOOKUP(B82,Erasmus_kodok!C$1:F$64,4,FALSE),\"\")","v":""},{"$f":"IFERROR(VLOOKUP(B82,Erasmus_kodok!C$1:F$64,3,FALSE),\"\")","v":""}]
[null,null,null,null,null,null,null,null,null,{"$f":"IFERROR(VLOOKUP(B83,Erasmus_kodok!C$1:F$64,4,FALSE),\"\")","v":""},{"$f":"IFERROR(VLOOKUP(B83,Erasmus_kodok!C$1:F$64,3,FALSE),\"\")","v":""}]
[null,null,null,null,null,null,null,null,null,{"$f":"IFERROR(VLOOKUP(B84,Erasmus_kodok!C$1:F$64,4,FALSE),\"\")","v":""},{"$f":"IFERROR(VLOOKUP(B84,Erasmus_kodok!C$1:F$64,3,FALSE),\"\")","v":""}]
[null,null,null,null,null,null,null,null,null,{"$f":"IFERROR(VLOOKUP(B85,Erasmus_kodok!C$1:F$64,4,FALSE),\"\")","v":""},{"$f":"IFERROR(VLOOKUP(B85,Erasmus_kodok!C$1:F$64,3,FALSE),\"\")","v":""}]
[null,null,null,null,null,null,null,null,null,{"$f":"IFERROR(VLOOKUP(B86,Erasmus_kodok!C$1:F$64,4,FALSE),\"\")","v":""},{"$f":"IFERROR(VLOOKUP(B86,Erasmus_kodok!C$1:F$64,3,FALSE),\"\")","v":""}]
[null,null,null,null,null,null,null,null,null,{"$f":"IFERROR(VLOOKUP(B87,Erasmus_kodok!C$1:F$64,4,FALSE),\"\")","v":""},{"$f":"IFERROR(VLOOKUP(B87,Erasmus_kodok!C$1:F$64,3,FALSE),\"\")","v":""}]
[null,null,null,null,null,null,null,null,null,{"$f":"IFERROR(VLOOKUP(B88,Erasmus_kodok!C$1:F$64,4,FALSE),\"\")","v":""},{"$f":"IFERROR(VLOOKUP(B88,Erasmus_kodok!C$1:F$64,3,FALSE),\"\")","v":""}]
[null,null,null,null,null,null,null,null,null,{"$f":"IFERROR(VLOOKUP(B89,Erasmus_kodok!C$1:F$64,4,FALSE),\"\")","v":""},{"$f":"IFERROR(VLOOKUP(B89,Erasmus_kodok!C$1:F$64,3,FALSE),\"\")","v":""}]
[null,null,null,null,null,null,null,null,null,{"$f":"IFERROR(VLOOKUP(B90,Erasmus_kodok!C$1:F$64,4,FALSE),\"\")","v":""},{"$f":"IFERROR(VLOOKUP(B90,Erasmus_kodok!C$1:F$64,3,FALSE),\"\")","v":""}]
[null,null,null,null,null,null,null,null,null,{"$f":"IFERROR(VLOOKUP(B91,Erasmus_kodok!C$1:F$64,4,FALSE),\"\")","v":""},{"$f":"IFERROR(VLOOKUP(B91,Erasmus_kodok!C$1:F$64,3,FALSE),\"\")","v":""}]
[null,null,null,null,null,null,null,null,null,{"$f":"IFERROR(VLOOKUP(B92,Erasmus_kodok!C$1:F$64,4,FALSE),\"\")","v":""},{"$f":"IFERROR(VLOOKUP(B92,Erasmus_kodok!C$1:F$64,3,FALSE),\"\")","v":""}]
[null,null,null,null,null,null,null,null,null,{"$f":"IFERROR(VLOOKUP(B93,Erasmus_kodok!C$1:F$64,4,FALSE),\"\")","v":""},{"$f":"IFERROR(VLOOKUP(B93,Erasmus_kodok!C$1:F$64,3,FALSE),\"\")","v":""}]
[null,null,null,null,null,null,null,null,null,{"$f":"IFERROR(VLOOKUP(B94,Erasmus_kodok!C$1:F$64,4,FALSE),\"\")","v":""},{"$f":"IFERROR(VLOOKUP(B94,Erasmus_kodok!C$1:F$64,3,FALSE),\"\")","v":""}]
[null,null,null,null,null,null,null,null,null,{"$f":"IFERROR(VLOOKUP(B95,Erasmus_kodok!C$1:F$64,4,FALSE),\"\")","v":""},{"$f":"IFERROR(VLOOKUP(B95,Erasmus_kodok!C$1:F$64,3,FALSE),\"\")","v":""}]
[null,null,null,null,null,null,null,null,null,{"$f":"IFERROR(VLOOKUP(B96,Erasmus_kodok!C$1:F$64,4,FALSE),\"\")","v":""},{"$f":"IFERROR(VLOOKUP(B96,Erasmus_kodok!C$1:F$64,3,FALSE),\"\")","v":""}]
[null,null,null,null,null,null,null,null,null,{"$f":"IFERROR(VLOOKUP(B97,Erasmus_kodok!C$1:F$64,4,FALSE),\"\")","v":""},{"$f":"IFERROR(VLOOKUP(B97,Erasmus_kodok!C$1:F$64,3,FALSE),\"\")","v":""}]
[null,null,null,null,null,null,null,null,null,{"$f":"IFERROR(VLOOKUP(B98,Erasmus_kodok!C$1:F$64,4,FALSE),\"\")","v":""},{"$f":"IFERROR(VLOOKUP(B98,Erasmus_kodok!C$1:F$64,3,FALSE),\"\")","v":""}]
[null,null,null,null,null,null,null,null,null,{"$f":"IFERROR(VLOOKUP(B99,Erasmus_kodok!C$1:F$64,4,FALSE),\"\")","v":""},{"$f":"IFERROR(VLOOKUP(B99,Erasmus_kodok!C$1:F$64,3,FALSE),\"\")","v":""}]
[null,null,null,null,null,null,null,null,null,{"$f":"IFERROR(VLOOKUP(B100,Erasmus_kodok!C$1:F$64,4,FALSE),\"\")","v":""},{"$f":"IFERROR(VLOOKUP(B100,Erasmus_kodok!C$1:F$64,3,FALSE),\"\")","v":""}]
[null,null,null,null,null,null,null,null,null,{"$f":"IFERROR(VLOOKUP(B101,Erasmus_kodok!C$1:F$64,4,FALSE),\"\")","v":""},{"$f":"IFERROR(VLOOKUP(B101,Erasmus_kodok!C$1:F$64,3,FALSE),\"\")","v":""}]
[null,null,null,null,null,null,null,null,null,{"$f":"IFERROR(VLOOKUP(B102,Erasmus_kodok!C$1:F$64,4,FALSE),\"\")","v":""},{"$f":"IFERROR(VLOOKUP(B102,Erasmus_kodok!C$1:F$64,3,FALSE),\"\")","v":""}]
[null,null,null,null,null,null,null,null,null,{"$f":"IFERROR(VLOOKUP(B103,Erasmus_kodok!C$1:F$64,4,FALSE),\"\")","v":""},{"$f":"IFERROR(VLOOKUP(B103,Erasmus_kodok!C$1:F$64,3,FALSE),\"\")","v":""}]
[null,null,null,null,null,null,null,null,null,{"$f":"IFERROR(VLOOKUP(B104,Erasmus_kodok!C$1:F$64,4,FALSE),\"\")","v":""},{"$f":"IFERROR(VLOOKUP(B104,Erasmus_kodok!C$1:F$64,3,FALSE),\"\")","v":""}]
[null,null,null,null,null,null,null,null,null,{"$f":"IFERROR(VLOOKUP(B105,Erasmus_kodok!C$1:F$64,4,FALSE),\"\")","v":""},{"$f":"IFERROR(VLOOKUP(B105,Erasmus_kodok!C$1:F$64,3,FALSE),\"\")","v":""}]
[null,null,null,null,null,null,null,null,null,{"$f":"IFERROR(VLOOKUP(B106,Erasmus_kodok!C$1:F$64,4,FALSE),\"\")","v":""},{"$f":"IFERROR(VLOOKUP(B106,Erasmus_kodok!C$1:F$64,3,FALSE),\"\")","v":""}]
[null,null,null,null,null,null,null,null,null,{"$f":"IFERROR(VLOOKUP(B107,Erasmus_kodok!C$1:F$64,4,FALSE),\"\")","v":""},{"$f":"IFERROR(VLOOKUP(B107,Erasmus_kodok!C$1:F$64,3,FALSE),\"\")","v":""}]
[null,null,null,null,null,null,null,null,null,{"$f":"IFERROR(VLOOKUP(B108,Erasmus_kodok!C$1:F$64,4,FALSE),\"\")","v":""},{"$f":"IFERROR(VLOOKUP(B108,Erasmus_kodok!C$1:F$64,3,FALSE),\"\")","v":""}]

{"sheet":"Ki- és beutazó hallgatók","index":4,"n_rows":108,"n_cols":37,"rows_kept":108,"cut":false,"hidden":true,"merged":[[2,4,2,7],[2,14,2,17],[3,4,3,7],[3,14,3,17]]}
[{"$f":"IF(Azonosítás!A3=\"\",\"\",Azonosítás!A3)","v":""}]
["Ki- és beutazó hallgatói mobilitás - tanulmányi célú, szakmai gyakorlat, nyári egyetem"]
[]
["Intézmény neve:",null,{"$f":"IF(Azonosítás!A9=\"\",\"\",Azonosítás!A9)","v":""},null,"EGT koordinátor aláírása",null,null,null,null,null,null,null,null,null,"intézményi koordinátor aláírása"]
["Szerződésszám:",null,{"$f":"Azonosítás!A6","v":0},null,null,null,null,{"$f":"TODAY()","v":"2017-01-06"},null,null,null,null,null,null,null,null,null,{"$f":"TODAY()","v":"2017-01-06"}]
[null,null,null,null,null,null,null,null,null,null,null,null,null,null,null,null,0]
[]
["Mobilitás jellege","Egyéni támogatási szerződésszám","Tanulmányi \nazonosító kód","Családnév","Keresztnév","Születés időpontja\n(ÉÉÉÉ/HH/NN)","Neme","Állampolgárság","Szakterület kódja","Leendő végzettsége (magyarul)","A tanulmányok szintje ","Évfolyam","Küldő partner azonosítója","Fogadó partner azonosítója","Tanulmányi célú mobilitás \nkezdete\n (ÉÉÉÉ/HH/NN)","Tanulmányi célú mobilitás \nvége\n (ÉÉÉÉ/HH/NN)","Tanulmányi célú mobilitás hossza","Szakmai gyakorlat  \nkezdete\n (ÉÉÉÉ/HH/NN)","Szakmai gyakorlat  \nvége\n (ÉÉÉÉ/HH/NN)","Szakmai \ngyakorlat  hossza","Nyári egyetem \nkezdete\n (ÉÉÉÉ/HH/NN)","Nyári egyetem\nvége\n (ÉÉÉÉ/HH/NN)","Nyári egyetem hossza","Tanulmányi ECTS kreditek száma","Gyakorlati ECTS kreditek száma","Oktatás vagy munka nyelve","Hallgatói felkészítés","EGT ösztöndíj összesen (EUR)","Intézményi forrás \n(HUF)","Hallgató e-mail címe ","Költségtérítéses hallgató?","Megjegyzés","hosszabbítási igény \n(hónap)","kiegészítés-igény \n(euró)","Küldő ország","Fogadó ország","TÁMOGATÁS"]
[null,null,null,null,null,null,null,null,null,null,null,null,{"$f":"IF((IFERROR(RIGHT($A9,2),\"\")=\"KI\"),Erasmus_kod,\"\")","v":""},null,null,null,null,null,null,null,null,null,null,null,null,null,null,{"$f":"IFERROR(\n   IF( ((RIGHT(A9,2)=\"KI\")*(AI9=\"HU\")*(AJ9<>\"HU\"))+((RIGHT(A9,2)=\"BE\")*(AJ9=\"HU\")*(AJ9=\"HU\")),  IF(A9<>\"\",AK9,\"\"),\"\"),\"\")","v":""},null,null,null,null,null,null,{"$f":"IFERROR(\nIF(VLOOKUP($M9,Partnerek!$A$9:$K$108,11,FALSE)=\"\",\"\",VLOOKUP($M9,Partnerek!$A$9:$K$108,11,FALSE)),\"\")","v":""},{"$f":"IFERROR(\nIF(VLOOKUP($N9,Partnerek!$A$9:$K$108,11,FALSE)=\"\",\"\",VLOOKUP($N9,Partnerek!$A$9:$K$108,11,FALSE)),\"\")","v":""},{"$f":"IFERROR(VLOOKUP(AJ9,ráták!$A$10:$AX$13,MATCH(Q9+T9+W9,ráták!$C$9:$AX$9,1)+2,FALSE),\"\")","v":""}]
[null,null,null,null,null,null,null,null,null,null,null,null,"",null,null,null,null,null,null,null,null,null,null,null,null,null,null,{"$f":"IFERROR(\n   IF( ((RIGHT(A10,2)=\"KI\")*(AI10=\"HU\")*(AJ10<>\"HU\"))+((RIGHT(A10,2)=\"BE\")*(AJ10=\"HU\")*(AJ10=\"HU\")),  IF(A10<>\"\",AK10,\"\"),\"\"),\"\")","v":""},null,null,null,null,null,null,{"$f":"IFERROR(\nIF(VLOOKUP($M10,Partnerek!$A$9:$K$108,11,FALSE)=\"\",\"\",VLOOKUP($M10,Partnerek!$A$9:$K$108,11,FALSE)),\"\")","v":""},{"$f":"IFERROR(\nIF(RIGHT($A10,2)=\"BE\",\"HU\",\nIF(VLOOKUP($N10,Partnerek!$A$9:$K$108,11,FALSE)=\"\",\"\",VLOOKUP($N10,Partnerek!$A$9:$K$108,11,FALSE))),\"\")","v":""},{"$f":"IFERROR(VLOOKUP(AJ10,ráták!$A$10:$AX$13,MATCH(Q10+T10+W10,ráták!$C$9:$AX$9,1)+2,FALSE),\"\")","v":""}]
[null,null,null,null,null,null,null,null,null,null,null,null,"",null,null,null,null,null,null,null,null,null,null,null,null,null,null,"",null,null,null,null,null,null,{"$f":"IFERROR(\nIF(VLOOKUP($M11,Partnerek!$A$9:$K$108,11,FALSE)=\"\",\"\",VLOOKUP($M11,Partnerek!$A$9:$K$108,11,FALSE)),\"\")","v":""},{"$f":"IFERROR(\nIF(RIGHT($A11,2)=\"BE\",\"HU\",\nIF(VLOOKUP($N11,Partnerek!$A$9:$K$108,11,FALSE)=\"\",\"\",VLOOKUP($N11,Partnerek!$A$9:$K$108,11,FALSE))),\"\")","v":""},{"$f":"IFERROR(VLOOKUP(AJ11,ráták!$A$10:$AX$13,MATCH(Q11+T11+W11,ráták!$C$9:$AX$9,1)+2,FALSE),\"\")","v":""}]
[null,null,null,null,null,null,null,null,null,null,null,null,"",null,null,null,null,null,null,null,null,null,null,null,null,null,null,"",null,null,null,null,null,null,{"$f":"IFERROR(\nIF(VLOOKUP($M12,Partnerek!$A$9:$K$108,11,FALSE)=\"\",\"\",VLOOKUP($M12,Partnerek!$A$9:$K$108,11,FALSE)),\"\")","v":""},{"$f":"IFERROR(\nIF(RIGHT($A12,2)=\"BE\",\"HU\",\nIF(VLOOKUP($N12,Partnerek!$A$9:$K$108,11,FALSE)=\"\",\"\",VLOOKUP($N12,Partnerek!$A$9:$K$108,11,FALSE))),\"\")","v":""},{"$f":"IFERROR(VLOOKUP(AJ12,ráták!$A$10:$AX$13,MATCH(Q12+T12+W12,ráták!$C$9:$AX$9,1)+2,FALSE),\"\")","v":""}]
[null,null,null,null,null,null,null,null,null,null,null,null,"",null,null,null,null,null,null,null,null,null,null,null,null,null,null,"",null,null,null,null,null,null,{"$f":"IFERROR(\nIF(VLOOKUP($M13,Partnerek!$A$9:$K$108,11,FALSE)=\"\",\"\",VLOOKUP($M13,Partnerek!$A$9:$K$108,11,FALSE)),\"\")","v":""},{"$f":"IFERROR(\nIF(RIGHT($A13,2)=\"BE\",\"HU\",\nIF(VLOOKUP($N13,Partnerek!$A$9:$K$108,11,FALSE)=\"\",\"\",VLOOKUP($N13,Partnerek!$A$9:$K$108,11,FALSE))),\"\")","v":""},{"$f":"IFERROR(VLOOKUP(AJ13,ráták!$A$10:$AX$13,MATCH(Q13+T13+W13,ráták!$C$9:$AX$9,1)+2,FALSE),\"\")","v":""}]
[null,null,null,null,null,null,null,null,null,null,null,null,"",null,null,null,null,null,null,null,null,null,null,null,null,null,null,"",null,null,null,null,null,null,{"$f":"IFERROR(\nIF(VLOOKUP($M14,Partnerek!$A$9:$K$108,11,FALSE)=\"\",\"\",VLOOKUP($M14,Partnerek!$A$9:$K$108,11,FALSE)),\"\")","v":""},{"$f":"IFERROR(\nIF(RIGHT($A14,2)=\"BE\",\"HU\",\nIF(VLOOKUP($N14,Partnerek!$A$9:$K$108,11,FALSE)=\"\",\"\",VLOOKUP($N14,Partnerek!$A$9:$K$108,11,FALSE))),\"\")","v":""},{"$f":"IFERROR(VLOOKUP(AJ14,ráták!$A$10:$AX$13,MATCH(Q14+T14+W14,ráták!$C$9:$AX$9,1)+2,FALSE),\"\")","v":""}]
[null,null,null,null,null,null,null,null,null,null,null,null,"",null,null,null,null,null,null,null,null,null,null,null,null,null,null,"",null,null,null,null,null,null,{"$f":"IFERROR(\nIF(VLOOKUP($M15,Partnerek!$A$9:$K$108,11,FALSE)=\"\",\"\",VLOOKUP($M15,Partnerek!$A$9:$K$108,11,FALSE)),\"\")","v":""},{"$f":"IFERROR(\nIF(RIGHT($A15,2)=\"BE\",\"HU\",\nIF(VLOOKUP($N15,Partnerek!$A$9:$K$108,11,FALSE)=\"\",\"\",VLOOKUP($N15,Partnerek!$A$9:$K$108,11,FALSE))),\"\")","v":""},{"$f":"IFERROR(VLOOKUP(AJ15,ráták!$A$10:$AX$13,MATCH(Q15+T15+W15,ráták!$C$9:$AX$9,1)+2,FALSE),\"\")","v":""}]
[null,null,null,null,null,null,null,null,null,null,null,null,"",null,null,null,null,null,null,null,null,null,null,null,null,null,null,"",null,null,null,null,null,null,{"$f":"IFERROR(\nIF(VLOOKUP($M16,Partnerek!$A$9:$K$108,11,FALSE)=\"\",\"\",VLOOKUP($M16,Partnerek!$A$9:$K$108,11,FALSE)),\"\")","v":""},{"$f":"IFERROR(\nIF(RIGHT($A16,2)=\"BE\",\"HU\",\nIF(VLOOKUP($N16,Partnerek!$A$9:$K$108,11,FALSE)=\"\",\"\",VLOOKUP($N16,Partnerek!$A$9:$K$108,11,FALSE))),\"\")","v":""},{"$f":"IFERROR(VLOOKUP(AJ16,ráták!$A$10:$AX$13,MATCH(Q16+T16+W16,ráták!$C$9:$AX$9,1)+2,FALSE),\"\")","v":""}]
[null,null,null,null,null,null,null,null,null,null,null,null,"",null,null,null,null,null,null,null,null,null,null,null,null,null,null,"",null,null,null,null,null,null,{"$f":"IFERROR(\nIF(VLOOKUP($M17,Partnerek!$A$9:$K$108,11,FALSE)=\"\",\"\",VLOOKUP($M17,Partnerek!$A$9:$K$108,11,FALSE)),\"\")","v":""},{"$f":"IFERROR(\nIF(RIGHT($A17,2)=\"BE\",\"HU\",\nIF(VLOOKUP($N17,Partnerek!$A$9:$K$108,11,FALSE)=\"\",\"\",VLOOKUP($N17,Partnerek!$A$9:$K$108,11,FALSE))),\"\")","v":""},{"$f":"IFERROR(VLOOKUP(AJ17,ráták!$A$10:$AX$13,MATCH(Q17+T17+W17,ráták!$C$9:$AX$9,1)+2,FALSE),\"\")","v":""}]
[null,null,null,null,null,null,null,null,null,null,null,null,"",null,null,null,null,null,null,null,null,null,null,null,null,null,null,"",null,null,null,null,null,null,{"$f":"IFERROR(\nIF(VLOOKUP($M18,Partnerek!$A$9:$K$108,11,FALSE)=\"\",\"\",VLOOKUP($M18,Partnerek!$A$9:$K$108,11,FALSE)),\"\")","v":""},{"$f":"IFERROR(\nIF(RIGHT($A18,2)=\"BE\",\"HU\",\nIF(VLOOKUP($N18,Partnerek!$A$9:$K$108,11,FALSE)=\"\",\"\",VLOOKUP($N18,Partnerek!$A$9:$K$108,11,FALSE))),\"\")","v":""},{"$f":"IFERROR(VLOOKUP(AJ18,ráták!$A$10:$AX$13,MATCH(Q18+T18+W18,ráták!$C$9:$AX$9,1)+2,FALSE),\"\")","v":""}]
[null,null,null,null,null,null,null,null,null,null,null,null,"",null,null,null,null,null,null,null,null,null,null,null,null,null,null,"",null,null,null,null,null,null,{"$f":"IFERROR(\nIF(VLOOKUP($M19,Partnerek!$A$9:$K$108,11,FALSE)=\"\",\"\",VLOOKUP($M19,Partnerek!$A$9:$K$108,11,FALSE)),\"\")","v":""},{"$f":"IFERROR(\nIF(RIGHT($A19,2)=\"BE\",\"HU\",\nIF(VLOOKUP($N19,Partnerek!$A$9:$K$108,11,FALSE)=\"\",\"\",VLOOKUP($N19,Partnerek!$A$9:$K$108,11,FALSE))),\"\")","v":""},{"$f":"IFERROR(VLOOKUP(AJ19,ráták!$A$10:$AX$13,MATCH(Q19+T19+W19,ráták!$C$9:$AX$9,1)+2,FALSE),\"\")","v":""}]
[null,null,null,null,null,null,null,null,null,null,null,null,"",null,null,null,null,null,null,null,null,null,null,null,null,null,null,"",null,null,null,null,null,null,{"$f":"IFERROR(\nIF(VLOOKUP($M20,Partnerek!$A$9:$K$108,11,FALSE)=\"\",\"\",VLOOKUP($M20,Partnerek!$A$9:$K$108,11,FALSE)),\"\")","v":""},{"$f":"IFERROR(\nIF(RIGHT($A20,2)=\"BE\",\"HU\",\nIF(VLOOKUP($N20,Partnerek!$A$9:$K$108,11,FALSE)=\"\",\"\",VLOOKUP($N20,Partnerek!$A$9:$K$108,11,FALSE))),\"\")","v":""},{"$f":"IFERROR(VLOOKUP(AJ20,ráták!$A$10:$AX$13,MATCH(Q20+T20+W20,ráták!$C$9:$AX$9,1)+2,FALSE),\"\")","v":""}]
[null,null,null,null,null,null,null,null,null,null,null,null,"",null,null,null,null,null,null,null,null,null,null,null,null,null,null,"",null,null,null,null,null,null,{"$f":"IFERROR(\nIF(VLOOKUP($M21,Partnerek!$A$9:$K$108,11,FALSE)=\"\",\"\",VLOOKUP($M21,Partnerek!$A$9:$K$108,11,FALSE)),\"\")","v":""},{"$f":"IFERROR(\nIF(RIGHT($A21,2)=\"BE\",\"HU\",\nIF(VLOOKUP($N21,Partnerek!$A$9:$K$108,11,FALSE)=\"\",\"\",VLOOKUP($N21,Partnerek!$A$9:$K$108,11,FALSE))),\"\")","v":""},{"$f":"IFERROR(VLOOKUP(AJ21,ráták!$A$10:$AX$13,MATCH(Q21+T21+W21,ráták!$C$9:$AX$9,1)+2,FALSE),\"\")","v":""}]
[null,null,null,null,null,null,null,null,null,null,null,null,"",null,null,null,null,null,null,null,null,null,null,null,null,null,null,"",null,null,null,null,null,null,{"$f":"IFERROR(\nIF(VLOOKUP($M22,Partnerek!$A$9:$K$108,11,FALSE)=\"\",\"\",VLOOKUP($M22,Partnerek!$A$9:$K$108,11,FALSE)),\"\")","v":""},{"$f":"IFERROR(\nIF(RIGHT($A22,2)=\"BE\",\"HU\",\nIF(VLOOKUP($N22,Partnerek!$A$9:$K$108,11,FALSE)=\"\",\"\",VLOOKUP($N22,Partnerek!$A$9:$K$108,11,FALSE))),\"\")","v":""},{"$f":"IFERROR(VLOOKUP(AJ22,ráták!$A$10:$AX$13,MATCH(Q22+T22+W22,ráták!$C$9:$AX$9,1)+2,FALSE),\"\")","v":""}]
[null,null,null,null,null,null,null,null,null,null,null,null,"",null,null,null,null,null,null,null,null,null,null,null,null,null,null,"",null,null,null,null,null,null,{"$f":"IFERROR(\nIF(VLOOKUP($M23,Partnerek!$A$9:$K$108,11,FALSE)=\"\",\"\",VLOOKUP($M23,Partnerek!$A$9:$K$108,11,FALSE)),\"\")","v":""},{"$f":"IFERROR(\nIF(RIGHT($A23,2)=\"BE\",\"HU\",\nIF(VLOOKUP($N23,Partnerek!$A$9:$K$108,11,FALSE)=\"\",\"\",VLOOKUP($N23,Partnerek!$A$9:$K$108,11,FALSE))),\"\")","v":""},{"$f":"IFERROR(VLOOKUP(AJ23,ráták!$A$10:$AX$13,MATCH(Q23+T23+W23,ráták!$C$9:$AX$9,1)+2,FALSE),\"\")","v":""}]
[null,null,null,null,null,null,null,null,null,null,null,null,"",null,null,null,null,null,null,null,null,null,null,null,null,null,null,"",null,null,null,null,null,null,{"$f":"IFERROR(\nIF(VLOOKUP($M24,Partnerek!$A$9:$K$108,11,FALSE)=\"\",\"\",VLOOKUP($M24,Partnerek!$A$9:$K$108,11,FALSE)),\"\")","v":""},{"$f":"IFERROR(\nIF(RIGHT($A24,2)=\"BE\",\"HU\",\nIF(VLOOKUP($N24,Partnerek!$A$9:$K$108,11,FALSE)=\"\",\"\",VLOOKUP($N24,Partnerek!$A$9:$K$108,11,FALSE))),\"\")","v":""},{"$f":"IFERROR(VLOOKUP(AJ24,ráták!$A$10:$AX$13,MATCH(Q24+T24+W24,ráták!$C$9:$AX$9,1)+2,FALSE),\"\")","v":""}]
[null,null,null,null,null,null,null,null,null,null,null,null,"",null,null,null,null,null,null,null,null,null,null,null,null,null,null,"",null,null,null,null,null,null,{"$f":"IFERROR(\nIF(VLOOKUP($M25,Partnerek!$A$9:$K$108,11,FALSE)=\"\",\"\",VLOOKUP($M25,Partnerek!$A$9:$K$108,11,FALSE)),\"\")","v":""},{"$f":"IFERROR(\nIF(RIGHT($A25,2)=\"BE\",\"HU\",\nIF(VLOOKUP($N25,Partnerek!$A$9:$K$108,11,FALSE)=\"\",\"\",VLOOKUP($N25,Partnerek!$A$9:$K$108,11,FALSE))),\"\")","v":""},{"$f":"IFERROR(VLOOKUP(AJ25,ráták!$A$10:$AX$13,MATCH(Q25+T25+W25,ráták!$C$9:$AX$9,1)+2,FALSE),\"\")","v":""}]
[null,null,null,null,null,null,null,null,null,null,null,null,"",null,null,null,null,null,null,null,null,null,null,null,null,null,null,"",null,null,null,null,null,null,{"$f":"IFERROR(\nIF(VLOOKUP($M26,Partnerek!$A$9:$K$108,11,FALSE)=\"\",\"\",VLOOKUP($M26,Partnerek!$A$9:$K$108,11,FALSE)),\"\")","v":""},{"$f":"IFERROR(\nIF(RIGHT($A26,2)=\"BE\",\"HU\",\nIF(VLOOKUP($N26,Partnerek!$A$9:$K$108,11,FALSE)=\"\",\"\",VLOOKUP($N26,Partnerek!$A$9:$K$108,11,FALSE))),\"\")","v":""},{"$f":"IFERROR(VLOOKUP(AJ26,ráták!$A$10:$AX$13,MATCH(Q26+T26+W26,ráták!$C$9:$AX$9,1)+2,FALSE),\"\")","v":""}]
[null,null,null,null,null,null,null,null,null,null,null,null,"",null,null,null,null,null,null,null,null,null,null,null,null,null,null,"",null,null,null,null,null,null,{"$f":"IFERROR(\nIF(VLOOKUP($M27,Partnerek!$A$9:$K$108,11,FALSE)=\"\",\"\",VLOOKUP($M27,Partnerek!$A$9:$K$108,11,FALSE)),\"\")","v":""},{"$f":"IFERROR(\nIF(RIGHT($A27,2)=\"BE\",\"HU\",\nIF(VLOOKUP($N27,Partnerek!$A$9:$K$108,11,FALSE)=\"\",\"\",VLOOKUP($N27,Partnerek!$A$9:$K$108,11,FALSE))),\"\")","v":""},{"$f":"IFERROR(VLOOKUP(AJ27,ráták!$A$10:$AX$13,MATCH(Q27+T27+W27,ráták!$C$9:$AX$9,1)+2,FALSE),\"\")","v":""}]
[null,null,null,null,null,null,null,null,null,null,null,null,"",null,null,null,null,null,null,null,null,null,null,null,null,null,null,"",null,null,null,null,null,null,{"$f":"IFERROR(\nIF(VLOOKUP($M28,Partnerek!$A$9:$K$108,11,FALSE)=\"\",\"\",VLOOKUP($M28,Partnerek!$A$9:$K$108,11,FALSE)),\"\")","v":""},{"$f":"IFERROR(\nIF(RIGHT($A28,2)=\"BE\",\"HU\",\nIF(VLOOKUP($N28,Partnerek!$A$9:$K$108,11,FALSE)=\"\",\"\",VLOOKUP($N28,Partnerek!$A$9:$K$108,11,FALSE))),\"\")","v":""},{"$f":"IFERROR(VLOOKUP(AJ28,ráták!$A$10:$AX$13,MATCH(Q28+T28+W28,ráták!$C$9:$AX$9,1)+2,FALSE),\"\")","v":""}]
[null,null,null,null,null,null,null,null,null,null,null,null,"",null,null,null,null,null,null,null,null,null,null,null,null,null,null,"",null,null,null,null,null,null,{"$f":"IFERROR(\nIF(VLOOKUP($M29,Partnerek!$A$9:$K$108,11,FALSE)=\"\",\"\",VLOOKUP($M29,Partnerek!$A$9:$K$108,11,FALSE)),\"\")","v":""},{"$f":"IFERROR(\nIF(RIGHT($A29,2)=\"BE\",\"HU\",\nIF(VLOOKUP($N29,Partnerek!$A$9:$K$108,11,FALSE)=\"\",\"\",VLOOKUP($N29,Partnerek!$A$9:$K$108,11,FALSE))),\"\")","v":""},{"$f":"IFERROR(VLOOKUP(AJ29,ráták!$A$10:$AX$13,MATCH(Q29+T29+W29,ráták!$C$9:$AX$9,1)+2,FALSE),\"\")","v":""}]
[null,null,null,null,null,null,null,null,null,null,null,null,"",null,null,null,null,null,null,null,null,null,null,null,null,null,null,"",null,null,null,null,null,null,{"$f":"IFERROR(\nIF(VLOOKUP($M30,Partnerek!$A$9:$K$108,11,FALSE)=\"\",\"\",VLOOKUP($M30,Partnerek!$A$9:$K$108,11,FALSE)),\"\")","v":""},{"$f":"IFERROR(\nIF(RIGHT($A30,2)=\"BE\",\"HU\",\nIF(VLOOKUP($N30,Partnerek!$A$9:$K$108,11,FALSE)=\"\",\"\",VLOOKUP($N30,Partnerek!$A$9:$K$108,11,FALSE))),\"\")","v":""},{"$f":"IFERROR(VLOOKUP(AJ30,ráták!$A$10:$AX$13,MATCH(Q30+T30+W30,ráták!$C$9:$AX$9,1)+2,FALSE),\"\")","v":""}]
[null,null,null,null,null,null,null,null,null,null,null,null,"",null,null,null,null,null,null,null,null,null,null,null,null,null,null,"",null,null,null,null,null,null,{"$f":"IFERROR(\nIF(VLOOKUP($M31,Partnerek!$A$9:$K$108,11,FALSE)=\"\",\"\",VLOOKUP($M31,Partnerek!$A$9:$K$108,11,FALSE)),\"\")","v":""},{"$f":"IFERROR(\nIF(RIGHT($A31,2)=\"BE\",\"HU\",\nIF(VLOOKUP($N31,Partnerek!$A$9:$K$108,11,FALSE)=\"\",\"\",VLOOKUP($N31,Partnerek!$A$9:$K$108,11,FALSE))),\"\")","v":""},{"$f":"IFERROR(VLOOKUP(AJ31,ráták!$A$10:$AX$13,MATCH(Q31+T31+W31,ráták!$C$9:$AX$9,1)+2,FALSE),\"\")","v":""}]
[null,null,null,null,null,null,null,null,null,null,null,null,"",null,null,null,null,null,null,null,null,null,null,null,null,null,null,"",null,null,null,null,null,null,{"$f":"IFERROR(\nIF(VLOOKUP($M32,Partnerek!$A$9:$K$108,11,FALSE)=\"\",\"\",VLOOKUP($M32,Partnerek!$A$9:$K$108,11,FALSE)),\"\")","v":""},{"$f":"IFERROR(\nIF(RIGHT($A32,2)=\"BE\",\"HU\",\nIF(VLOOKUP($N32,Partnerek!$A$9:$K$108,11,FALSE)=\"\",\"\",VLOOKUP($N32,Partnerek!$A$9:$K$108,11,FALSE))),\"\")","v":""},{"$f":"IFERROR(VLOOKUP(AJ32,ráták!$A$10:$AX$13,MATCH(Q32+T32+W32,ráták!$C$9:$AX$9,1)+2,FALSE),\"\")","v":""}]
[null,null,null,null,null,null,null,null,null,null,null,null,"",null,null,null,null,null,null,null,null,null,null,null,null,null,null,"",null,null,null,null,null,null,{"$f":"IFERROR(\nIF(VLOOKUP($M33,Partnerek!$A$9:$K$108,11,FALSE)=\"\",\"\",VLOOKUP($M33,Partnerek!$A$9:$K$108,11,FALSE)),\"\")","v":""},{"$f":"IFERROR(\nIF(RIGHT($A33,2)=\"BE\",\"HU\",\nIF(VLOOKUP($N33,Partnerek!$A$9:$K$108,11,FALSE)=\"\",\"\",VLOOKUP($N33,Partnerek!$A$9:$K$108,11,FALSE))),\"\")","v":""},{"$f":"IFERROR(VLOOKUP(AJ33,ráták!$A$10:$AX$13,MATCH(Q33+T33+W33,ráták!$C$9:$AX$9,1)+2,FALSE),\"\")","v":""}]
[null,null,null,null,null,null,null,null,null,null,null,null,"",null,null,null,null,null,null,null,null,null,null,null,null,null,null,"",null,null,null,null,null,null,{"$f":"IFERROR(\nIF(VLOOKUP($M34,Partnerek!$A$9:$K$108,11,FALSE)=\"\",\"\",VLOOKUP($M34,Partnerek!$A$9:$K$108,11,FALSE)),\"\")","v":""},{"$f":"IFERROR(\nIF(RIGHT($A34,2)=\"BE\",\"HU\",\nIF(VLOOKUP($N34,Partnerek!$A$9:$K$108,11,FALSE)=\"\",\"\",VLOOKUP($N34,Partnerek!$A$9:$K$108,11,FALSE))),\"\")","v":""},{"$f":"IFERROR(VLOOKUP(AJ34,ráták!$A$10:$AX$13,MATCH(Q34+T34+W34,ráták!$C$9:$AX$9,1)+2,FALSE),\"\")","v":""}]
[null,null,null,null,null,null,null,null,null,null,null,null,"",null,null,null,null,null,null,null,null,null,null,null,null,null,null,"",null,null,null,null,null,null,{"$f":"IFERROR(\nIF(VLOOKUP($M35,Partnerek!$A$9:$K$108,11,FALSE)=\"\",\"\",VLOOKUP($M35,Partnerek!$A$9:$K$108,11,FALSE)),\"\")","v":""},{"$f":"IFERROR(\nIF(RIGHT($A35,2)=\"BE\",\"HU\",\nIF(VLOOKUP($N35,Partnerek!$A$9:$K$108,11,FALSE)=\"\",\"\",VLOOKUP($N35,Partnerek!$A$9:$K$108,11,FALSE))),\"\")","v":""},{"$f":"IFERROR(VLOOKUP(AJ35,ráták!$A$10:$AX$13,MATCH(Q35+T35+W35,ráták!$C$9:$AX$9,1)+2,FALSE),\"\")","v":""}]
[null,null,null,null,null,null,null,null,null,null,null,null,"",null,null,null,null,null,null,null,null,null,null,null,null,null,null,"",null,null,null,null,null,null,{"$f":"IFERROR(\nIF(VLOOKUP($M36,Partnerek!$A$9:$K$108,11,FALSE)=\"\",\"\",VLOOKUP($M36,Partnerek!$A$9:$K$108,11,FALSE)),\"\")","v":""},{"$f":"IFERROR(\nIF(RIGHT($A36,2)=\"BE\",\"HU\",\nIF(VLOOKUP($N36,Partnerek!$A$9:$K$108,11,FALSE)=\"\",\"\",VLOOKUP($N36,Partnerek!$A$9:$K$108,11,FALSE))),\"\")","v":""},{"$f":"IFERROR(VLOOKUP(AJ36,ráták!$A$10:$AX$13,MATCH(Q36+T36+W36,ráták!$C$9:$AX$9,1)+2,FALSE),\"\")","v":""}]
[null,null,null,null,null,null,null,null,null,null,null,null,"",null,null,null,null,null,null,null,null,null,null,null,null,null,null,"",null,null,null,null,null,null,{"$f":"IFERROR(\nIF(VLOOKUP($M37,Partnerek!$A$9:$K$108,11,FALSE)=\"\",\"\",VLOOKUP($M37,Partnerek!$A$9:$K$108,11,FALSE)),\"\")","v":""},{"$f":"IFERROR(\nIF(RIGHT($A37,2)=\"BE\",\"HU\",\nIF(VLOOKUP($N37,Partnerek!$A$9:$K$108,11,FALSE)=\"\",\"\",VLOOKUP($N37,Partnerek!$A$9:$K$108,11,FALSE))),\"\")","v":""},{"$f":"IFERROR(VLOOKUP(AJ37,ráták!$A$10:$AX$13,MATCH(Q37+T37+W37,ráták!$C$9:$AX$9,1)+2,FALSE),\"\")","v":""}]
[null,null,null,null,null,null,null,null,null,null,null,null,"",null,null,null,null,null,null,null,null,null,null,null,null,null,null,"",null,null,null,null,null,null,{"$f":"IFERROR(\nIF(VLOOKUP($M38,Partnerek!$A$9:$K$108,11,FALSE)=\"\",\"\",VLOOKUP($M38,Partnerek!$A$9:$K$108,11,FALSE)),\"\")","v":""},{"$f":"IFERROR(\nIF(RIGHT($A38,2)=\"BE\",\"HU\",\nIF(VLOOKUP($N38,Partnerek!$A$9:$K$108,11,FALSE)=\"\",\"\",VLOOKUP($N38,Partnerek!$A$9:$K$108,11,FALSE))),\"\")","v":""},{"$f":"IFERROR(VLOOKUP(AJ38,ráták!$A$10:$AX$13,MATCH(Q38+T38+W38,ráták!$C$9:$AX$9,1)+2,FALSE),\"\")","v":""}]
[null,null,null,null,null,null,null,null,null,null,null,null,"",null,null,null,null,null,null,null,null,null,null,null,null,null,null,"",null,null,null,null,null,null,{"$f":"IFERROR(\nIF(VLOOKUP($M39,Partnerek!$A$9:$K$108,11,FALSE)=\"\",\"\",VLOOKUP($M39,Partnerek!$A$9:$K$108,11,FALSE)),\"\")","v":""},{"$f":"IFERROR(\nIF(RIGHT($A39,2)=\"BE\",\"HU\",\nIF(VLOOKUP($N39,Partnerek!$A$9:$K$108,11,FALSE)=\"\",\"\",VLOOKUP($N39,Partnerek!$A$9:$K$108,11,FALSE))),\"\")","v":""},{"$f":"IFERROR(VLOOKUP(AJ39,ráták!$A$10:$AX$13,MATCH(Q39+T39+W39,ráták!$C$9:$AX$9,1)+2,FALSE),\"\")","v":""}]
[null,null,null,null,null,null,null,null,null,null,null,null,"",null,null,null,null,null,null,null,null,null,null,null,null,null,null,"",null,null,null,null,null,null,{"$f":"IFERROR(\nIF(VLOOKUP($M40,Partnerek!$A$9:$K$108,11,FALSE)=\"\",\"\",VLOOKUP($M40,Partnerek!$A$9:$K$108,11,FALSE)),\"\")","v":""},{"$f":"IFERROR(\nIF(RIGHT($A40,2)=\"BE\",\"HU\",\nIF(VLOOKUP($N40,Partnerek!$A$9:$K$108,11,FALSE)=\"\",\"\",VLOOKUP($N40,Partnerek!$A$9:$K$108,11,FALSE))),\"\")","v":""},{"$f":"IFERROR(VLOOKUP(AJ40,ráták!$A$10:$AX$13,MATCH(Q40+T40+W40,ráták!$C$9:$AX$9,1)+2,FALSE),\"\")","v":""}]
[null,null,null,null,null,null,null,null,null,null,null,null,"",null,null,null,null,null,null,null,null,null,null,null,null,null,null,"",null,null,null,null,null,null,{"$f":"IFERROR(\nIF(VLOOKUP($M41,Partnerek!$A$9:$K$108,11,FALSE)=\"\",\"\",VLOOKUP($M41,Partnerek!$A$9:$K$108,11,FALSE)),\"\")","v":""},{"$f":"IFERROR(\nIF(RIGHT($A41,2)=\"BE\",\"HU\",\nIF(VLOOKUP($N41,Partnerek!$A$9:$K$108,11,FALSE)=\"\",\"\",VLOOKUP($N41,Partnerek!$A$9:$K$108,11,FALSE))),\"\")","v":""},{"$f":"IFERROR(VLOOKUP(AJ41,ráták!$A$10:$AX$13,MATCH(Q41+T41+W41,ráták!$C$9:$AX$9,1)+2,FALSE),\"\")","v":""}]
[null,null,null,null,null,null,null,null,null,null,null,null,"",null,null,null,null,null,null,null,null,null,null,null,null,null,null,"",null,null,null,null,null,null,{"$f":"IFERROR(\nIF(VLOOKUP($M42,Partnerek!$A$9:$K$108,11,FALSE)=\"\",\"\",VLOOKUP($M42,Partnerek!$A$9:$K$108,11,FALSE)),\"\")","v":""},{"$f":"IFERROR(\nIF(RIGHT($A42,2)=\"BE\",\"HU\",\nIF(VLOOKUP($N42,Partnerek!$A$9:$K$108,11,FALSE)=\"\",\"\",VLOOKUP($N42,Partnerek!$A$9:$K$108,11,FALSE))),\"\")","v":""},{"$f":"IFERROR(VLOOKUP(AJ42,ráták!$A$10:$AX$13,MATCH(Q42+T42+W42,ráták!$C$9:$AX$9,1)+2,FALSE),\"\")","v":""}]
[null,null,null,null,null,null,null,null,null,null,null,null,"",null,null,null,null,null,null,null,null,null,null,null,null,null,null,"",null,null,null,null,null,null,{"$f":"IFERROR(\nIF(VLOOKUP($M43,Partnerek!$A$9:$K$108,11,FALSE)=\"\",\"\",VLOOKUP($M43,Partnerek!$A$9:$K$108,11,FALSE)),\"\")","v":""},{"$f":"IFERROR(\nIF(RIGHT($A43,2)=\"BE\",\"HU\",\nIF(VLOOKUP($N43,Partnerek!$A$9:$K$108,11,FALSE)=\"\",\"\",VLOOKUP($N43,Partnerek!$A$9:$K$108,11,FALSE))),\"\")","v":""},{"$f":"IFERROR(VLOOKUP(AJ43,ráták!$A$10:$AX$13,MATCH(Q43+T43+W43,ráták!$C$9:$AX$9,1)+2,FALSE),\"\")","v":""}]
[null,null,null,null,null,null,null,null,null,null,null,null,"",null,null,null,null,null,null,null,null,null,null,null,null,null,null,"",null,null,null,null,null,null,{"$f":"IFERROR(\nIF(VLOOKUP($M44,Partnerek!$A$9:$K$108,11,FALSE)=\"\",\"\",VLOOKUP($M44,Partnerek!$A$9:$K$108,11,FALSE)),\"\")","v":""},{"$f":"IFERROR(\nIF(RIGHT($A44,2)=\"BE\",\"HU\",\nIF(VLOOKUP($N44,Partnerek!$A$9:$K$108,11,FALSE)=\"\",\"\",VLOOKUP($N44,Partnerek!$A$9:$K$108,11,FALSE))),\"\")","v":""},{"$f":"IFERROR(VLOOKUP(AJ44,ráták!$A$10:$AX$13,MATCH(Q44+T44+W44,ráták!$C$9:$AX$9,1)+2,FALSE),\"\")","v":""}]
[null,null,null,null,null,null,null,null,null,null,null,null,"",null,null,null,null,null,null,null,null,null,null,null,null,null,null,"",null,null,null,null,null,null,{"$f":"IFERROR(\nIF(VLOOKUP($M45,Partnerek!$A$9:$K$108,11,FALSE)=\"\",\"\",VLOOKUP($M45,Partnerek!$A$9:$K$108,11,FALSE)),\"\")","v":""},{"$f":"IFERROR(\nIF(RIGHT($A45,2)=\"BE\",\"HU\",\nIF(VLOOKUP($N45,Partnerek!$A$9:$K$108,11,FALSE)=\"\",\"\",VLOOKUP($N45,Partnerek!$A$9:$K$108,11,FALSE))),\"\")","v":""},{"$f":"IFERROR(VLOOKUP(AJ45,ráták!$A$10:$AX$13,MATCH(Q45+T45+W45,ráták!$C$9:$AX$9,1)+2,FALSE),\"\")","v":""}]
[null,null,null,null,null,null,null,null,null,null,null,null,"",null,null,null,null,null,null,null,null,null,null,null,null,null,null,"",null,null,null,null,null,null,{"$f":"IFERROR(\nIF(VLOOKUP($M46,Partnerek!$A$9:$K$108,11,FALSE)=\"\",\"\",VLOOKUP($M46,Partnerek!$A$9:$K$108,11,FALSE)),\"\")","v":""},{"$f":"IFERROR(\nIF(RIGHT($A46,2)=\"BE\",\"HU\",\nIF(VLOOKUP($N46,Partnerek!$A$9:$K$108,11,FALSE)=\"\",\"\",VLOOKUP($N46,Partnerek!$A$9:$K$108,11,FALSE))),\"\")","v":""},{"$f":"IFERROR(VLOOKUP(AJ46,ráták!$A$10:$AX$13,MATCH(Q46+T46+W46,ráták!$C$9:$AX$9,1)+2,FALSE),\"\")","v":""}]
[null,null,null,null,null,null,null,null,null,null,null,null,"",null,null,null,null,null,null,null,null,null,null,null,null,null,null,"",null,null,null,null,null,null,{"$f":"IFERROR(\nIF(VLOOKUP($M47,Partnerek!$A$9:$K$108,11,FALSE)=\"\",\"\",VLOOKUP($M47,Partnerek!$A$9:$K$108,11,FALSE)),\"\")","v":""},{"$f":"IFERROR(\nIF(RIGHT($A47,2)=\"BE\",\"HU\",\nIF(VLOOKUP($N47,Partnerek!$A$9:$K$108,11,FALSE)=\"\",\"\",VLOOKUP($N47,Partnerek!$A$9:$K$108,11,FALSE))),\"\")","v":""},{"$f":"IFERROR(VLOOKUP(AJ47,ráták!$A$10:$AX$13,MATCH(Q47+T47+W47,ráták!$C$9:$AX$9,1)+2,FALSE),\"\")","v":""}]
[null,null,null,null,null,null,null,null,null,null,null,null,"",null,null,null,null,null,null,null,null,null,null,null,null,null,null,"",null,null,null,null,null,null,{"$f":"IFERROR(\nIF(VLOOKUP($M48,Partnerek!$A$9:$K$108,11,FALSE)=\"\",\"\",VLOOKUP($M48,Partnerek!$A$9:$K$108,11,FALSE)),\"\")","v":""},{"$f":"IFERROR(\nIF(RIGHT($A48,2)=\"BE\",\"HU\",\nIF(VLOOKUP($N48,Partnerek!$A$9:$K$108,11,FALSE)=\"\",\"\",VLOOKUP($N48,Partnerek!$A$9:$K$108,11,FALSE))),\"\")","v":""},{"$f":"IFERROR(VLOOKUP(AJ48,ráták!$A$10:$AX$13,MATCH(Q48+T48+W48,ráták!$C$9:$AX$9,1)+2,FALSE),\"\")","v":""}]
[null,null,null,null,null,null,null,null,null,null,null,null,"",null,null,null,null,null,null,null,null,null,null,null,null,null,null,"",null,null,null,null,null,null,{"$f":"IFERROR(\nIF(VLOOKUP($M49,Partnerek!$A$9:$K$108,11,FALSE)=\"\",\"\",VLOOKUP($M49,Partnerek!$A$9:$K$108,11,FALSE)),\"\")","v":""},{"$f":"IFERROR(\nIF(RIGHT($A49,2)=\"BE\",\"HU\",\nIF(VLOOKUP($N49,Partnerek!$A$9:$K$108,11,FALSE)=\"\",\"\",VLOOKUP($N49,Partnerek!$A$9:$K$108,11,FALSE))),\"\")","v":""},{"$f":"IFERROR(VLOOKUP(AJ49,ráták!$A$10:$AX$13,MATCH(Q49+T49+W49,ráták!$C$9:$AX$9,1)+2,FALSE),\"\")","v":""}]
[null,null,null,null,null,null,null,null,null,null,null,null,"",null,null,null,null,null,null,null,null,null,null,null,null,null,null,"",null,null,null,null,null,null,{"$f":"IFERROR(\nIF(VLOOKUP($M50,Partnerek!$A$9:$K$108,11,FALSE)=\"\",\"\",VLOOKUP($M50,Partnerek!$A$9:$K$108,11,FALSE)),\"\")","v":""},{"$f":"IFERROR(\nIF(RIGHT($A50,2)=\"BE\",\"HU\",\nIF(VLOOKUP($N50,Partnerek!$A$9:$K$108,11,FALSE)=\"\",\"\",VLOOKUP($N50,Partnerek!$A$9:$K$108,11,FALSE))),\"\")","v":""},{"$f":"IFERROR(VLOOKUP(AJ50,ráták!$A$10:$AX$13,MATCH(Q50+T50+W50,ráták!$C$9:$AX$9,1)+2,FALSE),\"\")","v":""}]
[null,null,null,null,null,null,null,null,null,null,null,null,"",null,null,null,null,null,null,null,null,null,null,null,null,null,null,"",null,null,null,null,null,null,{"$f":"IFERROR(\nIF(VLOOKUP($M51,Partnerek!$A$9:$K$108,11,FALSE)=\"\",\"\",VLOOKUP($M51,Partnerek!$A$9:$K$108,11,FALSE)),\"\")","v":""},{"$f":"IFERROR(\nIF(RIGHT($A51,2)=\"BE\",\"HU\",\nIF(VLOOKUP($N51,Partnerek!$A$9:$K$108,11,FALSE)=\"\",\"\",VLOOKUP($N51,Partnerek!$A$9:$K$108,11,FALSE))),\"\")","v":""},{"$f":"IFERROR(VLOOKUP(AJ51,ráták!$A$10:$AX$13,MATCH(Q51+T51+W51,ráták!$C$9:$AX$9,1)+2,FALSE),\"\")","v":""}]
[null,null,null,null,null,null,null,null,null,null,null,null,"",null,null,null,null,null,null,null,null,null,null,null,null,null,null,"",null,null,null,null,null,null,{"$f":"IFERROR(\nIF(VLOOKUP($M52,Partnerek!$A$9:$K$108,11,FALSE)=\"\",\"\",VLOOKUP($M52,Partnerek!$A$9:$K$108,11,FALSE)),\"\")","v":""},{"$f":"IFERROR(\nIF(RIGHT($A52,2)=\"BE\",\"HU\",\nIF(VLOOKUP($N52,Partnerek!$A$9:$K$108,11,FALSE)=\"\",\"\",VLOOKUP($N52,Partnerek!$A$9:$K$108,11,FALSE))),\"\")","v":""},{"$f":"IFERROR(VLOOKUP(AJ52,ráták!$A$10:$AX$13,MATCH(Q52+T52+W52,ráták!$C$9:$AX$9,1)+2,FALSE),\"\")","v":""}]
[null,null,null,null,null,null,null,null,null,null,null,null,"",null,null,null,null,null,null,null,null,null,null,null,null,null,null,"",null,null,null,null,null,null,{"$f":"IFERROR(\nIF(VLOOKUP($M53,Partnerek!$A$9:$K$108,11,FALSE)=\"\",\"\",VLOOKUP($M53,Partnerek!$A$9:$K$108,11,FALSE)),\"\")","v":""},{"$f":"IFERROR(\nIF(RIGHT($A53,2)=\"BE\",\"HU\",\nIF(VLOOKUP($N53,Partnerek!$A$9:$K$108,11,FALSE)=\"\",\"\",VLOOKUP($N53,Partnerek!$A$9:$K$108,11,FALSE))),\"\")","v":""},{"$f":"IFERROR(VLOOKUP(AJ53,ráták!$A$10:$AX$13,MATCH(Q53+T53+W53,ráták!$C$9:$AX$9,1)+2,FALSE),\"\")","v":""}]
[null,null,null,null,null,null,null,null,null,null,null,null,"",null,null,null,null,null,null,null,null,null,null,null,null,null,null,"",null,null,null,null,null,null,{"$f":"IFERROR(\nIF(VLOOKUP($M54,Partnerek!$A$9:$K$108,11,FALSE)=\"\",\"\",VLOOKUP($M54,Partnerek!$A$9:$K$108,11,FALSE)),\"\")","v":""},{"$f":"IFERROR(\nIF(RIGHT($A54,2)=\"BE\",\"HU\",\nIF(VLOOKUP($N54,Partnerek!$A$9:$K$108,11,FALSE)=\"\",\"\",VLOOKUP($N54,Partnerek!$A$9:$K$108,11,FALSE))),\"\")","v":""},{"$f":"IFERROR(VLOOKUP(AJ54,ráták!$A$10:$AX$13,MATCH(Q54+T54+W54,ráták!$C$9:$AX$9,1)+2,FALSE),\"\")","v":""}]
[null,null,null,null,null,null,null,null,null,null,null,null,"",null,null,null,null,null,null,null,null,null,null,null,null,null,null,"",null,null,null,null,null,null,{"$f":"IFERROR(\nIF(VLOOKUP($M55,Partnerek!$A$9:$K$108,11,FALSE)=\"\",\"\",VLOOKUP($M55,Partnerek!$A$9:$K$108,11,FALSE)),\"\")","v":""},{"$f":"IFERROR(\nIF(RIGHT($A55,2)=\"BE\",\"HU\",\nIF(VLOOKUP($N55,Partnerek!$A$9:$K$108,11,FALSE)=\"\",\"\",VLOOKUP($N55,Partnerek!$A$9:$K$108,11,FALSE))),\"\")","v":""},{"$f":"IFERROR(VLOOKUP(AJ55,ráták!$A$10:$AX$13,MATCH(Q55+T55+W55,ráták!$C$9:$AX$9,1)+2,FALSE),\"\")","v":""}]
[null,null,null,null,null,null,null,null,null,null,null,null,"",null,null,null,null,null,null,null,null,null,null,null,null,null,null,"",null,null,null,null,null,null,{"$f":"IFERROR(\nIF(VLOOKUP($M56,Partnerek!$A$9:$K$108,11,FALSE)=\"\",\"\",VLOOKUP($M56,Partnerek!$A$9:$K$108,11,FALSE)),\"\")","v":""},{"$f":"IFERROR(\nIF(RIGHT($A56,2)=\"BE\",\"HU\",\nIF(VLOOKUP($N56,Partnerek!$A$9:$K$108,11,FALSE)=\"\",\"\",VLOOKUP($N56,Partnerek!$A$9:$K$108,11,FALSE))),\"\")","v":""},{"$f":"IFERROR(VLOOKUP(AJ56,ráták!$A$10:$AX$13,MATCH(Q56+T56+W56,ráták!$C$9:$AX$9,1)+2,FALSE),\"\")","v":""}]
[null,null,null,null,null,null,null,null,null,null,null,null,"",null,null,null,null,null,null,null,null,null,null,null,null,null,null,"",null,null,null,null,null,null,{"$f":"IFERROR(\nIF(VLOOKUP($M57,Partnerek!$A$9:$K$108,11,FALSE)=\"\",\"\",VLOOKUP($M57,Partnerek!$A$9:$K$108,11,FALSE)),\"\")","v":""},{"$f":"IFERROR(\nIF(RIGHT($A57,2)=\"BE\",\"HU\",\nIF(VLOOKUP($N57,Partnerek!$A$9:$K$108,11,FALSE)=\"\",\"\",VLOOKUP($N57,Partnerek!$A$9:$K$108,11,FALSE))),\"\")","v":""},{"$f":"IFERROR(VLOOKUP(AJ57,ráták!$A$10:$AX$13,MATCH(Q57+T57+W57,ráták!$C$9:$AX$9,1)+2,FALSE),\"\")","v":""}]
[null,null,null,null,null,null,null,null,null,null,null,null,"",null,null,null,null,null,null,null,null,null,null,null,null,null,null,"",null,null,null,null,null,null,{"$f":"IFERROR(\nIF(VLOOKUP($M58,Partnerek!$A$9:$K$108,11,FALSE)=\"\",\"\",VLOOKUP($M58,Partnerek!$A$9:$K$108,11,FALSE)),\"\")","v":""},{"$f":"IFERROR(\nIF(RIGHT($A58,2)=\"BE\",\"HU\",\nIF(VLOOKUP($N58,Partnerek!$A$9:$K$108,11,FALSE)=\"\",\"\",VLOOKUP($N58,Partnerek!$A$9:$K$108,11,FALSE))),\"\")","v":""},{"$f":"IFERROR(VLOOKUP(AJ58,ráták!$A$10:$AX$13,MATCH(Q58+T58+W58,ráták!$C$9:$AX$9,1)+2,FALSE),\"\")","v":""}]
[null,null,null,null,null,null,null,null,null,null,null,null,"",null,null,null,null,null,null,null,null,null,null,null,null,null,null,"",null,null,null,null,null,null,{"$f":"IFERROR(\nIF(VLOOKUP($M59,Partnerek!$A$9:$K$108,11,FALSE)=\"\",\"\",VLOOKUP($M59,Partnerek!$A$9:$K$108,11,FALSE)),\"\")","v":""},{"$f":"IFERROR(\nIF(RIGHT($A59,2)=\"BE\",\"HU\",\nIF(VLOOKUP($N59,Partnerek!$A$9:$K$108,11,FALSE)=\"\",\"\",VLOOKUP($N59,Partnerek!$A$9:$K$108,11,FALSE))),\"\")","v":""},{"$f":"IFERROR(VLOOKUP(AJ59,ráták!$A$10:$AX$13,MATCH(Q59+T59+W59,ráták!$C$9:$AX$9,1)+2,FALSE),\"\")","v":""}]
[null,null,null,null,null,null,null,null,null,null,null,null,"",null,null,null,null,null,null,null,null,null,null,null,null,null,null,"",null,null,null,null,null,null,{"$f":"IFERROR(\nIF(VLOOKUP($M60,Partnerek!$A$9:$K$108,11,FALSE)=\"\",\"\",VLOOKUP($M60,Partnerek!$A$9:$K$108,11,FALSE)),\"\")","v":""},{"$f":"IFERROR(\nIF(RIGHT($A60,2)=\"BE\",\"HU\",\nIF(VLOOKUP($N60,Partnerek!$A$9:$K$108,11,FALSE)=\"\",\"\",VLOOKUP($N60,Partnerek!$A$9:$K$108,11,FALSE))),\"\")","v":""},{"$f":"IFERROR(VLOOKUP(AJ60,ráták!$A$10:$AX$13,MATCH(Q60+T60+W60,ráták!$C$9:$AX$9,1)+2,FALSE),\"\")","v":""}]
[null,null,null,null,null,null,null,null,null,null,null,null,"",null,null,null,null,null,null,null,null,null,null,null,null,null,null,"",null,null,null,null,null,null,{"$f":"IFERROR(\nIF(VLOOKUP($M61,Partnerek!$A$9:$K$108,11,FALSE)=\"\",\"\",VLOOKUP($M61,Partnerek!$A$9:$K$108,11,FALSE)),\"\")","v":""},{"$f":"IFERROR(\nIF(RIGHT($A61,2)=\"BE\",\"HU\",\nIF(VLOOKUP($N61,Partnerek!$A$9:$K$108,11,FALSE)=\"\",\"\",VLOOKUP($N61,Partnerek!$A$9:$K$108,11,FALSE))),\"\")","v":""},{"$f":"IFERROR(VLOOKUP(AJ61,ráták!$A$10:$AX$13,MATCH(Q61+T61+W61,ráták!$C$9:$AX$9,1)+2,FALSE),\"\")","v":""}]
[null,null,null,null,null,null,null,null,null,null,null,null,"",null,null,null,null,null,null,null,null,null,null,null,null,null,null,"",null,null,null,null,null,null,{"$f":"IFERROR(\nIF(VLOOKUP($M62,Partnerek!$A$9:$K$108,11,FALSE)=\"\",\"\",VLOOKUP($M62,Partnerek!$A$9:$K$108,11,FALSE)),\"\")","v":""},{"$f":"IFERROR(\nIF(RIGHT($A62,2)=\"BE\",\"HU\",\nIF(VLOOKUP($N62,Partnerek!$A$9:$K$108,11,FALSE)=\"\",\"\",VLOOKUP($N62,Partnerek!$A$9:$K$108,11,FALSE))),\"\")","v":""},{"$f":"IFERROR(VLOOKUP(AJ62,ráták!$A$10:$AX$13,MATCH(Q62+T62+W62,ráták!$C$9:$AX$9,1)+2,FALSE),\"\")","v":""}]
[null,null,null,null,null,null,null,null,null,null,null,null,"",null,null,null,null,null,null,null,null,null,null,null,null,null,null,"",null,null,null,null,null,null,{"$f":"IFERROR(\nIF(VLOOKUP($M63,Partnerek!$A$9:$K$108,11,FALSE)=\"\",\"\",VLOOKUP($M63,Partnerek!$A$9:$K$108,11,FALSE)),\"\")","v":""},{"$f":"IFERROR(\nIF(RIGHT($A63,2)=\"BE\",\"HU\",\nIF(VLOOKUP($N63,Partnerek!$A$9:$K$108,11,FALSE)=\"\",\"\",VLOOKUP($N63,Partnerek!$A$9:$K$108,11,FALSE))),\"\")","v":""},{"$f":"IFERROR(VLOOKUP(AJ63,ráták!$A$10:$AX$13,MATCH(Q63+T63+W63,ráták!$C$9:$AX$9,1)+2,FALSE),\"\")","v":""}]
[null,null,null,null,null,null,null,null,null,null,null,null,"",null,null,null,null,null,null,null,null,null,null,null,null,null,null,"",null,null,null,null,null,null,{"$f":"IFERROR(\nIF(VLOOKUP($M64,Partnerek!$A$9:$K$108,11,FALSE)=\"\",\"\",VLOOKUP($M64,Partnerek!$A$9:$K$108,11,FALSE)),\"\")","v":""},{"$f":"IFERROR(\nIF(RIGHT($A64,2)=\"BE\",\"HU\",\nIF(VLOOKUP($N64,Partnerek!$A$9:$K$108,11,FALSE)=\"\",\"\",VLOOKUP($N64,Partnerek!$A$9:$K$108,11,FALSE))),\"\")","v":""},{"$f":"IFERROR(VLOOKUP(AJ64,ráták!$A$10:$AX$13,MATCH(Q64+T64+W64,ráták!$C$9:$AX$9,1)+2,FALSE),\"\")","v":""}]
[null,null,null,null,null,null,null,null,null,null,null,null,"",null,null,null,null,null,null,null,null,null,null,null,null,null,null,"",null,null,null,null,null,null,{"$f":"IFERROR(\nIF(VLOOKUP($M65,Partnerek!$A$9:$K$108,11,FALSE)=\"\",\"\",VLOOKUP($M65,Partnerek!$A$9:$K$108,11,FALSE)),\"\")","v":""},{"$f":"IFERROR(\nIF(RIGHT($A65,2)=\"BE\",\"HU\",\nIF(VLOOKUP($N65,Partnerek!$A$9:$K$108,11,FALSE)=\"\",\"\",VLOOKUP($N65,Partnerek!$A$9:$K$108,11,FALSE))),\"\")","v":""},{"$f":"IFERROR(VLOOKUP(AJ65,ráták!$A$10:$AX$13,MATCH(Q65+T65+W65,ráták!$C$9:$AX$9,1)+2,FALSE),\"\")","v":""}]
[null,null,null,null,null,null,null,null,null,null,null,null,"",null,null,null,null,null,null,null,null,null,null,null,null,null,null,"",null,null,null,null,null,null,{"$f":"IFERROR(\nIF(VLOOKUP($M66,Partnerek!$A$9:$K$108,11,FALSE)=\"\",\"\",VLOOKUP($M66,Partnerek!$A$9:$K$108,11,FALSE)),\"\")","v":""},{"$f":"IFERROR(\nIF(RIGHT($A66,2)=\"BE\",\"HU\",\nIF(VLOOKUP($N66,Partnerek!$A$9:$K$108,11,FALSE)=\"\",\"\",VLOOKUP($N66,Partnerek!$A$9:$K$108,11,FALSE))),\"\")","v":""},{"$f":"IFERROR(VLOOKUP(AJ66,ráták!$A$10:$AX$13,MATCH(Q66+T66+W66,ráták!$C$9:$AX$9,1)+2,FALSE),\"\")","v":""}]
[null,null,null,null,null,null,null,null,null,null,null,null,"",null,null,null,null,null,null,null,null,null,null,null,null,null,null,"",null,null,null,null,null,null,{"$f":"IFERROR(\nIF(VLOOKUP($M67,Partnerek!$A$9:$K$108,11,FALSE)=\"\",\"\",VLOOKUP($M67,Partnerek!$A$9:$K$108,11,FALSE)),\"\")","v":""},{"$f":"IFERROR(\nIF(RIGHT($A67,2)=\"BE\",\"HU\",\nIF(VLOOKUP($N67,Partnerek!$A$9:$K$108,11,FALSE)=\"\",\"\",VLOOKUP($N67,Partnerek!$A$9:$K$108,11,FALSE))),\"\")","v":""},{"$f":"IFERROR(VLOOKUP(AJ67,ráták!$A$10:$AX$13,MATCH(Q67+T67+W67,ráták!$C$9:$AX$9,1)+2,FALSE),\"\")","v":""}]
[null,null,null,null,null,null,null,null,null,null,null,null,"",null,null,null,null,null,null,null,null,null,null,null,null,null,null,"",null,null,null,null,null,null,{"$f":"IFERROR(\nIF(VLOOKUP($M68,Partnerek!$A$9:$K$108,11,FALSE)=\"\",\"\",VLOOKUP($M68,Partnerek!$A$9:$K$108,11,FALSE)),\"\")","v":""},{"$f":"IFERROR(\nIF(RIGHT($A68,2)=\"BE\",\"HU\",\nIF(VLOOKUP($N68,Partnerek!$A$9:$K$108,11,FALSE)=\"\",\"\",VLOOKUP($N68,Partnerek!$A$9:$K$108,11,FALSE))),\"\")","v":""},{"$f":"IFERROR(VLOOKUP(AJ68,ráták!$A$10:$AX$13,MATCH(Q68+T68+W68,ráták!$C$9:$AX$9,1)+2,FALSE),\"\")","v":""}]
[null,null,null,null,null,null,null,null,null,null,null,null,"",null,null,null,null,null,null,null,null,null,null,null,null,null,null,"",null,null,null,null,null,null,{"$f":"IFERROR(\nIF(VLOOKUP($M69,Partnerek!$A$9:$K$108,11,FALSE)=\"\",\"\",VLOOKUP($M69,Partnerek!$A$9:$K$108,11,FALSE)),\"\")","v":""},{"$f":"IFERROR(\nIF(RIGHT($A69,2)=\"BE\",\"HU\",\nIF(VLOOKUP($N69,Partnerek!$A$9:$K$108,11,FALSE)=\"\",\"\",VLOOKUP($N69,Partnerek!$A$9:$K$108,11,FALSE))),\"\")","v":""},{"$f":"IFERROR(VLOOKUP(AJ69,ráták!$A$10:$AX$13,MATCH(Q69+T69+W69,ráták!$C$9:$AX$9,1)+2,FALSE),\"\")","v":""}]
[null,null,null,null,null,null,null,null,null,null,null,null,"",null,null,null,null,null,null,null,null,null,null,null,null,null,null,"",null,null,null,null,null,null,{"$f":"IFERROR(\nIF(VLOOKUP($M70,Partnerek!$A$9:$K$108,11,FALSE)=\"\",\"\",VLOOKUP($M70,Partnerek!$A$9:$K$108,11,FALSE)),\"\")","v":""},{"$f":"IFERROR(\nIF(RIGHT($A70,2)=\"BE\",\"HU\",\nIF(VLOOKUP($N70,Partnerek!$A$9:$K$108,11,FALSE)=\"\",\"\",VLOOKUP($N70,Partnerek!$A$9:$K$108,11,FALSE))),\"\")","v":""},{"$f":"IFERROR(VLOOKUP(AJ70,ráták!$A$10:$AX$13,MATCH(Q70+T70+W70,ráták!$C$9:$AX$9,1)+2,FALSE),\"\")","v":""}]
[null,null,null,null,null,null,null,null,null,null,null,null,"",null,null,null,null,null,null,null,null,null,null,null,null,null,null,"",null,null,null,null,null,null,{"$f":"IFERROR(\nIF(VLOOKUP($M71,Partnerek!$A$9:$K$108,11,FALSE)=\"\",\"\",VLOOKUP($M71,Partnerek!$A$9:$K$108,11,FALSE)),\"\")","v":""},{"$f":"IFERROR(\nIF(RIGHT($A71,2)=\"BE\",\"HU\",\nIF(VLOOKUP($N71,Partnerek!$A$9:$K$108,11,FALSE)=\"\",\"\",VLOOKUP($N71,Partnerek!$A$9:$K$108,11,FALSE))),\"\")","v":""},{"$f":"IFERROR(VLOOKUP(AJ71,ráták!$A$10:$AX$13,MATCH(Q71+T71+W71,ráták!$C$9:$AX$9,1)+2,FALSE),\"\")","v":""}]
[null,null,null,null,null,null,null,null,null,null,null,null,"",null,null,null,null,null,null,null,null,null,null,null,null,null,null,"",null,null,null,null,null,null,{"$f":"IFERROR(\nIF(VLOOKUP($M72,Partnerek!$A$9:$K$108,11,FALSE)=\"\",\"\",VLOOKUP($M72,Partnerek!$A$9:$K$108,11,FALSE)),\"\")","v":""},{"$f":"IFERROR(\nIF(RIGHT($A72,2)=\"BE\",\"HU\",\nIF(VLOOKUP($N72,Partnerek!$A$9:$K$108,11,FALSE)=\"\",\"\",VLOOKUP($N72,Partnerek!$A$9:$K$108,11,FALSE))),\"\")","v":""},{"$f":"IFERROR(VLOOKUP(AJ72,ráták!$A$10:$AX$13,MATCH(Q72+T72+W72,ráták!$C$9:$AX$9,1)+2,FALSE),\"\")","v":""}]
[null,null,null,null,null,null,null,null,null,null,null,null,{"$f":"IF((IFERROR(RIGHT($A73,2),\"\")=\"KI\"),Erasmus_kod,\"\")","v":""},null,null,null,null,null,null,null,null,null,null,null,null,null,null,"",null,null,null,null,null,null,{"$f":"IFERROR(\nIF(VLOOKUP($M73,Partnerek!$A$9:$K$108,11,FALSE)=\"\",\"\",VLOOKUP($M73,Partnerek!$A$9:$K$108,11,FALSE)),\"\")","v":""},{"$f":"IFERROR(\nIF(RIGHT($A73,2)=\"BE\",\"HU\",\nIF(VLOOKUP($N73,Partnerek!$A$9:$K$108,11,FALSE)=\"\",\"\",VLOOKUP($N73,Partnerek!$A$9:$K$108,11,FALSE))),\"\")","v":""},{"$f":"IFERROR(VLOOKUP(AJ73,ráták!$A$10:$AX$13,MATCH(Q73+T73+W73,ráták!$C$9:$AX$9,1)+2,FALSE),\"\")","v":""}]
[null,null,null,null,null,null,null,null,null,null,null,null,"",null,null,null,null,null,null,null,null,null,null,null,null,null,null,{"$f":"IFERROR(\n   IF( ((RIGHT(A74,2)=\"KI\")*(AI74=\"HU\")*(AJ74<>\"HU\"))+((RIGHT(A74,2)=\"BE\")*(AJ74=\"HU\")*(AJ74=\"HU\")),  IF(A74<>\"\",AK74,\"\"),\"\"),\"\")","v":""},null,null,null,null,null,null,{"$f":"IFERROR(\nIF(VLOOKUP($M74,Partnerek!$A$9:$K$108,11,FALSE)=\"\",\"\",VLOOKUP($M74,Partnerek!$A$9:$K$108,11,FALSE)),\"\")","v":""},{"$f":"IFERROR(\nIF(RIGHT($A74,2)=\"BE\",\"HU\",\nIF(VLOOKUP($N74,Partnerek!$A$9:$K$108,11,FALSE)=\"\",\"\",VLOOKUP($N74,Partnerek!$A$9:$K$108,11,FALSE))),\"\")","v":""},{"$f":"IFERROR(VLOOKUP(AJ74,ráták!$A$10:$AX$13,MATCH(Q74+T74+W74,ráták!$C$9:$AX$9,1)+2,FALSE),\"\")","v":""}]
[null,null,null,null,null,null,null,null,null,null,null,null,"",null,null,null,null,null,null,null,null,null,null,null,null,null,null,"",null,null,null,null,null,null,{"$f":"IFERROR(\nIF(VLOOKUP($M75,Partnerek!$A$9:$K$108,11,FALSE)=\"\",\"\",VLOOKUP($M75,Partnerek!$A$9:$K$108,11,FALSE)),\"\")","v":""},{"$f":"IFERROR(\nIF(RIGHT($A75,2)=\"BE\",\"HU\",\nIF(VLOOKUP($N75,Partnerek!$A$9:$K$108,11,FALSE)=\"\",\"\",VLOOKUP($N75,Partnerek!$A$9:$K$108,11,FALSE))),\"\")","v":""},{"$f":"IFERROR(VLOOKUP(AJ75,ráták!$A$10:$AX$13,MATCH(Q75+T75+W75,ráták!$C$9:$AX$9,1)+2,FALSE),\"\")","v":""}]
[null,null,null,null,null,null,null,null,null,null,null,null,"",null,null,null,null,null,null,null,null,null,null,null,null,null,null,"",null,null,null,null,null,null,{"$f":"IFERROR(\nIF(VLOOKUP($M76,Partnerek!$A$9:$K$108,11,FALSE)=\"\",\"\",VLOOKUP($M76,Partnerek!$A$9:$K$108,11,FALSE)),\"\")","v":""},{"$f":"IFERROR(\nIF(RIGHT($A76,2)=\"BE\",\"HU\",\nIF(VLOOKUP($N76,Partnerek!$A$9:$K$108,11,FALSE)=\"\",\"\",VLOOKUP($N76,Partnerek!$A$9:$K$108,11,FALSE))),\"\")","v":""},{"$f":"IFERROR(VLOOKUP(AJ76,ráták!$A$10:$AX$13,MATCH(Q76+T76+W76,ráták!$C$9:$AX$9,1)+2,FALSE),\"\")","v":""}]
[null,null,null,null,null,null,null,null,null,null,null,null,"",null,null,null,null,null,null,null,null,null,null,null,null,null,null,"",null,null,null,null,null,null,{"$f":"IFERROR(\nIF(VLOOKUP($M77,Partnerek!$A$9:$K$108,11,FALSE)=\"\",\"\",VLOOKUP($M77,Partnerek!$A$9:$K$108,11,FALSE)),\"\")","v":""},{"$f":"IFERROR(\nIF(RIGHT($A77,2)=\"BE\",\"HU\",\nIF(VLOOKUP($N77,Partnerek!$A$9:$K$108,11,FALSE)=\"\",\"\",VLOOKUP($N77,Partnerek!$A$9:$K$108,11,FALSE))),\"\")","v":""},{"$f":"IFERROR(VLOOKUP(AJ77,ráták!$A$10:$AX$13,MATCH(Q77+T77+W77,ráták!$C$9:$AX$9,1)+2,FALSE),\"\")","v":""}]
[null,null,null,null,null,null,null,null,null,null,null,null,"",null,null,null,null,null,null,null,null,null,null,null,null,null,null,"",null,null,null,null,null,null,{"$f":"IFERROR(\nIF(VLOOKUP($M78,Partnerek!$A$9:$K$108,11,FALSE)=\"\",\"\",VLOOKUP($M78,Partnerek!$A$9:$K$108,11,FALSE)),\"\")","v":""},{"$f":"IFERROR(\nIF(RIGHT($A78,2)=\"BE\",\"HU\",\nIF(VLOOKUP($N78,Partnerek!$A$9:$K$108,11,FALSE)=\"\",\"\",VLOOKUP($N78,Partnerek!$A$9:$K$108,11,FALSE))),\"\")","v":""},{"$f":"IFERROR(VLOOKUP(AJ78,ráták!$A$10:$AX$13,MATCH(Q78+T78+W78,ráták!$C$9:$AX$9,1)+2,FALSE),\"\")","v":""}]
[null,null,null,null,null,null,null,null,null,null,null,null,"",null,null,null,null,null,null,null,null,null,null,null,null,null,null,"",null,null,null,null,null,null,{"$f":"IFERROR(\nIF(VLOOKUP($M79,Partnerek!$A$9:$K$108,11,FALSE)=\"\",\"\",VLOOKUP($M79,Partnerek!$A$9:$K$108,11,FALSE)),\"\")","v":""},{"$f":"IFERROR(\nIF(RIGHT($A79,2)=\"BE\",\"HU\",\nIF(VLOOKUP($N79,Partnerek!$A$9:$K$108,11,FALSE)=\"\",\"\",VLOOKUP($N79,Partnerek!$A$9:$K$108,11,FALSE))),\"\")","v":""},{"$f":"IFERROR(VLOOKUP(AJ79,ráták!$A$10:$AX$13,MATCH(Q79+T79+W79,ráták!$C$9:$AX$9,1)+2,FALSE),\"\")","v":""}]
[null,null,null,null,null,null,null,null,null,null,null,null,"",null,null,null,null,null,null,null,null,null,null,null,null,null,null,"",null,null,null,null,null,null,{"$f":"IFERROR(\nIF(VLOOKUP($M80,Partnerek!$A$9:$K$108,11,FALSE)=\"\",\"\",VLOOKUP($M80,Partnerek!$A$9:$K$108,11,FALSE)),\"\")","v":""},{"$f":"IFERROR(\nIF(RIGHT($A80,2)=\"BE\",\"HU\",\nIF(VLOOKUP($N80,Partnerek!$A$9:$K$108,11,FALSE)=\"\",\"\",VLOOKUP($N80,Partnerek!$A$9:$K$108,11,FALSE))),\"\")","v":""},{"$f":"IFERROR(VLOOKUP(AJ80,ráták!$A$10:$AX$13,MATCH(Q80+T80+W80,ráták!$C$9:$AX$9,1)+2,FALSE),\"\")","v":""}]
[null,null,null,null,null,null,null,null,null,null,null,null,"",null,null,null,null,null,null,null,null,null,null,null,null,null,null,"",null,null,null,null,null,null,{"$f":"IFERROR(\nIF(VLOOKUP($M81,Partnerek!$A$9:$K$108,11,FALSE)=\"\",\"\",VLOOKUP($M81,Partnerek!$A$9:$K$108,11,FALSE)),\"\")","v":""},{"$f":"IFERROR(\nIF(RIGHT($A81,2)=\"BE\",\"HU\",\nIF(VLOOKUP($N81,Partnerek!$A$9:$K$108,11,FALSE)=\"\",\"\",VLOOKUP($N81,Partnerek!$A$9:$K$108,11,FALSE))),\"\")","v":""},{"$f":"IFERROR(VLOOKUP(AJ81,ráták!$A$10:$AX$13,MATCH(Q81+T81+W81,ráták!$C$9:$AX$9,1)+2,FALSE),\"\")","v":""}]
[null,null,null,null,null,null,null,null,null,null,null,null,"",null,null,null,null,null,null,null,null,null,null,null,null,null,null,"",null,null,null,null,null,null,{"$f":"IFERROR(\nIF(VLOOKUP($M82,Partnerek!$A$9:$K$108,11,FALSE)=\"\",\"\",VLOOKUP($M82,Partnerek!$A$9:$K$108,11,FALSE)),\"\")","v":""},{"$f":"IFERROR(\nIF(RIGHT($A82,2)=\"BE\",\"HU\",\nIF(VLOOKUP($N82,Partnerek!$A$9:$K$108,11,FALSE)=\"\",\"\",VLOOKUP($N82,Partnerek!$A$9:$K$108,11,FALSE))),\"\")","v":""},{"$f":"IFERROR(VLOOKUP(AJ82,ráták!$A$10:$AX$13,MATCH(Q82+T82+W82,ráták!$C$9:$AX$9,1)+2,FALSE),\"\")","v":""}]
[null,null,null,null,null,null,null,null,null,null,null,null,"",null,null,null,null,null,null,null,null,null,null,null,null,null,null,"",null,null,null,null,null,null,{"$f":"IFERROR(\nIF(VLOOKUP($M83,Partnerek!$A$9:$K$108,11,FALSE)=\"\",\"\",VLOOKUP($M83,Partnerek!$A$9:$K$108,11,FALSE)),\"\")","v":""},{"$f":"IFERROR(\nIF(RIGHT($A83,2)=\"BE\",\"HU\",\nIF(VLOOKUP($N83,Partnerek!$A$9:$K$108,11,FALSE)=\"\",\"\",VLOOKUP($N83,Partnerek!$A$9:$K$108,11,FALSE))),\"\")","v":""},{"$f":"IFERROR(VLOOKUP(AJ83,ráták!$A$10:$AX$13,MATCH(Q83+T83+W83,ráták!$C$9:$AX$9,1)+2,FALSE),\"\")","v":""}]
[null,null,null,null,null,null,null,null,null,null,null,null,"",null,null,null,null,null,null,null,null,null,null,null,null,null,null,"",null,null,null,null,null,null,{"$f":"IFERROR(\nIF(VLOOKUP($M84,Partnerek!$A$9:$K$108,11,FALSE)=\"\",\"\",VLOOKUP($M84,Partnerek!$A$9:$K$108,11,FALSE)),\"\")","v":""},{"$f":"IFERROR(\nIF(RIGHT($A84,2)=\"BE\",\"HU\",\nIF(VLOOKUP($N84,Partnerek!$A$9:$K$108,11,FALSE)=\"\",\"\",VLOOKUP($N84,Partnerek!$A$9:$K$108,11,FALSE))),\"\")","v":""},{"$f":"IFERROR(VLOOKUP(AJ84,ráták!$A$10:$AX$13,MATCH(Q84+T84+W84,ráták!$C$9:$AX$9,1)+2,FALSE),\"\")","v":""}]
[null,null,null,null,null,null,null,null,null,null,null,null,"",null,null,null,null,null,null,null,null,null,null,null,null,null,null,"",null,null,null,null,null,null,{"$f":"IFERROR(\nIF(VLOOKUP($M85,Partnerek!$A$9:$K$108,11,FALSE)=\"\",\"\",VLOOKUP($M85,Partnerek!$A$9:$K$108,11,FALSE)),\"\")","v":""},{"$f":"IFERROR(\nIF(RIGHT($A85,2)=\"BE\",\"HU\",\nIF(VLOOKUP($N85,Partnerek!$A$9:$K$108,11,FALSE)=\"\",\"\",VLOOKUP($N85,Partnerek!$A$9:$K$108,11,FALSE))),\"\")","v":""},{"$f":"IFERROR(VLOOKUP(AJ85,ráták!$A$10:$AX$13,MATCH(Q85+T85+W85,ráták!$C$9:$AX$9,1)+2,FALSE),\"\")","v":""}]
[null,null,null,null,null,null,null,null,null,null,null,null,"",null,null,null,null,null,null,null,null,null,null,null,null,null,null,"",null,null,null,null,null,null,{"$f":"IFERROR(\nIF(VLOOKUP($M86,Partnerek!$A$9:$K$108,11,FALSE)=\"\",\"\",VLOOKUP($M86,Partnerek!$A$9:$K$108,11,FALSE)),\"\")","v":""},{"$f":"IFERROR(\nIF(RIGHT($A86,2)=\"BE\",\"HU\",\nIF(VLOOKUP($N86,Partnerek!$A$9:$K$108,11,FALSE)=\"\",\"\",VLOOKUP($N86,Partnerek!$A$9:$K$108,11,FALSE))),\"\")","v":""},{"$f":"IFERROR(VLOOKUP(AJ86,ráták!$A$10:$AX$13,MATCH(Q86+T86+W86,ráták!$C$9:$AX$9,1)+2,FALSE),\"\")","v":""}]
[null,null,null,null,null,null,null,null,null,null,null,null,"",null,null,null,null,null,null,null,null,null,null,null,null,null,null,"",null,null,null,null,null,null,{"$f":"IFERROR(\nIF(VLOOKUP($M87,Partnerek!$A$9:$K$108,11,FALSE)=\"\",\"\",VLOOKUP($M87,Partnerek!$A$9:$K$108,11,FALSE)),\"\")","v":""},{"$f":"IFERROR(\nIF(RIGHT($A87,2)=\"BE\",\"HU\",\nIF(VLOOKUP($N87,Partnerek!$A$9:$K$108,11,FALSE)=\"\",\"\",VLOOKUP($N87,Partnerek!$A$9:$K$108,11,FALSE))),\"\")","v":""},{"$f":"IFERROR(VLOOKUP(AJ87,ráták!$A$10:$AX$13,MATCH(Q87+T87+W87,ráták!$C$9:$AX$9,1)+2,FALSE),\"\")","v":""}]
[null,null,null,null,null,null,null,null,null,null,null,null,"",null,null,null,null,null,null,null,null,null,null,null,null,null,null,"",null,null,null,null,null,null,{"$f":"IFERROR(\nIF(VLOOKUP($M88,Partnerek!$A$9:$K$108,11,FALSE)=\"\",\"\",VLOOKUP($M88,Partnerek!$A$9:$K$108,11,FALSE)),\"\")","v":""},{"$f":"IFERROR(\nIF(RIGHT($A88,2)=\"BE\",\"HU\",\nIF(VLOOKUP($N88,Partnerek!$A$9:$K$108,11,FALSE)=\"\",\"\",VLOOKUP($N88,Partnerek!$A$9:$K$108,11,FALSE))),\"\")","v":""},{"$f":"IFERROR(VLOOKUP(AJ88,ráták!$A$10:$AX$13,MATCH(Q88+T88+W88,ráták!$C$9:$AX$9,1)+2,FALSE),\"\")","v":""}]
[null,null,null,null,null,null,null,null,null,null,null,null,"",null,null,null,null,null,null,null,null,null,null,null,null,null,null,"",null,null,null,null,null,null,{"$f":"IFERROR(\nIF(VLOOKUP($M89,Partnerek!$A$9:$K$108,11,FALSE)=\"\",\"\",VLOOKUP($M89,Partnerek!$A$9:$K$108,11,FALSE)),\"\")","v":""},{"$f":"IFERROR(\nIF(RIGHT($A89,2)=\"BE\",\"HU\",\nIF(VLOOKUP($N89,Partnerek!$A$9:$K$108,11,FALSE)=\"\",\"\",VLOOKUP($N89,Partnerek!$A$9:$K$108,11,FALSE))),\"\")","v":""},{"$f":"IFERROR(VLOOKUP(AJ89,ráták!$A$10:$AX$13,MATCH(Q89+T89+W89,ráták!$C$9:$AX$9,1)+2,FALSE),\"\")","v":""}]
[null,null,null,null,null,null,null,null,null,null,null,null,"",null,null,null,null,null,null,null,null,null,null,null,null,null,null,"",null,null,null,null,null,null,{"$f":"IFERROR(\nIF(VLOOKUP($M90,Partnerek!$A$9:$K$108,11,FALSE)=\"\",\"\",VLOOKUP($M90,Partnerek!$A$9:$K$108,11,FALSE)),\"\")","v":""},{"$f":"IFERROR(\nIF(RIGHT($A90,2)=\"BE\",\"HU\",\nIF(VLOOKUP($N90,Partnerek!$A$9:$K$108,11,FALSE)=\"\",\"\",VLOOKUP($N90,Partnerek!$A$9:$K$108,11,FALSE))),\"\")","v":""},{"$f":"IFERROR(VLOOKUP(AJ90,ráták!$A$10:$AX$13,MATCH(Q90+T90+W90,ráták!$C$9:$AX$9,1)+2,FALSE),\"\")","v":""}]
[null,null,null,null,null,null,null,null,null,null,null,null,"",null,null,null,null,null,null,null,null,null,null,null,null,null,null,"",null,null,null,null,null,null,{"$f":"IFERROR(\nIF(VLOOKUP($M91,Partnerek!$A$9:$K$108,11,FALSE)=\"\",\"\",VLOOKUP($M91,Partnerek!$A$9:$K$108,11,FALSE)),\"\")","v":""},{"$f":"IFERROR(\nIF(RIGHT($A91,2)=\"BE\",\"HU\",\nIF(VLOOKUP($N91,Partnerek!$A$9:$K$108,11,FALSE)=\"\",\"\",VLOOKUP($N91,Partnerek!$A$9:$K$108,11,FALSE))),\"\")","v":""},{"$f":"IFERROR(VLOOKUP(AJ91,ráták!$A$10:$AX$13,MATCH(Q91+T91+W91,ráták!$C$9:$AX$9,1)+2,FALSE),\"\")","v":""}]
[null,null,null,null,null,null,null,null,null,null,null,null,"",null,null,null,null,null,null,null,null,null,null,null,null,null,null,"",null,null,null,null,null,null,{"$f":"IFERROR(\nIF(VLOOKUP($M92,Partnerek!$A$9:$K$108,11,FALSE)=\"\",\"\",VLOOKUP($M92,Partnerek!$A$9:$K$108,11,FALSE)),\"\")","v":""},{"$f":"IFERROR(\nIF(RIGHT($A92,2)=\"BE\",\"HU\",\nIF(VLOOKUP($N92,Partnerek!$A$9:$K$108,11,FALSE)=\"\",\"\",VLOOKUP($N92,Partnerek!$A$9:$K$108,11,FALSE))),\"\")","v":""},{"$f":"IFERROR(VLOOKUP(AJ92,ráták!$A$10:$AX$13,MATCH(Q92+T92+W92,ráták!$C$9:$AX$9,1)+2,FALSE),\"\")","v":""}]
[null,null,null,null,null,null,null,null,null,null,null,null,"",null,null,null,null,null,null,null,null,null,null,null,null,null,null,"",null,null,null,null,null,null,{"$f":"IFERROR(\nIF(VLOOKUP($M93,Partnerek!$A$9:$K$108,11,FALSE)=\"\",\"\",VLOOKUP($M93,Partnerek!$A$9:$K$108,11,FALSE)),\"\")","v":""},{"$f":"IFERROR(\nIF(RIGHT($A93,2)=\"BE\",\"HU\",\nIF(VLOOKUP($N93,Partnerek!$A$9:$K$108,11,FALSE)=\"\",\"\",VLOOKUP($N93,Partnerek!$A$9:$K$108,11,FALSE))),\"\")","v":""},{"$f":"IFERROR(VLOOKUP(AJ93,ráták!$A$10:$AX$13,MATCH(Q93+T93+W93,ráták!$C$9:$AX$9,1)+2,FALSE),\"\")","v":""}]
[null,null,null,null,null,null,null,null,null,null,null,null,"",null,null,null,null,null,null,null,null,null,null,null,null,null,null,"",null,null,null,null,null,null,{"$f":"IFERROR(\nIF(VLOOKUP($M94,Partnerek!$A$9:$K$108,11,FALSE)=\"\",\"\",VLOOKUP($M94,Partnerek!$A$9:$K$108,11,FALSE)),\"\")","v":""},{"$f":"IFERROR(\nIF(RIGHT($A94,2)=\"BE\",\"HU\",\nIF(VLOOKUP($N94,Partnerek!$A$9:$K$108,11,FALSE)=\"\",\"\",VLOOKUP($N94,Partnerek!$A$9:$K$108,11,FALSE))),\"\")","v":""},{"$f":"IFERROR(VLOOKUP(AJ94,ráták!$A$10:$AX$13,MATCH(Q94+T94+W94,ráták!$C$9:$AX$9,1)+2,FALSE),\"\")","v":""}]
[null,null,null,null,null,null,null,null,null,null,null,null,"",null,null,null,null,null,null,null,null,null,null,null,null,null,null,"",null,null,null,null,null,null,{"$f":"IFERROR(\nIF(VLOOKUP($M95,Partnerek!$A$9:$K$108,11,FALSE)=\"\",\"\",VLOOKUP($M95,Partnerek!$A$9:$K$108,11,FALSE)),\"\")","v":""},{"$f":"IFERROR(\nIF(RIGHT($A95,2)=\"BE\",\"HU\",\nIF(VLOOKUP($N95,Partnerek!$A$9:$K$108,11,FALSE)=\"\",\"\",VLOOKUP($N95,Partnerek!$A$9:$K$108,11,FALSE))),\"\")","v":""},{"$f":"IFERROR(VLOOKUP(AJ95,ráták!$A$10:$AX$13,MATCH(Q95+T95+W95,ráták!$C$9:$AX$9,1)+2,FALSE),\"\")","v":""}]
[null,null,null,null,null,null,null,null,null,null,null,null,"",null,null,null,null,null,null,null,null,null,null,null,null,null,null,"",null,null,null,null,null,null,{"$f":"IFERROR(\nIF(VLOOKUP($M96,Partnerek!$A$9:$K$108,11,FALSE)=\"\",\"\",VLOOKUP($M96,Partnerek!$A$9:$K$108,11,FALSE)),\"\")","v":""},{"$f":"IFERROR(\nIF(RIGHT($A96,2)=\"BE\",\"HU\",\nIF(VLOOKUP($N96,Partnerek!$A$9:$K$108,11,FALSE)=\"\",\"\",VLOOKUP($N96,Partnerek!$A$9:$K$108,11,FALSE))),\"\")","v":""},{"$f":"IFERROR(VLOOKUP(AJ96,ráták!$A$10:$AX$13,MATCH(Q96+T96+W96,ráták!$C$9:$AX$9,1)+2,FALSE),\"\")","v":""}]
[null,null,null,null,null,null,null,null,null,null,null,null,"",null,null,null,null,null,null,null,null,null,null,null,null,null,null,"",null,null,null,null,null,null,{"$f":"IFERROR(\nIF(VLOOKUP($M97,Partnerek!$A$9:$K$108,11,FALSE)=\"\",\"\",VLOOKUP($M97,Partnerek!$A$9:$K$108,11,FALSE)),\"\")","v":""},{"$f":"IFERROR(\nIF(RIGHT($A97,2)=\"BE\",\"HU\",\nIF(VLOOKUP($N97,Partnerek!$A$9:$K$108,11,FALSE)=\"\",\"\",VLOOKUP($N97,Partnerek!$A$9:$K$108,11,FALSE))),\"\")","v":""},{"$f":"IFERROR(VLOOKUP(AJ97,ráták!$A$10:$AX$13,MATCH(Q97+T97+W97,ráták!$C$9:$AX$9,1)+2,FALSE),\"\")","v":""}]
[null,null,null,null,null,null,null,null,null,null,null,null,"",null,null,null,null,null,null,null,null,null,null,null,null,null,null,"",null,null,null,null,null,null,{"$f":"IFERROR(\nIF(VLOOKUP($M98,Partnerek!$A$9:$K$108,11,FALSE)=\"\",\"\",VLOOKUP($M98,Partnerek!$A$9:$K$108,11,FALSE)),\"\")","v":""},{"$f":"IFERROR(\nIF(RIGHT($A98,2)=\"BE\",\"HU\",\nIF(VLOOKUP($N98,Partnerek!$A$9:$K$108,11,FALSE)=\"\",\"\",VLOOKUP($N98,Partnerek!$A$9:$K$108,11,FALSE))),\"\")","v":""},{"$f":"IFERROR(VLOOKUP(AJ98,ráták!$A$10:$AX$13,MATCH(Q98+T98+W98,ráták!$C$9:$AX$9,1)+2,FALSE),\"\")","v":""}]
[null,null,null,null,null,null,null,null,null,null,null,null,"",null,null,null,null,null,null,null,null,null,null,null,null,null,null,"",null,null,null,null,null,null,{"$f":"IFERROR(\nIF(VLOOKUP($M99,Partnerek!$A$9:$K$108,11,FALSE)=\"\",\"\",VLOOKUP($M99,Partnerek!$A$9:$K$108,11,FALSE)),\"\")","v":""},{"$f":"IFERROR(\nIF(RIGHT($A99,2)=\"BE\",\"HU\",\nIF(VLOOKUP($N99,Partnerek!$A$9:$K$108,11,FALSE)=\"\",\"\",VLOOKUP($N99,Partnerek!$A$9:$K$108,11,FALSE))),\"\")","v":""},{"$f":"IFERROR(VLOOKUP(AJ99,ráták!$A$10:$AX$13,MATCH(Q99+T99+W99,ráták!$C$9:$AX$9,1)+2,FALSE),\"\")","v":""}]
[null,null,null,null,null,null,null,null,null,null,null,null,"",null,null,null,null,null,null,null,null,null,null,null,null,null,null,"",null,null,null,null,null,null,{"$f":"IFERROR(\nIF(VLOOKUP($M100,Partnerek!$A$9:$K$108,11,FALSE)=\"\",\"\",VLOOKUP($M100,Partnerek!$A$9:$K$108,11,FALSE)),\"\")","v":""},{"$f":"IFERROR(\nIF(RIGHT($A100,2)=\"BE\",\"HU\",\nIF(VLOOKUP($N100,Partnerek!$A$9:$K$108,11,FALSE)=\"\",\"\",VLOOKUP($N100,Partnerek!$A$9:$K$108,11,FALSE))),\"\")","v":""},{"$f":"IFERROR(VLOOKUP(AJ100,ráták!$A$10:$AX$13,MATCH(Q100+T100+W100,ráták!$C$9:$AX$9,1)+2,FALSE),\"\")","v":""}]
[null,null,null,null,null,null,null,null,null,null,null,null,"",null,null,null,null,null,null,null,null,null,null,null,null,null,null,"",null,null,null,null,null,null,{"$f":"IFERROR(\nIF(VLOOKUP($M101,Partnerek!$A$9:$K$108,11,FALSE)=\"\",\"\",VLOOKUP($M101,Partnerek!$A$9:$K$108,11,FALSE)),\"\")","v":""},{"$f":"IFERROR(\nIF(RIGHT($A101,2)=\"BE\",\"HU\",\nIF(VLOOKUP($N101,Partnerek!$A$9:$K$108,11,FALSE)=\"\",\"\",VLOOKUP($N101,Partnerek!$A$9:$K$108,11,FALSE))),\"\")","v":""},{"$f":"IFERROR(VLOOKUP(AJ101,ráták!$A$10:$AX$13,MATCH(Q101+T101+W101,ráták!$C$9:$AX$9,1)+2,FALSE),\"\")","v":""}]
[null,null,null,null,null,null,null,null,null,null,null,null,"",null,null,null,null,null,null,null,null,null,null,null,null,null,null,"",null,null,null,null,null,null,{"$f":"IFERROR(\nIF(VLOOKUP($M102,Partnerek!$A$9:$K$108,11,FALSE)=\"\",\"\",VLOOKUP($M102,Partnerek!$A$9:$K$108,11,FALSE)),\"\")","v":""},{"$f":"IFERROR(\nIF(RIGHT($A102,2)=\"BE\",\"HU\",\nIF(VLOOKUP($N102,Partnerek!$A$9:$K$108,11,FALSE)=\"\",\"\",VLOOKUP($N102,Partnerek!$A$9:$K$108,11,FALSE))),\"\")","v":""},{"$f":"IFERROR(VLOOKUP(AJ102,ráták!$A$10:$AX$13,MATCH(Q102+T102+W102,ráták!$C$9:$AX$9,1)+2,FALSE),\"\")","v":""}]
[null,null,null,null,null,null,null,null,null,null,null,null,"",null,null,null,null,null,null,null,null,null,null,null,null,null,null,"",null,null,null,null,null,null,{"$f":"IFERROR(\nIF(VLOOKUP($M103,Partnerek!$A$9:$K$108,11,FALSE)=\"\",\"\",VLOOKUP($M103,Partnerek!$A$9:$K$108,11,FALSE)),\"\")","v":""},{"$f":"IFERROR(\nIF(RIGHT($A103,2)=\"BE\",\"HU\",\nIF(VLOOKUP($N103,Partnerek!$A$9:$K$108,11,FALSE)=\"\",\"\",VLOOKUP($N103,Partnerek!$A$9:$K$108,11,FALSE))),\"\")","v":""},{"$f":"IFERROR(VLOOKUP(AJ103,ráták!$A$10:$AX$13,MATCH(Q103+T103+W103,ráták!$C$9:$AX$9,1)+2,FALSE),\"\")","v":""}]
[null,null,null,null,null,null,null,null,null,null,null,null,"",null,null,null,null,null,null,null,null,null,null,null,null,null,null,"",null,null,null,null,null,null,{"$f":"IFERROR(\nIF(VLOOKUP($M104,Partnerek!$A$9:$K$108,11,FALSE)=\"\",\"\",VLOOKUP($M104,Partnerek!$A$9:$K$108,11,FALSE)),\"\")","v":""},{"$f":"IFERROR(\nIF(RIGHT($A104,2)=\"BE\",\"HU\",\nIF(VLOOKUP($N104,Partnerek!$A$9:$K$108,11,FALSE)=\"\",\"\",VLOOKUP($N104,Partnerek!$A$9:$K$108,11,FALSE))),\"\")","v":""},{"$f":"IFERROR(VLOOKUP(AJ104,ráták!$A$10:$AX$13,MATCH(Q104+T104+W104,ráták!$C$9:$AX$9,1)+2,FALSE),\"\")","v":""}]
[null,null,null,null,null,null,null,null,null,null,null,null,"",null,null,null,null,null,null,null,null,null,null,null,null,null,null,"",null,null,null,null,null,null,{"$f":"IFERROR(\nIF(VLOOKUP($M105,Partnerek!$A$9:$K$108,11,FALSE)=\"\",\"\",VLOOKUP($M105,Partnerek!$A$9:$K$108,11,FALSE)),\"\")","v":""},{"$f":"IFERROR(\nIF(RIGHT($A105,2)=\"BE\",\"HU\",\nIF(VLOOKUP($N105,Partnerek!$A$9:$K$108,11,FALSE)=\"\",\"\",VLOOKUP($N105,Partnerek!$A$9:$K$108,11,FALSE))),\"\")","v":""},{"$f":"IFERROR(VLOOKUP(AJ105,ráták!$A$10:$AX$13,MATCH(Q105+T105+W105,ráták!$C$9:$AX$9,1)+2,FALSE),\"\")","v":""}]
[null,null,null,null,null,null,null,null,null,null,null,null,"",null,null,null,null,null,null,null,null,null,null,null,null,null,null,"",null,null,null,null,null,null,{"$f":"IFERROR(\nIF(VLOOKUP($M106,Partnerek!$A$9:$K$108,11,FALSE)=\"\",\"\",VLOOKUP($M106,Partnerek!$A$9:$K$108,11,FALSE)),\"\")","v":""},{"$f":"IFERROR(\nIF(RIGHT($A106,2)=\"BE\",\"HU\",\nIF(VLOOKUP($N106,Partnerek!$A$9:$K$108,11,FALSE)=\"\",\"\",VLOOKUP($N106,Partnerek!$A$9:$K$108,11,FALSE))),\"\")","v":""},{"$f":"IFERROR(VLOOKUP(AJ106,ráták!$A$10:$AX$13,MATCH(Q106+T106+W106,ráták!$C$9:$AX$9,1)+2,FALSE),\"\")","v":""}]
[null,null,null,null,null,null,null,null,null,null,null,null,"",null,null,null,null,null,null,null,null,null,null,null,null,null,null,"",null,null,null,null,null,null,{"$f":"IFERROR(\nIF(VLOOKUP($M107,Partnerek!$A$9:$K$108,11,FALSE)=\"\",\"\",VLOOKUP($M107,Partnerek!$A$9:$K$108,11,FALSE)),\"\")","v":""},{"$f":"IFERROR(\nIF(RIGHT($A107,2)=\"BE\",\"HU\",\nIF(VLOOKUP($N107,Partnerek!$A$9:$K$108,11,FALSE)=\"\",\"\",VLOOKUP($N107,Partnerek!$A$9:$K$108,11,FALSE))),\"\")","v":""},{"$f":"IFERROR(VLOOKUP(AJ107,ráták!$A$10:$AX$13,MATCH(Q107+T107+W107,ráták!$C$9:$AX$9,1)+2,FALSE),\"\")","v":""}]
[null,null,null,null,null,null,null,null,null,null,null,null,"",null,null,null,null,null,null,null,null,null,null,null,null,null,null,"",null,null,null,null,null,null,{"$f":"IFERROR(\nIF(VLOOKUP($M108,Partnerek!$A$9:$K$108,11,FALSE)=\"\",\"\",VLOOKUP($M108,Partnerek!$A$9:$K$108,11,FALSE)),\"\")","v":""},{"$f":"IFERROR(\nIF(RIGHT($A108,2)=\"BE\",\"HU\",\nIF(VLOOKUP($N108,Partnerek!$A$9:$K$108,11,FALSE)=\"\",\"\",VLOOKUP($N108,Partnerek!$A$9:$K$108,11,FALSE))),\"\")","v":""},{"$f":"IFERROR(VLOOKUP(AJ108,ráták!$A$10:$AX$13,MATCH(Q108+T108+W108,ráták!$C$9:$AX$9,1)+2,FALSE),\"\")","v":""}]

{"sheet":"Ki- és beutazó okt, személyzet","index":5,"n_rows":108,"n_cols":27,"rows_kept":108,"cut":false,"hidden":false,"merged":[[2,5,2,8],[3,5,3,8],[4,8,4,9]]}
[{"$f":"IF(Azonosítás!A3=\"\",\"\",Azonosítás!A3)","v":""}]
["Oktatói mobilitás - ki- és beutazó oktatók, személyzet"]
[]
["Intézmény neve:",null,{"$f":"IF(Azonosítás!A9=\"\",\"\",Azonosítás!A9)","v":""},null,null,"EGT koordinátor aláírása"]
["Szerződésszám:",null,{"$f":"Azonosítás!A6","v":0},null,null,null,null,null,{"$f":"TODAY()","v":"2017-01-06"}]
[]
[]
["Mobilitás jellege","Tevékenység jellege","Egyéni támogatási szerződésszám","Családnév","Keresztnév","Születés időpontja\n(ÉÉÉÉ/HH/NN)","Neme","Állampolgárság","Szakterület kódja","Tapasztaltság\n(csak  oktatás!)","Feladatkör","Oktatás\nszintje a küldő intézményben","Küldő partner azonosítója","Fogadó partner azonosítója","Mobilitás kezdete\n (ÉÉÉÉ/HH/NN)","Mobilitás vége\n (ÉÉÉÉ/HH/NN)","Mobilitás\nidőtartama napokban \n(utazással együtt)","Oktatott órák száma összesen","A külföldi oktatás\nszintje","Oktatás vagy munka \nnyelve","EGT támogatás összesen (euró)","Intézményi forrás (HUF), ha volt","Résztvevő e-mail címe ","Megjegyzés","Küldő ország","Fogadó ország","TÁMOGATÁS"]
[null,null,null,null,null,null,null,null,null,null,null,null,null,null,null,null,{"$f":"IFERROR(IF(P9<=O9,\"\",IF( (P9-O9+1)>42,\"\",P9-O9+1)),\"\")","v":""},null,null,null,{"$f":"IFERROR(\n   IF( ((RIGHT(A9,2)=\"KI\")*(Y9=\"HU\")*(Z9<>\"HU\"))+((RIGHT(A9,2)=\"BE\")*(Y9<>\"HU\")*(Z9=\"HU\")),  IF(A9<>\"\",AA9,\"\"),\"\"),\"\")","v":""},null,null,null,{"$f":"IFERROR(\nIF(VLOOKUP($M9,Partnerek!$A$9:$K$108,11,FALSE)=\"\",\"\",VLOOKUP($M9,Partnerek!$A$9:$K$108,11,FALSE)),\"\")","v":""},{"$f":"IFERROR(\nIF(VLOOKUP($N9,Partnerek!$A$9:$K$108,11,FALSE)=\"\",\"\",VLOOKUP($N9,Partnerek!$A$9:$K$108,11,FALSE)),\"\")","v":""},{"$f":"IFERROR(VLOOKUP(Z9,ráták!$A$3:$AR$6,MATCH($Q9,ráták!$C$2:$AR$2,1)+2,FALSE),\"\")","v":""}]
[null,null,null,null,null,null,null,null,null,null,null,null,{"$f":"IF((IFERROR(RIGHT($A10,2),\"\")=\"KI\"),Azonosítás!$A$9,\"\")","v":""},null,null,null,{"$f":"IFERROR(IF(P10<=O10,\"\",IF( (P10-O10+1)>42,\"\",P10-O10+1)),\"\")","v":""},null,null,null,{"$f":"IFERROR(\n   IF( ((RIGHT(A10,2)=\"KI\")*(Y10=\"HU\")*(Z10<>\"HU\"))+((RIGHT(A10,2)=\"BE\")*(Y10<>\"HU\")*(Z10=\"HU\")),  IF(A10<>\"\",AA10,\"\"),\"\"),\"\")","v":""},null,null,null,{"$f":"IFERROR(\nIF(VLOOKUP($M10,Partnerek!$A$9:$K$108,11,FALSE)=\"\",\"\",VLOOKUP($M10,Partnerek!$A$9:$K$108,11,FALSE)),\"\")","v":""},{"$f":"IFERROR(\nIF(VLOOKUP($N10,Partnerek!$A$9:$K$108,11,FALSE)=\"\",\"\",VLOOKUP($N10,Partnerek!$A$9:$K$108,11,FALSE)),\"\")","v":""},{"$f":"IFERROR(VLOOKUP(Z10,ráták!$A$3:$AR$6,MATCH($Q10,ráták!$C$2:$AR$2,1)+2,FALSE),\"\")","v":""}]
[null,null,null,null,null,null,null,null,null,null,null,null,{"$f":"IF((IFERROR(RIGHT($A11,2),\"\")=\"KI\"),Azonosítás!$A$9,\"\")","v":""},null,null,null,"",null,null,null,"",null,null,null,{"$f":"IFERROR(\nIF(VLOOKUP($M11,Partnerek!$A$9:$K$108,11,FALSE)=\"\",\"\",VLOOKUP($M11,Partnerek!$A$9:$K$108,11,FALSE)),\"\")","v":""},{"$f":"IFERROR(\nIF(VLOOKUP($N11,Partnerek!$A$9:$K$108,11,FALSE)=\"\",\"\",VLOOKUP($N11,Partnerek!$A$9:$K$108,11,FALSE)),\"\")","v":""},{"$f":"IFERROR(VLOOKUP(Z11,ráták!$A$3:$AR$6,MATCH($Q11,ráták!$C$2:$AR$2,1)+2,FALSE),\"\")","v":""}]
[null,null,null,null,null,null,null,null,null,null,null,null,{"$f":"IF((IFERROR(RIGHT($A12,2),\"\")=\"KI\"),Azonosítás!$A$9,\"\")","v":""},null,null,null,"",null,null,null,"",null,null,null,{"$f":"IFERROR(\nIF(VLOOKUP($M12,Partnerek!$A$9:$K$108,11,FALSE)=\"\",\"\",VLOOKUP($M12,Partnerek!$A$9:$K$108,11,FALSE)),\"\")","v":""},{"$f":"IFERROR(\nIF(VLOOKUP($N12,Partnerek!$A$9:$K$108,11,FALSE)=\"\",\"\",VLOOKUP($N12,Partnerek!$A$9:$K$108,11,FALSE)),\"\")","v":""},{"$f":"IFERROR(VLOOKUP(Z12,ráták!$A$3:$AR$6,MATCH($Q12,ráták!$C$2:$AR$2,1)+2,FALSE),\"\")","v":""}]
[null,null,null,null,null,null,null,null,null,null,null,null,{"$f":"IF((IFERROR(RIGHT($A13,2),\"\")=\"KI\"),Azonosítás!$A$9,\"\")","v":""},null,null,null,"",null,null,null,"",null,null,null,{"$f":"IFERROR(\nIF(VLOOKUP($M13,Partnerek!$A$9:$K$108,11,FALSE)=\"\",\"\",VLOOKUP($M13,Partnerek!$A$9:$K$108,11,FALSE)),\"\")","v":""},{"$f":"IFERROR(\nIF(VLOOKUP($N13,Partnerek!$A$9:$K$108,11,FALSE)=\"\",\"\",VLOOKUP($N13,Partnerek!$A$9:$K$108,11,FALSE)),\"\")","v":""},{"$f":"IFERROR(VLOOKUP(Z13,ráták!$A$3:$AR$6,MATCH($Q13,ráták!$C$2:$AR$2,1)+2,FALSE),\"\")","v":""}]
[null,null,null,null,null,null,null,null,null,null,null,null,{"$f":"IF((IFERROR(RIGHT($A14,2),\"\")=\"KI\"),Azonosítás!$A$9,\"\")","v":""},null,null,null,"",null,null,null,"",null,null,null,{"$f":"IFERROR(\nIF(VLOOKUP($M14,Partnerek!$A$9:$K$108,11,FALSE)=\"\",\"\",VLOOKUP($M14,Partnerek!$A$9:$K$108,11,FALSE)),\"\")","v":""},{"$f":"IFERROR(\nIF(VLOOKUP($N14,Partnerek!$A$9:$K$108,11,FALSE)=\"\",\"\",VLOOKUP($N14,Partnerek!$A$9:$K$108,11,FALSE)),\"\")","v":""},{"$f":"IFERROR(VLOOKUP(Z14,ráták!$A$3:$AR$6,MATCH($Q14,ráták!$C$2:$AR$2,1)+2,FALSE),\"\")","v":""}]
[null,null,null,null,null,null,null,null,null,null,null,null,{"$f":"IF((IFERROR(RIGHT($A15,2),\"\")=\"KI\"),Azonosítás!$A$9,\"\")","v":""},null,null,null,"",null,null,null,"",null,null,null,{"$f":"IFERROR(\nIF(VLOOKUP($M15,Partnerek!$A$9:$K$108,11,FALSE)=\"\",\"\",VLOOKUP($M15,Partnerek!$A$9:$K$108,11,FALSE)),\"\")","v":""},{"$f":"IFERROR(\nIF(VLOOKUP($N15,Partnerek!$A$9:$K$108,11,FALSE)=\"\",\"\",VLOOKUP($N15,Partnerek!$A$9:$K$108,11,FALSE)),\"\")","v":""},{"$f":"IFERROR(VLOOKUP(Z15,ráták!$A$3:$AR$6,MATCH($Q15,ráták!$C$2:$AR$2,1)+2,FALSE),\"\")","v":""}]
[null,null,null,null,null,null,null,null,null,null,null,null,{"$f":"IF((IFERROR(RIGHT($A16,2),\"\")=\"KI\"),Azonosítás!$A$9,\"\")","v":""},null,null,null,"",null,null,null,"",null,null,null,{"$f":"IFERROR(\nIF(VLOOKUP($M16,Partnerek!$A$9:$K$108,11,FALSE)=\"\",\"\",VLOOKUP($M16,Partnerek!$A$9:$K$108,11,FALSE)),\"\")","v":""},{"$f":"IFERROR(\nIF(VLOOKUP($N16,Partnerek!$A$9:$K$108,11,FALSE)=\"\",\"\",VLOOKUP($N16,Partnerek!$A$9:$K$108,11,FALSE)),\"\")","v":""},{"$f":"IFERROR(VLOOKUP(Z16,ráták!$A$3:$AR$6,MATCH($Q16,ráták!$C$2:$AR$2,1)+2,FALSE),\"\")","v":""}]
[null,null,null,null,null,null,null,null,null,null,null,null,{"$f":"IF((IFERROR(RIGHT($A17,2),\"\")=\"KI\"),Azonosítás!$A$9,\"\")","v":""},null,null,null,"",null,null,null,"",null,null,null,{"$f":"IFERROR(\nIF(VLOOKUP($M17,Partnerek!$A$9:$K$108,11,FALSE)=\"\",\"\",VLOOKUP($M17,Partnerek!$A$9:$K$108,11,FALSE)),\"\")","v":""},{"$f":"IFERROR(\nIF(VLOOKUP($N17,Partnerek!$A$9:$K$108,11,FALSE)=\"\",\"\",VLOOKUP($N17,Partnerek!$A$9:$K$108,11,FALSE)),\"\")","v":""},{"$f":"IFERROR(VLOOKUP(Z17,ráták!$A$3:$AR$6,MATCH($Q17,ráták!$C$2:$AR$2,1)+2,FALSE),\"\")","v":""}]
[null,null,null,null,null,null,null,null,null,null,null,null,{"$f":"IF((IFERROR(RIGHT($A18,2),\"\")=\"KI\"),Azonosítás!$A$9,\"\")","v":""},null,null,null,"",null,null,null,"",null,null,null,{"$f":"IFERROR(\nIF(VLOOKUP($M18,Partnerek!$A$9:$K$108,11,FALSE)=\"\",\"\",VLOOKUP($M18,Partnerek!$A$9:$K$108,11,FALSE)),\"\")","v":""},{"$f":"IFERROR(\nIF(VLOOKUP($N18,Partnerek!$A$9:$K$108,11,FALSE)=\"\",\"\",VLOOKUP($N18,Partnerek!$A$9:$K$108,11,FALSE)),\"\")","v":""},{"$f":"IFERROR(VLOOKUP(Z18,ráták!$A$3:$AR$6,MATCH($Q18,ráták!$C$2:$AR$2,1)+2,FALSE),\"\")","v":""}]
[null,null,null,null,null,null,null,null,null,null,null,null,{"$f":"IF((IFERROR(RIGHT($A19,2),\"\")=\"KI\"),Azonosítás!$A$9,\"\")","v":""},null,null,null,"",null,null,null,"",null,null,null,{"$f":"IFERROR(\nIF(VLOOKUP($M19,Partnerek!$A$9:$K$108,11,FALSE)=\"\",\"\",VLOOKUP($M19,Partnerek!$A$9:$K$108,11,FALSE)),\"\")","v":""},{"$f":"IFERROR(\nIF(VLOOKUP($N19,Partnerek!$A$9:$K$108,11,FALSE)=\"\",\"\",VLOOKUP($N19,Partnerek!$A$9:$K$108,11,FALSE)),\"\")","v":""},{"$f":"IFERROR(VLOOKUP(Z19,ráták!$A$3:$AR$6,MATCH($Q19,ráták!$C$2:$AR$2,1)+2,FALSE),\"\")","v":""}]
[null,null,null,null,null,null,null,null,null,null,null,null,{"$f":"IF((IFERROR(RIGHT($A20,2),\"\")=\"KI\"),Azonosítás!$A$9,\"\")","v":""},null,null,null,"",null,null,null,"",null,null,null,{"$f":"IFERROR(\nIF(VLOOKUP($M20,Partnerek!$A$9:$K$108,11,FALSE)=\"\",\"\",VLOOKUP($M20,Partnerek!$A$9:$K$108,11,FALSE)),\"\")","v":""},{"$f":"IFERROR(\nIF(VLOOKUP($N20,Partnerek!$A$9:$K$108,11,FALSE)=\"\",\"\",VLOOKUP($N20,Partnerek!$A$9:$K$108,11,FALSE)),\"\")","v":""},{"$f":"IFERROR(VLOOKUP(Z20,ráták!$A$3:$AR$6,MATCH($Q20,ráták!$C$2:$AR$2,1)+2,FALSE),\"\")","v":""}]
[null,null,null,null,null,null,null,null,null,null,null,null,{"$f":"IF((IFERROR(RIGHT($A21,2),\"\")=\"KI\"),Azonosítás!$A$9,\"\")","v":""},null,null,null,"",null,null,null,"",null,null,null,{"$f":"IFERROR(\nIF(VLOOKUP($M21,Partnerek!$A$9:$K$108,11,FALSE)=\"\",\"\",VLOOKUP($M21,Partnerek!$A$9:$K$108,11,FALSE)),\"\")","v":""},{"$f":"IFERROR(\nIF(VLOOKUP($N21,Partnerek!$A$9:$K$108,11,FALSE)=\"\",\"\",VLOOKUP($N21,Partnerek!$A$9:$K$108,11,FALSE)),\"\")","v":""},{"$f":"IFERROR(VLOOKUP(Z21,ráták!$A$3:$AR$6,MATCH($Q21,ráták!$C$2:$AR$2,1)+2,FALSE),\"\")","v":""}]
[null,null,null,null,null,null,null,null,null,null,null,null,{"$f":"IF((IFERROR(RIGHT($A22,2),\"\")=\"KI\"),Azonosítás!$A$9,\"\")","v":""},null,null,null,"",null,null,null,"",null,null,null,{"$f":"IFERROR(\nIF(VLOOKUP($M22,Partnerek!$A$9:$K$108,11,FALSE)=\"\",\"\",VLOOKUP($M22,Partnerek!$A$9:$K$108,11,FALSE)),\"\")","v":""},{"$f":"IFERROR(\nIF(VLOOKUP($N22,Partnerek!$A$9:$K$108,11,FALSE)=\"\",\"\",VLOOKUP($N22,Partnerek!$A$9:$K$108,11,FALSE)),\"\")","v":""},{"$f":"IFERROR(VLOOKUP(Z22,ráták!$A$3:$AR$6,MATCH($Q22,ráták!$C$2:$AR$2,1)+2,FALSE),\"\")","v":""}]
[null,null,null,null,null,null,null,null,null,null,null,null,{"$f":"IF((IFERROR(RIGHT($A23,2),\"\")=\"KI\"),Azonosítás!$A$9,\"\")","v":""},null,null,null,"",null,null,null,"",null,null,null,{"$f":"IFERROR(\nIF(VLOOKUP($M23,Partnerek!$A$9:$K$108,11,FALSE)=\"\",\"\",VLOOKUP($M23,Partnerek!$A$9:$K$108,11,FALSE)),\"\")","v":""},{"$f":"IFERROR(\nIF(VLOOKUP($N23,Partnerek!$A$9:$K$108,11,FALSE)=\"\",\"\",VLOOKUP($N23,Partnerek!$A$9:$K$108,11,FALSE)),\"\")","v":""},{"$f":"IFERROR(VLOOKUP(Z23,ráták!$A$3:$AR$6,MATCH($Q23,ráták!$C$2:$AR$2,1)+2,FALSE),\"\")","v":""}]
[null,null,null,null,null,null,null,null,null,null,null,null,{"$f":"IF((IFERROR(RIGHT($A24,2),\"\")=\"KI\"),Azonosítás!$A$9,\"\")","v":""},null,null,null,"",null,null,null,"",null,null,null,{"$f":"IFERROR(\nIF(VLOOKUP($M24,Partnerek!$A$9:$K$108,11,FALSE)=\"\",\"\",VLOOKUP($M24,Partnerek!$A$9:$K$108,11,FALSE)),\"\")","v":""},{"$f":"IFERROR(\nIF(VLOOKUP($N24,Partnerek!$A$9:$K$108,11,FALSE)=\"\",\"\",VLOOKUP($N24,Partnerek!$A$9:$K$108,11,FALSE)),\"\")","v":""},{"$f":"IFERROR(VLOOKUP(Z24,ráták!$A$3:$AR$6,MATCH($Q24,ráták!$C$2:$AR$2,1)+2,FALSE),\"\")","v":""}]
[null,null,null,null,null,null,null,null,null,null,null,null,{"$f":"IF((IFERROR(RIGHT($A25,2),\"\")=\"KI\"),Azonosítás!$A$9,\"\")","v":""},null,null,null,"",null,null,null,"",null,null,null,{"$f":"IFERROR(\nIF(VLOOKUP($M25,Partnerek!$A$9:$K$108,11,FALSE)=\"\",\"\",VLOOKUP($M25,Partnerek!$A$9:$K$108,11,FALSE)),\"\")","v":""},{"$f":"IFERROR(\nIF(VLOOKUP($N25,Partnerek!$A$9:$K$108,11,FALSE)=\"\",\"\",VLOOKUP($N25,Partnerek!$A$9:$K$108,11,FALSE)),\"\")","v":""},{"$f":"IFERROR(VLOOKUP(Z25,ráták!$A$3:$AR$6,MATCH($Q25,ráták!$C$2:$AR$2,1)+2,FALSE),\"\")","v":""}]
[null,null,null,null,null,null,null,null,null,null,null,null,{"$f":"IF((IFERROR(RIGHT($A26,2),\"\")=\"KI\"),Azonosítás!$A$9,\"\")","v":""},null,null,null,"",null,null,null,"",null,null,null,{"$f":"IFERROR(\nIF(VLOOKUP($M26,Partnerek!$A$9:$K$108,11,FALSE)=\"\",\"\",VLOOKUP($M26,Partnerek!$A$9:$K$108,11,FALSE)),\"\")","v":""},{"$f":"IFERROR(\nIF(VLOOKUP($N26,Partnerek!$A$9:$K$108,11,FALSE)=\"\",\"\",VLOOKUP($N26,Partnerek!$A$9:$K$108,11,FALSE)),\"\")","v":""},{"$f":"IFERROR(VLOOKUP(Z26,ráták!$A$3:$AR$6,MATCH($Q26,ráták!$C$2:$AR$2,1)+2,FALSE),\"\")","v":""}]
[null,null,null,null,null,null,null,null,null,null,null,null,{"$f":"IF((IFERROR(RIGHT($A27,2),\"\")=\"KI\"),Azonosítás!$A$9,\"\")","v":""},null,null,null,"",null,null,null,"",null,null,null,{"$f":"IFERROR(\nIF(VLOOKUP($M27,Partnerek!$A$9:$K$108,11,FALSE)=\"\",\"\",VLOOKUP($M27,Partnerek!$A$9:$K$108,11,FALSE)),\"\")","v":""},{"$f":"IFERROR(\nIF(VLOOKUP($N27,Partnerek!$A$9:$K$108,11,FALSE)=\"\",\"\",VLOOKUP($N27,Partnerek!$A$9:$K$108,11,FALSE)),\"\")","v":""},{"$f":"IFERROR(VLOOKUP(Z27,ráták!$A$3:$AR$6,MATCH($Q27,ráták!$C$2:$AR$2,1)+2,FALSE),\"\")","v":""}]
[null,null,null,null,null,null,null,null,null,null,null,null,{"$f":"IF((IFERROR(RIGHT($A28,2),\"\")=\"KI\"),Azonosítás!$A$9,\"\")","v":""},null,null,null,"",null,null,null,"",null,null,null,{"$f":"IFERROR(\nIF(VLOOKUP($M28,Partnerek!$A$9:$K$108,11,FALSE)=\"\",\"\",VLOOKUP($M28,Partnerek!$A$9:$K$108,11,FALSE)),\"\")","v":""},{"$f":"IFERROR(\nIF(VLOOKUP($N28,Partnerek!$A$9:$K$108,11,FALSE)=\"\",\"\",VLOOKUP($N28,Partnerek!$A$9:$K$108,11,FALSE)),\"\")","v":""},{"$f":"IFERROR(VLOOKUP(Z28,ráták!$A$3:$AR$6,MATCH($Q28,ráták!$C$2:$AR$2,1)+2,FALSE),\"\")","v":""}]
[null,null,null,null,null,null,null,null,null,null,null,null,{"$f":"IF((IFERROR(RIGHT($A29,2),\"\")=\"KI\"),Azonosítás!$A$9,\"\")","v":""},null,null,null,"",null,null,null,"",null,null,null,{"$f":"IFERROR(\nIF(VLOOKUP($M29,Partnerek!$A$9:$K$108,11,FALSE)=\"\",\"\",VLOOKUP($M29,Partnerek!$A$9:$K$108,11,FALSE)),\"\")","v":""},{"$f":"IFERROR(\nIF(VLOOKUP($N29,Partnerek!$A$9:$K$108,11,FALSE)=\"\",\"\",VLOOKUP($N29,Partnerek!$A$9:$K$108,11,FALSE)),\"\")","v":""},{"$f":"IFERROR(VLOOKUP(Z29,ráták!$A$3:$AR$6,MATCH($Q29,ráták!$C$2:$AR$2,1)+2,FALSE),\"\")","v":""}]
[null,null,null,null,null,null,null,null,null,null,null,null,{"$f":"IF((IFERROR(RIGHT($A30,2),\"\")=\"KI\"),Azonosítás!$A$9,\"\")","v":""},null,null,null,"",null,null,null,"",null,null,null,{"$f":"IFERROR(\nIF(VLOOKUP($M30,Partnerek!$A$9:$K$108,11,FALSE)=\"\",\"\",VLOOKUP($M30,Partnerek!$A$9:$K$108,11,FALSE)),\"\")","v":""},{"$f":"IFERROR(\nIF(VLOOKUP($N30,Partnerek!$A$9:$K$108,11,FALSE)=\"\",\"\",VLOOKUP($N30,Partnerek!$A$9:$K$108,11,FALSE)),\"\")","v":""},{"$f":"IFERROR(VLOOKUP(Z30,ráták!$A$3:$AR$6,MATCH($Q30,ráták!$C$2:$AR$2,1)+2,FALSE),\"\")","v":""}]
[null,null,null,null,null,null,null,null,null,null,null,null,{"$f":"IF((IFERROR(RIGHT($A31,2),\"\")=\"KI\"),Azonosítás!$A$9,\"\")","v":""},null,null,null,"",null,null,null,"",null,null,null,{"$f":"IFERROR(\nIF(VLOOKUP($M31,Partnerek!$A$9:$K$108,11,FALSE)=\"\",\"\",VLOOKUP($M31,Partnerek!$A$9:$K$108,11,FALSE)),\"\")","v":""},{"$f":"IFERROR(\nIF(VLOOKUP($N31,Partnerek!$A$9:$K$108,11,FALSE)=\"\",\"\",VLOOKUP($N31,Partnerek!$A$9:$K$108,11,FALSE)),\"\")","v":""},{"$f":"IFERROR(VLOOKUP(Z31,ráták!$A$3:$AR$6,MATCH($Q31,ráták!$C$2:$AR$2,1)+2,FALSE),\"\")","v":""}]
[null,null,null,null,null,null,null,null,null,null,null,null,{"$f":"IF((IFERROR(RIGHT($A32,2),\"\")=\"KI\"),Azonosítás!$A$9,\"\")","v":""},null,null,null,"",null,null,null,"",null,null,null,{"$f":"IFERROR(\nIF(VLOOKUP($M32,Partnerek!$A$9:$K$108,11,FALSE)=\"\",\"\",VLOOKUP($M32,Partnerek!$A$9:$K$108,11,FALSE)),\"\")","v":""},{"$f":"IFERROR(\nIF(VLOOKUP($N32,Partnerek!$A$9:$K$108,11,FALSE)=\"\",\"\",VLOOKUP($N32,Partnerek!$A$9:$K$108,11,FALSE)),\"\")","v":""},{"$f":"IFERROR(VLOOKUP(Z32,ráták!$A$3:$AR$6,MATCH($Q32,ráták!$C$2:$AR$2,1)+2,FALSE),\"\")","v":""}]
[null,null,null,null,null,null,null,null,null,null,null,null,{"$f":"IF((IFERROR(RIGHT($A33,2),\"\")=\"KI\"),Azonosítás!$A$9,\"\")","v":""},null,null,null,"",null,null,null,"",null,null,null,{"$f":"IFERROR(\nIF(VLOOKUP($M33,Partnerek!$A$9:$K$108,11,FALSE)=\"\",\"\",VLOOKUP($M33,Partnerek!$A$9:$K$108,11,FALSE)),\"\")","v":""},{"$f":"IFERROR(\nIF(VLOOKUP($N33,Partnerek!$A$9:$K$108,11,FALSE)=\"\",\"\",VLOOKUP($N33,Partnerek!$A$9:$K$108,11,FALSE)),\"\")","v":""},{"$f":"IFERROR(VLOOKUP(Z33,ráták!$A$3:$AR$6,MATCH($Q33,ráták!$C$2:$AR$2,1)+2,FALSE),\"\")","v":""}]
[null,null,null,null,null,null,null,null,null,null,null,null,{"$f":"IF((IFERROR(RIGHT($A34,2),\"\")=\"KI\"),Azonosítás!$A$9,\"\")","v":""},null,null,null,"",null,null,null,"",null,null,null,{"$f":"IFERROR(\nIF(VLOOKUP($M34,Partnerek!$A$9:$K$108,11,FALSE)=\"\",\"\",VLOOKUP($M34,Partnerek!$A$9:$K$108,11,FALSE)),\"\")","v":""},{"$f":"IFERROR(\nIF(VLOOKUP($N34,Partnerek!$A$9:$K$108,11,FALSE)=\"\",\"\",VLOOKUP($N34,Partnerek!$A$9:$K$108,11,FALSE)),\"\")","v":""},{"$f":"IFERROR(VLOOKUP(Z34,ráták!$A$3:$AR$6,MATCH($Q34,ráták!$C$2:$AR$2,1)+2,FALSE),\"\")","v":""}]
[null,null,null,null,null,null,null,null,null,null,null,null,{"$f":"IF((IFERROR(RIGHT($A35,2),\"\")=\"KI\"),Azonosítás!$A$9,\"\")","v":""},null,null,null,"",null,null,null,"",null,null,null,{"$f":"IFERROR(\nIF(VLOOKUP($M35,Partnerek!$A$9:$K$108,11,FALSE)=\"\",\"\",VLOOKUP($M35,Partnerek!$A$9:$K$108,11,FALSE)),\"\")","v":""},{"$f":"IFERROR(\nIF(VLOOKUP($N35,Partnerek!$A$9:$K$108,11,FALSE)=\"\",\"\",VLOOKUP($N35,Partnerek!$A$9:$K$108,11,FALSE)),\"\")","v":""},{"$f":"IFERROR(VLOOKUP(Z35,ráták!$A$3:$AR$6,MATCH($Q35,ráták!$C$2:$AR$2,1)+2,FALSE),\"\")","v":""}]
[null,null,null,null,null,null,null,null,null,null,null,null,{"$f":"IF((IFERROR(RIGHT($A36,2),\"\")=\"KI\"),Azonosítás!$A$9,\"\")","v":""},null,null,null,"",null,null,null,"",null,null,null,{"$f":"IFERROR(\nIF(VLOOKUP($M36,Partnerek!$A$9:$K$108,11,FALSE)=\"\",\"\",VLOOKUP($M36,Partnerek!$A$9:$K$108,11,FALSE)),\"\")","v":""},{"$f":"IFERROR(\nIF(VLOOKUP($N36,Partnerek!$A$9:$K$108,11,FALSE)=\"\",\"\",VLOOKUP($N36,Partnerek!$A$9:$K$108,11,FALSE)),\"\")","v":""},{"$f":"IFERROR(VLOOKUP(Z36,ráták!$A$3:$AR$6,MATCH($Q36,ráták!$C$2:$AR$2,1)+2,FALSE),\"\")","v":""}]
[null,null,null,null,null,null,null,null,null,null,null,null,{"$f":"IF((IFERROR(RIGHT($A37,2),\"\")=\"KI\"),Azonosítás!$A$9,\"\")","v":""},null,null,null,"",null,null,null,"",null,null,null,{"$f":"IFERROR(\nIF(VLOOKUP($M37,Partnerek!$A$9:$K$108,11,FALSE)=\"\",\"\",VLOOKUP($M37,Partnerek!$A$9:$K$108,11,FALSE)),\"\")","v":""},{"$f":"IFERROR(\nIF(VLOOKUP($N37,Partnerek!$A$9:$K$108,11,FALSE)=\"\",\"\",VLOOKUP($N37,Partnerek!$A$9:$K$108,11,FALSE)),\"\")","v":""},{"$f":"IFERROR(VLOOKUP(Z37,ráták!$A$3:$AR$6,MATCH($Q37,ráták!$C$2:$AR$2,1)+2,FALSE),\"\")","v":""}]
[null,null,null,null,null,null,null,null,null,null,null,null,{"$f":"IF((IFERROR(RIGHT($A38,2),\"\")=\"KI\"),Azonosítás!$A$9,\"\")","v":""},null,null,null,"",null,null,null,"",null,null,null,{"$f":"IFERROR(\nIF(VLOOKUP($M38,Partnerek!$A$9:$K$108,11,FALSE)=\"\",\"\",VLOOKUP($M38,Partnerek!$A$9:$K$108,11,FALSE)),\"\")","v":""},{"$f":"IFERROR(\nIF(VLOOKUP($N38,Partnerek!$A$9:$K$108,11,FALSE)=\"\",\"\",VLOOKUP($N38,Partnerek!$A$9:$K$108,11,FALSE)),\"\")","v":""},{"$f":"IFERROR(VLOOKUP(Z38,ráták!$A$3:$AR$6,MATCH($Q38,ráták!$C$2:$AR$2,1)+2,FALSE),\"\")","v":""}]
[null,null,null,null,null,null,null,null,null,null,null,null,{"$f":"IF((IFERROR(RIGHT($A39,2),\"\")=\"KI\"),Azonosítás!$A$9,\"\")","v":""},null,null,null,"",null,null,null,"",null,null,null,{"$f":"IFERROR(\nIF(VLOOKUP($M39,Partnerek!$A$9:$K$108,11,FALSE)=\"\",\"\",VLOOKUP($M39,Partnerek!$A$9:$K$108,11,FALSE)),\"\")","v":""},{"$f":"IFERROR(\nIF(VLOOKUP($N39,Partnerek!$A$9:$K$108,11,FALSE)=\"\",\"\",VLOOKUP($N39,Partnerek!$A$9:$K$108,11,FALSE)),\"\")","v":""},{"$f":"IFERROR(VLOOKUP(Z39,ráták!$A$3:$AR$6,MATCH($Q39,ráták!$C$2:$AR$2,1)+2,FALSE),\"\")","v":""}]
[null,null,null,null,null,null,null,null,null,null,null,null,{"$f":"IF((IFERROR(RIGHT($A40,2),\"\")=\"KI\"),Azonosítás!$A$9,\"\")","v":""},null,null,null,"",null,null,null,"",null,null,null,{"$f":"IFERROR(\nIF(VLOOKUP($M40,Partnerek!$A$9:$K$108,11,FALSE)=\"\",\"\",VLOOKUP($M40,Partnerek!$A$9:$K$108,11,FALSE)),\"\")","v":""},{"$f":"IFERROR(\nIF(VLOOKUP($N40,Partnerek!$A$9:$K$108,11,FALSE)=\"\",\"\",VLOOKUP($N40,Partnerek!$A$9:$K$108,11,FALSE)),\"\")","v":""},{"$f":"IFERROR(VLOOKUP(Z40,ráták!$A$3:$AR$6,MATCH($Q40,ráták!$C$2:$AR$2,1)+2,FALSE),\"\")","v":""}]
[null,null,null,null,null,null,null,null,null,null,null,null,{"$f":"IF((IFERROR(RIGHT($A41,2),\"\")=\"KI\"),Azonosítás!$A$9,\"\")","v":""},null,null,null,"",null,null,null,"",null,null,null,{"$f":"IFERROR(\nIF(VLOOKUP($M41,Partnerek!$A$9:$K$108,11,FALSE)=\"\",\"\",VLOOKUP($M41,Partnerek!$A$9:$K$108,11,FALSE)),\"\")","v":""},{"$f":"IFERROR(\nIF(VLOOKUP($N41,Partnerek!$A$9:$K$108,11,FALSE)=\"\",\"\",VLOOKUP($N41,Partnerek!$A$9:$K$108,11,FALSE)),\"\")","v":""},{"$f":"IFERROR(VLOOKUP(Z41,ráták!$A$3:$AR$6,MATCH($Q41,ráták!$C$2:$AR$2,1)+2,FALSE),\"\")","v":""}]
[null,null,null,null,null,null,null,null,null,null,null,null,{"$f":"IF((IFERROR(RIGHT($A42,2),\"\")=\"KI\"),Azonosítás!$A$9,\"\")","v":""},null,null,null,"",null,null,null,"",null,null,null,{"$f":"IFERROR(\nIF(VLOOKUP($M42,Partnerek!$A$9:$K$108,11,FALSE)=\"\",\"\",VLOOKUP($M42,Partnerek!$A$9:$K$108,11,FALSE)),\"\")","v":""},{"$f":"IFERROR(\nIF(VLOOKUP($N42,Partnerek!$A$9:$K$108,11,FALSE)=\"\",\"\",VLOOKUP($N42,Partnerek!$A$9:$K$108,11,FALSE)),\"\")","v":""},{"$f":"IFERROR(VLOOKUP(Z42,ráták!$A$3:$AR$6,MATCH($Q42,ráták!$C$2:$AR$2,1)+2,FALSE),\"\")","v":""}]
[null,null,null,null,null,null,null,null,null,null,null,null,{"$f":"IF((IFERROR(RIGHT($A43,2),\"\")=\"KI\"),Azonosítás!$A$9,\"\")","v":""},null,null,null,"",null,null,null,"",null,null,null,{"$f":"IFERROR(\nIF(VLOOKUP($M43,Partnerek!$A$9:$K$108,11,FALSE)=\"\",\"\",VLOOKUP($M43,Partnerek!$A$9:$K$108,11,FALSE)),\"\")","v":""},{"$f":"IFERROR(\nIF(VLOOKUP($N43,Partnerek!$A$9:$K$108,11,FALSE)=\"\",\"\",VLOOKUP($N43,Partnerek!$A$9:$K$108,11,FALSE)),\"\")","v":""},{"$f":"IFERROR(VLOOKUP(Z43,ráták!$A$3:$AR$6,MATCH($Q43,ráták!$C$2:$AR$2,1)+2,FALSE),\"\")","v":""}]
[null,null,null,null,null,null,null,null,null,null,null,null,{"$f":"IF((IFERROR(RIGHT($A44,2),\"\")=\"KI\"),Azonosítás!$A$9,\"\")","v":""},null,null,null,"",null,null,null,"",null,null,null,{"$f":"IFERROR(\nIF(VLOOKUP($M44,Partnerek!$A$9:$K$108,11,FALSE)=\"\",\"\",VLOOKUP($M44,Partnerek!$A$9:$K$108,11,FALSE)),\"\")","v":""},{"$f":"IFERROR(\nIF(VLOOKUP($N44,Partnerek!$A$9:$K$108,11,FALSE)=\"\",\"\",VLOOKUP($N44,Partnerek!$A$9:$K$108,11,FALSE)),\"\")","v":""},{"$f":"IFERROR(VLOOKUP(Z44,ráták!$A$3:$AR$6,MATCH($Q44,ráták!$C$2:$AR$2,1)+2,FALSE),\"\")","v":""}]
[null,null,null,null,null,null,null,null,null,null,null,null,{"$f":"IF((IFERROR(RIGHT($A45,2),\"\")=\"KI\"),Azonosítás!$A$9,\"\")","v":""},null,null,null,"",null,null,null,"",null,null,null,{"$f":"IFERROR(\nIF(VLOOKUP($M45,Partnerek!$A$9:$K$108,11,FALSE)=\"\",\"\",VLOOKUP($M45,Partnerek!$A$9:$K$108,11,FALSE)),\"\")","v":""},{"$f":"IFERROR(\nIF(VLOOKUP($N45,Partnerek!$A$9:$K$108,11,FALSE)=\"\",\"\",VLOOKUP($N45,Partnerek!$A$9:$K$108,11,FALSE)),\"\")","v":""},{"$f":"IFERROR(VLOOKUP(Z45,ráták!$A$3:$AR$6,MATCH($Q45,ráták!$C$2:$AR$2,1)+2,FALSE),\"\")","v":""}]
[null,null,null,null,null,null,null,null,null,null,null,null,{"$f":"IF((IFERROR(RIGHT($A46,2),\"\")=\"KI\"),Azonosítás!$A$9,\"\")","v":""},null,null,null,"",null,null,null,"",null,null,null,{"$f":"IFERROR(\nIF(VLOOKUP($M46,Partnerek!$A$9:$K$108,11,FALSE)=\"\",\"\",VLOOKUP($M46,Partnerek!$A$9:$K$108,11,FALSE)),\"\")","v":""},{"$f":"IFERROR(\nIF(VLOOKUP($N46,Partnerek!$A$9:$K$108,11,FALSE)=\"\",\"\",VLOOKUP($N46,Partnerek!$A$9:$K$108,11,FALSE)),\"\")","v":""},{"$f":"IFERROR(VLOOKUP(Z46,ráták!$A$3:$AR$6,MATCH($Q46,ráták!$C$2:$AR$2,1)+2,FALSE),\"\")","v":""}]
[null,null,null,null,null,null,null,null,null,null,null,null,{"$f":"IF((IFERROR(RIGHT($A47,2),\"\")=\"KI\"),Azonosítás!$A$9,\"\")","v":""},null,null,null,"",null,null,null,"",null,null,null,{"$f":"IFERROR(\nIF(VLOOKUP($M47,Partnerek!$A$9:$K$108,11,FALSE)=\"\",\"\",VLOOKUP($M47,Partnerek!$A$9:$K$108,11,FALSE)),\"\")","v":""},{"$f":"IFERROR(\nIF(VLOOKUP($N47,Partnerek!$A$9:$K$108,11,FALSE)=\"\",\"\",VLOOKUP($N47,Partnerek!$A$9:$K$108,11,FALSE)),\"\")","v":""},{"$f":"IFERROR(VLOOKUP(Z47,ráták!$A$3:$AR$6,MATCH($Q47,ráták!$C$2:$AR$2,1)+2,FALSE),\"\")","v":""}]
[null,null,null,null,null,null,null,null,null,null,null,null,{"$f":"IF((IFERROR(RIGHT($A48,2),\"\")=\"KI\"),Azonosítás!$A$9,\"\")","v":""},null,null,null,"",null,null,null,"",null,null,null,{"$f":"IFERROR(\nIF(VLOOKUP($M48,Partnerek!$A$9:$K$108,11,FALSE)=\"\",\"\",VLOOKUP($M48,Partnerek!$A$9:$K$108,11,FALSE)),\"\")","v":""},{"$f":"IFERROR(\nIF(VLOOKUP($N48,Partnerek!$A$9:$K$108,11,FALSE)=\"\",\"\",VLOOKUP($N48,Partnerek!$A$9:$K$108,11,FALSE)),\"\")","v":""},{"$f":"IFERROR(VLOOKUP(Z48,ráták!$A$3:$AR$6,MATCH($Q48,ráták!$C$2:$AR$2,1)+2,FALSE),\"\")","v":""}]
[null,null,null,null,null,null,null,null,null,null,null,null,{"$f":"IF((IFERROR(RIGHT($A49,2),\"\")=\"KI\"),Azonosítás!$A$9,\"\")","v":""},null,null,null,"",null,null,null,"",null,null,null,{"$f":"IFERROR(\nIF(VLOOKUP($M49,Partnerek!$A$9:$K$108,11,FALSE)=\"\",\"\",VLOOKUP($M49,Partnerek!$A$9:$K$108,11,FALSE)),\"\")","v":""},{"$f":"IFERROR(\nIF(VLOOKUP($N49,Partnerek!$A$9:$K$108,11,FALSE)=\"\",\"\",VLOOKUP($N49,Partnerek!$A$9:$K$108,11,FALSE)),\"\")","v":""},{"$f":"IFERROR(VLOOKUP(Z49,ráták!$A$3:$AR$6,MATCH($Q49,ráták!$C$2:$AR$2,1)+2,FALSE),\"\")","v":""}]
[null,null,null,null,null,null,null,null,null,null,null,null,{"$f":"IF((IFERROR(RIGHT($A50,2),\"\")=\"KI\"),Azonosítás!$A$9,\"\")","v":""},null,null,null,"",null,null,null,"",null,null,null,{"$f":"IFERROR(\nIF(VLOOKUP($M50,Partnerek!$A$9:$K$108,11,FALSE)=\"\",\"\",VLOOKUP($M50,Partnerek!$A$9:$K$108,11,FALSE)),\"\")","v":""},{"$f":"IFERROR(\nIF(VLOOKUP($N50,Partnerek!$A$9:$K$108,11,FALSE)=\"\",\"\",VLOOKUP($N50,Partnerek!$A$9:$K$108,11,FALSE)),\"\")","v":""},{"$f":"IFERROR(VLOOKUP(Z50,ráták!$A$3:$AR$6,MATCH($Q50,ráták!$C$2:$AR$2,1)+2,FALSE),\"\")","v":""}]
[null,null,null,null,null,null,null,null,null,null,null,null,{"$f":"IF((IFERROR(RIGHT($A51,2),\"\")=\"KI\"),Azonosítás!$A$9,\"\")","v":""},null,null,null,"",null,null,null,"",null,null,null,{"$f":"IFERROR(\nIF(VLOOKUP($M51,Partnerek!$A$9:$K$108,11,FALSE)=\"\",\"\",VLOOKUP($M51,Partnerek!$A$9:$K$108,11,FALSE)),\"\")","v":""},{"$f":"IFERROR(\nIF(VLOOKUP($N51,Partnerek!$A$9:$K$108,11,FALSE)=\"\",\"\",VLOOKUP($N51,Partnerek!$A$9:$K$108,11,FALSE)),\"\")","v":""},{"$f":"IFERROR(VLOOKUP(Z51,ráták!$A$3:$AR$6,MATCH($Q51,ráták!$C$2:$AR$2,1)+2,FALSE),\"\")","v":""}]
[null,null,null,null,null,null,null,null,null,null,null,null,{"$f":"IF((IFERROR(RIGHT($A52,2),\"\")=\"KI\"),Azonosítás!$A$9,\"\")","v":""},null,null,null,"",null,null,null,"",null,null,null,{"$f":"IFERROR(\nIF(VLOOKUP($M52,Partnerek!$A$9:$K$108,11,FALSE)=\"\",\"\",VLOOKUP($M52,Partnerek!$A$9:$K$108,11,FALSE)),\"\")","v":""},{"$f":"IFERROR(\nIF(VLOOKUP($N52,Partnerek!$A$9:$K$108,11,FALSE)=\"\",\"\",VLOOKUP($N52,Partnerek!$A$9:$K$108,11,FALSE)),\"\")","v":""},{"$f":"IFERROR(VLOOKUP(Z52,ráták!$A$3:$AR$6,MATCH($Q52,ráták!$C$2:$AR$2,1)+2,FALSE),\"\")","v":""}]
[null,null,null,null,null,null,null,null,null,null,null,null,{"$f":"IF((IFERROR(RIGHT($A53,2),\"\")=\"KI\"),Azonosítás!$A$9,\"\")","v":""},null,null,null,"",null,null,null,"",null,null,null,{"$f":"IFERROR(\nIF(VLOOKUP($M53,Partnerek!$A$9:$K$108,11,FALSE)=\"\",\"\",VLOOKUP($M53,Partnerek!$A$9:$K$108,11,FALSE)),\"\")","v":""},{"$f":"IFERROR(\nIF(VLOOKUP($N53,Partnerek!$A$9:$K$108,11,FALSE)=\"\",\"\",VLOOKUP($N53,Partnerek!$A$9:$K$108,11,FALSE)),\"\")","v":""},{"$f":"IFERROR(VLOOKUP(Z53,ráták!$A$3:$AR$6,MATCH($Q53,ráták!$C$2:$AR$2,1)+2,FALSE),\"\")","v":""}]
[null,null,null,null,null,null,null,null,null,null,null,null,{"$f":"IF((IFERROR(RIGHT($A54,2),\"\")=\"KI\"),Azonosítás!$A$9,\"\")","v":""},null,null,null,"",null,null,null,"",null,null,null,{"$f":"IFERROR(\nIF(VLOOKUP($M54,Partnerek!$A$9:$K$108,11,FALSE)=\"\",\"\",VLOOKUP($M54,Partnerek!$A$9:$K$108,11,FALSE)),\"\")","v":""},{"$f":"IFERROR(\nIF(VLOOKUP($N54,Partnerek!$A$9:$K$108,11,FALSE)=\"\",\"\",VLOOKUP($N54,Partnerek!$A$9:$K$108,11,FALSE)),\"\")","v":""},{"$f":"IFERROR(VLOOKUP(Z54,ráták!$A$3:$AR$6,MATCH($Q54,ráták!$C$2:$AR$2,1)+2,FALSE),\"\")","v":""}]
[null,null,null,null,null,null,null,null,null,null,null,null,{"$f":"IF((IFERROR(RIGHT($A55,2),\"\")=\"KI\"),Azonosítás!$A$9,\"\")","v":""},null,null,null,"",null,null,null,"",null,null,null,{"$f":"IFERROR(\nIF(VLOOKUP($M55,Partnerek!$A$9:$K$108,11,FALSE)=\"\",\"\",VLOOKUP($M55,Partnerek!$A$9:$K$108,11,FALSE)),\"\")","v":""},{"$f":"IFERROR(\nIF(VLOOKUP($N55,Partnerek!$A$9:$K$108,11,FALSE)=\"\",\"\",VLOOKUP($N55,Partnerek!$A$9:$K$108,11,FALSE)),\"\")","v":""},{"$f":"IFERROR(VLOOKUP(Z55,ráták!$A$3:$AR$6,MATCH($Q55,ráták!$C$2:$AR$2,1)+2,FALSE),\"\")","v":""}]
[null,null,null,null,null,null,null,null,null,null,null,null,{"$f":"IF((IFERROR(RIGHT($A56,2),\"\")=\"KI\"),Azonosítás!$A$9,\"\")","v":""},null,null,null,"",null,null,null,"",null,null,null,{"$f":"IFERROR(\nIF(VLOOKUP($M56,Partnerek!$A$9:$K$108,11,FALSE)=\"\",\"\",VLOOKUP($M56,Partnerek!$A$9:$K$108,11,FALSE)),\"\")","v":""},{"$f":"IFERROR(\nIF(VLOOKUP($N56,Partnerek!$A$9:$K$108,11,FALSE)=\"\",\"\",VLOOKUP($N56,Partnerek!$A$9:$K$108,11,FALSE)),\"\")","v":""},{"$f":"IFERROR(VLOOKUP(Z56,ráták!$A$3:$AR$6,MATCH($Q56,ráták!$C$2:$AR$2,1)+2,FALSE),\"\")","v":""}]
[null,null,null,null,null,null,null,null,null,null,null,null,{"$f":"IF((IFERROR(RIGHT($A57,2),\"\")=\"KI\"),Azonosítás!$A$9,\"\")","v":""},null,null,null,"",null,null,null,"",null,null,null,{"$f":"IFERROR(\nIF(VLOOKUP($M57,Partnerek!$A$9:$K$108,11,FALSE)=\"\",\"\",VLOOKUP($M57,Partnerek!$A$9:$K$108,11,FALSE)),\"\")","v":""},{"$f":"IFERROR(\nIF(VLOOKUP($N57,Partnerek!$A$9:$K$108,11,FALSE)=\"\",\"\",VLOOKUP($N57,Partnerek!$A$9:$K$108,11,FALSE)),\"\")","v":""},{"$f":"IFERROR(VLOOKUP(Z57,ráták!$A$3:$AR$6,MATCH($Q57,ráták!$C$2:$AR$2,1)+2,FALSE),\"\")","v":""}]
[null,null,null,null,null,null,null,null,null,null,null,null,{"$f":"IF((IFERROR(RIGHT($A58,2),\"\")=\"KI\"),Azonosítás!$A$9,\"\")","v":""},null,null,null,"",null,null,null,"",null,null,null,{"$f":"IFERROR(\nIF(VLOOKUP($M58,Partnerek!$A$9:$K$108,11,FALSE)=\"\",\"\",VLOOKUP($M58,Partnerek!$A$9:$K$108,11,FALSE)),\"\")","v":""},{"$f":"IFERROR(\nIF(VLOOKUP($N58,Partnerek!$A$9:$K$108,11,FALSE)=\"\",\"\",VLOOKUP($N58,Partnerek!$A$9:$K$108,11,FALSE)),\"\")","v":""},{"$f":"IFERROR(VLOOKUP(Z58,ráták!$A$3:$AR$6,MATCH($Q58,ráták!$C$2:$AR$2,1)+2,FALSE),\"\")","v":""}]
[null,null,null,null,null,null,null,null,null,null,null,null,{"$f":"IF((IFERROR(RIGHT($A59,2),\"\")=\"KI\"),Azonosítás!$A$9,\"\")","v":""},null,null,null,"",null,null,null,"",null,null,null,{"$f":"IFERROR(\nIF(VLOOKUP($M59,Partnerek!$A$9:$K$108,11,FALSE)=\"\",\"\",VLOOKUP($M59,Partnerek!$A$9:$K$108,11,FALSE)),\"\")","v":""},{"$f":"IFERROR(\nIF(VLOOKUP($N59,Partnerek!$A$9:$K$108,11,FALSE)=\"\",\"\",VLOOKUP($N59,Partnerek!$A$9:$K$108,11,FALSE)),\"\")","v":""},{"$f":"IFERROR(VLOOKUP(Z59,ráták!$A$3:$AR$6,MATCH($Q59,ráták!$C$2:$AR$2,1)+2,FALSE),\"\")","v":""}]
[null,null,null,null,null,null,null,null,null,null,null,null,{"$f":"IF((IFERROR(RIGHT($A60,2),\"\")=\"KI\"),Azonosítás!$A$9,\"\")","v":""},null,null,null,"",null,null,null,"",null,null,null,{"$f":"IFERROR(\nIF(VLOOKUP($M60,Partnerek!$A$9:$K$108,11,FALSE)=\"\",\"\",VLOOKUP($M60,Partnerek!$A$9:$K$108,11,FALSE)),\"\")","v":""},{"$f":"IFERROR(\nIF(VLOOKUP($N60,Partnerek!$A$9:$K$108,11,FALSE)=\"\",\"\",VLOOKUP($N60,Partnerek!$A$9:$K$108,11,FALSE)),\"\")","v":""},{"$f":"IFERROR(VLOOKUP(Z60,ráták!$A$3:$AR$6,MATCH($Q60,ráták!$C$2:$AR$2,1)+2,FALSE),\"\")","v":""}]
[null,null,null,null,null,null,null,null,null,null,null,null,{"$f":"IF((IFERROR(RIGHT($A61,2),\"\")=\"KI\"),Azonosítás!$A$9,\"\")","v":""},null,null,null,"",null,null,null,"",null,null,null,{"$f":"IFERROR(\nIF(VLOOKUP($M61,Partnerek!$A$9:$K$108,11,FALSE)=\"\",\"\",VLOOKUP($M61,Partnerek!$A$9:$K$108,11,FALSE)),\"\")","v":""},{"$f":"IFERROR(\nIF(VLOOKUP($N61,Partnerek!$A$9:$K$108,11,FALSE)=\"\",\"\",VLOOKUP($N61,Partnerek!$A$9:$K$108,11,FALSE)),\"\")","v":""},{"$f":"IFERROR(VLOOKUP(Z61,ráták!$A$3:$AR$6,MATCH($Q61,ráták!$C$2:$AR$2,1)+2,FALSE),\"\")","v":""}]
[null,null,null,null,null,null,null,null,null,null,null,null,{"$f":"IF((IFERROR(RIGHT($A62,2),\"\")=\"KI\"),Azonosítás!$A$9,\"\")","v":""},null,null,null,"",null,null,null,"",null,null,null,{"$f":"IFERROR(\nIF(VLOOKUP($M62,Partnerek!$A$9:$K$108,11,FALSE)=\"\",\"\",VLOOKUP($M62,Partnerek!$A$9:$K$108,11,FALSE)),\"\")","v":""},{"$f":"IFERROR(\nIF(VLOOKUP($N62,Partnerek!$A$9:$K$108,11,FALSE)=\"\",\"\",VLOOKUP($N62,Partnerek!$A$9:$K$108,11,FALSE)),\"\")","v":""},{"$f":"IFERROR(VLOOKUP(Z62,ráták!$A$3:$AR$6,MATCH($Q62,ráták!$C$2:$AR$2,1)+2,FALSE),\"\")","v":""}]
[null,null,null,null,null,null,null,null,null,null,null,null,{"$f":"IF((IFERROR(RIGHT($A63,2),\"\")=\"KI\"),Azonosítás!$A$9,\"\")","v":""},null,null,null,{"$f":"IFERROR(IF(P63<=O63,\"\",IF( (P63-O63+1)>42,\"\",P63-O63+1)),\"\")","v":""},null,null,null,"",null,null,null,{"$f":"IFERROR(\nIF(VLOOKUP($M63,Partnerek!$A$9:$K$108,11,FALSE)=\"\",\"\",VLOOKUP($M63,Partnerek!$A$9:$K$108,11,FALSE)),\"\")","v":""},{"$f":"IFERROR(\nIF(VLOOKUP($N63,Partnerek!$A$9:$K$108,11,FALSE)=\"\",\"\",VLOOKUP($N63,Partnerek!$A$9:$K$108,11,FALSE)),\"\")","v":""},{"$f":"IFERROR(VLOOKUP(Z63,ráták!$A$3:$AR$6,MATCH($Q63,ráták!$C$2:$AR$2,1)+2,FALSE),\"\")","v":""}]
[null,null,null,null,null,null,null,null,null,null,null,null,{"$f":"IF((IFERROR(RIGHT($A64,2),\"\")=\"KI\"),Azonosítás!$A$9,\"\")","v":""},null,null,null,"",null,null,null,"",null,null,null,{"$f":"IFERROR(\nIF(VLOOKUP($M64,Partnerek!$A$9:$K$108,11,FALSE)=\"\",\"\",VLOOKUP($M64,Partnerek!$A$9:$K$108,11,FALSE)),\"\")","v":""},{"$f":"IFERROR(\nIF(VLOOKUP($N64,Partnerek!$A$9:$K$108,11,FALSE)=\"\",\"\",VLOOKUP($N64,Partnerek!$A$9:$K$108,11,FALSE)),\"\")","v":""},{"$f":"IFERROR(VLOOKUP(Z64,ráták!$A$3:$AR$6,MATCH($Q64,ráták!$C$2:$AR$2,1)+2,FALSE),\"\")","v":""}]
[null,null,null,null,null,null,null,null,null,null,null,null,{"$f":"IF((IFERROR(RIGHT($A65,2),\"\")=\"KI\"),Azonosítás!$A$9,\"\")","v":""},null,null,null,"",null,null,null,"",null,null,null,{"$f":"IFERROR(\nIF(VLOOKUP($M65,Partnerek!$A$9:$K$108,11,FALSE)=\"\",\"\",VLOOKUP($M65,Partnerek!$A$9:$K$108,11,FALSE)),\"\")","v":""},{"$f":"IFERROR(\nIF(VLOOKUP($N65,Partnerek!$A$9:$K$108,11,FALSE)=\"\",\"\",VLOOKUP($N65,Partnerek!$A$9:$K$108,11,FALSE)),\"\")","v":""},{"$f":"IFERROR(VLOOKUP(Z65,ráták!$A$3:$AR$6,MATCH($Q65,ráták!$C$2:$AR$2,1)+2,FALSE),\"\")","v":""}]
[null,null,null,null,null,null,null,null,null,null,null,null,{"$f":"IF((IFERROR(RIGHT($A66,2),\"\")=\"KI\"),Azonosítás!$A$9,\"\")","v":""},null,null,null,"",null,null,null,"",null,null,null,{"$f":"IFERROR(\nIF(VLOOKUP($M66,Partnerek!$A$9:$K$108,11,FALSE)=\"\",\"\",VLOOKUP($M66,Partnerek!$A$9:$K$108,11,FALSE)),\"\")","v":""},{"$f":"IFERROR(\nIF(VLOOKUP($N66,Partnerek!$A$9:$K$108,11,FALSE)=\"\",\"\",VLOOKUP($N66,Partnerek!$A$9:$K$108,11,FALSE)),\"\")","v":""},{"$f":"IFERROR(VLOOKUP(Z66,ráták!$A$3:$AR$6,MATCH($Q66,ráták!$C$2:$AR$2,1)+2,FALSE),\"\")","v":""}]
[null,null,null,null,null,null,null,null,null,null,null,null,{"$f":"IF((IFERROR(RIGHT($A67,2),\"\")=\"KI\"),Azonosítás!$A$9,\"\")","v":""},null,null,null,"",null,null,null,"",null,null,null,{"$f":"IFERROR(\nIF(VLOOKUP($M67,Partnerek!$A$9:$K$108,11,FALSE)=\"\",\"\",VLOOKUP($M67,Partnerek!$A$9:$K$108,11,FALSE)),\"\")","v":""},{"$f":"IFERROR(\nIF(VLOOKUP($N67,Partnerek!$A$9:$K$108,11,FALSE)=\"\",\"\",VLOOKUP($N67,Partnerek!$A$9:$K$108,11,FALSE)),\"\")","v":""},{"$f":"IFERROR(VLOOKUP(Z67,ráták!$A$3:$AR$6,MATCH($Q67,ráták!$C$2:$AR$2,1)+2,FALSE),\"\")","v":""}]
[null,null,null,null,null,null,null,null,null,null,null,null,{"$f":"IF((IFERROR(RIGHT($A68,2),\"\")=\"KI\"),Azonosítás!$A$9,\"\")","v":""},null,null,null,"",null,null,null,"",null,null,null,{"$f":"IFERROR(\nIF(VLOOKUP($M68,Partnerek!$A$9:$K$108,11,FALSE)=\"\",\"\",VLOOKUP($M68,Partnerek!$A$9:$K$108,11,FALSE)),\"\")","v":""},{"$f":"IFERROR(\nIF(VLOOKUP($N68,Partnerek!$A$9:$K$108,11,FALSE)=\"\",\"\",VLOOKUP($N68,Partnerek!$A$9:$K$108,11,FALSE)),\"\")","v":""},{"$f":"IFERROR(VLOOKUP(Z68,ráták!$A$3:$AR$6,MATCH($Q68,ráták!$C$2:$AR$2,1)+2,FALSE),\"\")","v":""}]
[null,null,null,null,null,null,null,null,null,null,null,null,{"$f":"IF((IFERROR(RIGHT($A69,2),\"\")=\"KI\"),Azonosítás!$A$9,\"\")","v":""},null,null,null,"",null,null,null,"",null,null,null,{"$f":"IFERROR(\nIF(VLOOKUP($M69,Partnerek!$A$9:$K$108,11,FALSE)=\"\",\"\",VLOOKUP($M69,Partnerek!$A$9:$K$108,11,FALSE)),\"\")","v":""},{"$f":"IFERROR(\nIF(VLOOKUP($N69,Partnerek!$A$9:$K$108,11,FALSE)=\"\",\"\",VLOOKUP($N69,Partnerek!$A$9:$K$108,11,FALSE)),\"\")","v":""},{"$f":"IFERROR(VLOOKUP(Z69,ráták!$A$3:$AR$6,MATCH($Q69,ráták!$C$2:$AR$2,1)+2,FALSE),\"\")","v":""}]
[null,null,null,null,null,null,null,null,null,null,null,null,{"$f":"IF((IFERROR(RIGHT($A70,2),\"\")=\"KI\"),Azonosítás!$A$9,\"\")","v":""},null,null,null,"",null,null,null,"",null,null,null,{"$f":"IFERROR(\nIF(VLOOKUP($M70,Partnerek!$A$9:$K$108,11,FALSE)=\"\",\"\",VLOOKUP($M70,Partnerek!$A$9:$K$108,11,FALSE)),\"\")","v":""},{"$f":"IFERROR(\nIF(VLOOKUP($N70,Partnerek!$A$9:$K$108,11,FALSE)=\"\",\"\",VLOOKUP($N70,Partnerek!$A$9:$K$108,11,FALSE)),\"\")","v":""},{"$f":"IFERROR(VLOOKUP(Z70,ráták!$A$3:$AR$6,MATCH($Q70,ráták!$C$2:$AR$2,1)+2,FALSE),\"\")","v":""}]
[null,null,null,null,null,null,null,null,null,null,null,null,{"$f":"IF((IFERROR(RIGHT($A71,2),\"\")=\"KI\"),Azonosítás!$A$9,\"\")","v":""},null,null,null,"",null,null,null,"",null,null,null,{"$f":"IFERROR(\nIF(VLOOKUP($M71,Partnerek!$A$9:$K$108,11,FALSE)=\"\",\"\",VLOOKUP($M71,Partnerek!$A$9:$K$108,11,FALSE)),\"\")","v":""},{"$f":"IFERROR(\nIF(VLOOKUP($N71,Partnerek!$A$9:$K$108,11,FALSE)=\"\",\"\",VLOOKUP($N71,Partnerek!$A$9:$K$108,11,FALSE)),\"\")","v":""},{"$f":"IFERROR(VLOOKUP(Z71,ráták!$A$3:$AR$6,MATCH($Q71,ráták!$C$2:$AR$2,1)+2,FALSE),\"\")","v":""}]
[null,null,null,null,null,null,null,null,null,null,null,null,{"$f":"IF((IFERROR(RIGHT($A72,2),\"\")=\"KI\"),Azonosítás!$A$9,\"\")","v":""},null,null,null,"",null,null,null,"",null,null,null,{"$f":"IFERROR(\nIF(VLOOKUP($M72,Partnerek!$A$9:$K$108,11,FALSE)=\"\",\"\",VLOOKUP($M72,Partnerek!$A$9:$K$108,11,FALSE)),\"\")","v":""},{"$f":"IFERROR(\nIF(VLOOKUP($N72,Partnerek!$A$9:$K$108,11,FALSE)=\"\",\"\",VLOOKUP($N72,Partnerek!$A$9:$K$108,11,FALSE)),\"\")","v":""},{"$f":"IFERROR(VLOOKUP(Z72,ráták!$A$3:$AR$6,MATCH($Q72,ráták!$C$2:$AR$2,1)+2,FALSE),\"\")","v":""}]
[null,null,null,null,null,null,null,null,null,null,null,null,{"$f":"IF((IFERROR(RIGHT($A73,2),\"\")=\"KI\"),Azonosítás!$A$9,\"\")","v":""},null,null,null,"",null,null,null,"",null,null,null,{"$f":"IFERROR(\nIF(VLOOKUP($M73,Partnerek!$A$9:$K$108,11,FALSE)=\"\",\"\",VLOOKUP($M73,Partnerek!$A$9:$K$108,11,FALSE)),\"\")","v":""},{"$f":"IFERROR(\nIF(VLOOKUP($N73,Partnerek!$A$9:$K$108,11,FALSE)=\"\",\"\",VLOOKUP($N73,Partnerek!$A$9:$K$108,11,FALSE)),\"\")","v":""},{"$f":"IFERROR(VLOOKUP(Z73,ráták!$A$3:$AR$6,MATCH($Q73,ráták!$C$2:$AR$2,1)+2,FALSE),\"\")","v":""}]
[null,null,null,null,null,null,null,null,null,null,null,null,{"$f":"IF((IFERROR(RIGHT($A74,2),\"\")=\"KI\"),Azonosítás!$A$9,\"\")","v":""},null,null,null,{"$f":"IFERROR(IF(P74<=O74,\"\",IF( (P74-O74+1)>42,\"\",P74-O74+1)),\"\")","v":""},null,null,null,{"$f":"IFERROR(\n   IF( ((RIGHT(A74,2)=\"KI\")*(Y74=\"HU\")*(Z74<>\"HU\"))+((RIGHT(A74,2)=\"BE\")*(Y74<>\"HU\")*(Z74=\"HU\")),  IF(A74<>\"\",AA74,\"\"),\"\"),\"\")","v":""},null,null,null,{"$f":"IFERROR(\nIF(VLOOKUP($M74,Partnerek!$A$9:$K$108,11,FALSE)=\"\",\"\",VLOOKUP($M74,Partnerek!$A$9:$K$108,11,FALSE)),\"\")","v":""},{"$f":"IFERROR(\nIF(VLOOKUP($N74,Partnerek!$A$9:$K$108,11,FALSE)=\"\",\"\",VLOOKUP($N74,Partnerek!$A$9:$K$108,11,FALSE)),\"\")","v":""},{"$f":"IFERROR(VLOOKUP(Z74,ráták!$A$3:$AR$6,MATCH($Q74,ráták!$C$2:$AR$2,1)+2,FALSE),\"\")","v":""}]
[null,null,null,null,null,null,null,null,null,null,null,null,{"$f":"IF((IFERROR(RIGHT($A75,2),\"\")=\"KI\"),Azonosítás!$A$9,\"\")","v":""},null,null,null,"",null,null,null,"",null,null,null,{"$f":"IFERROR(\nIF(VLOOKUP($M75,Partnerek!$A$9:$K$108,11,FALSE)=\"\",\"\",VLOOKUP($M75,Partnerek!$A$9:$K$108,11,FALSE)),\"\")","v":""},{"$f":"IFERROR(\nIF(VLOOKUP($N75,Partnerek!$A$9:$K$108,11,FALSE)=\"\",\"\",VLOOKUP($N75,Partnerek!$A$9:$K$108,11,FALSE)),\"\")","v":""},{"$f":"IFERROR(VLOOKUP(Z75,ráták!$A$3:$AR$6,MATCH($Q75,ráták!$C$2:$AR$2,1)+2,FALSE),\"\")","v":""}]
[null,null,null,null,null,null,null,null,null,null,null,null,{"$f":"IF((IFERROR(RIGHT($A76,2),\"\")=\"KI\"),Azonosítás!$A$9,\"\")","v":""},null,null,null,"",null,null,null,"",null,null,null,{"$f":"IFERROR(\nIF(VLOOKUP($M76,Partnerek!$A$9:$K$108,11,FALSE)=\"\",\"\",VLOOKUP($M76,Partnerek!$A$9:$K$108,11,FALSE)),\"\")","v":""},{"$f":"IFERROR(\nIF(VLOOKUP($N76,Partnerek!$A$9:$K$108,11,FALSE)=\"\",\"\",VLOOKUP($N76,Partnerek!$A$9:$K$108,11,FALSE)),\"\")","v":""},{"$f":"IFERROR(VLOOKUP(Z76,ráták!$A$3:$AR$6,MATCH($Q76,ráták!$C$2:$AR$2,1)+2,FALSE),\"\")","v":""}]
[null,null,null,null,null,null,null,null,null,null,null,null,{"$f":"IF((IFERROR(RIGHT($A77,2),\"\")=\"KI\"),Azonosítás!$A$9,\"\")","v":""},null,null,null,"",null,null,null,"",null,null,null,{"$f":"IFERROR(\nIF(VLOOKUP($M77,Partnerek!$A$9:$K$108,11,FALSE)=\"\",\"\",VLOOKUP($M77,Partnerek!$A$9:$K$108,11,FALSE)),\"\")","v":""},{"$f":"IFERROR(\nIF(VLOOKUP($N77,Partnerek!$A$9:$K$108,11,FALSE)=\"\",\"\",VLOOKUP($N77,Partnerek!$A$9:$K$108,11,FALSE)),\"\")","v":""},{"$f":"IFERROR(VLOOKUP(Z77,ráták!$A$3:$AR$6,MATCH($Q77,ráták!$C$2:$AR$2,1)+2,FALSE),\"\")","v":""}]
[null,null,null,null,null,null,null,null,null,null,null,null,{"$f":"IF((IFERROR(RIGHT($A78,2),\"\")=\"KI\"),Azonosítás!$A$9,\"\")","v":""},null,null,null,"",null,null,null,"",null,null,null,{"$f":"IFERROR(\nIF(VLOOKUP($M78,Partnerek!$A$9:$K$108,11,FALSE)=\"\",\"\",VLOOKUP($M78,Partnerek!$A$9:$K$108,11,FALSE)),\"\")","v":""},{"$f":"IFERROR(\nIF(VLOOKUP($N78,Partnerek!$A$9:$K$108,11,FALSE)=\"\",\"\",VLOOKUP($N78,Partnerek!$A$9:$K$108,11,FALSE)),\"\")","v":""},{"$f":"IFERROR(VLOOKUP(Z78,ráták!$A$3:$AR$6,MATCH($Q78,ráták!$C$2:$AR$2,1)+2,FALSE),\"\")","v":""}]
[null,null,null,null,null,null,null,null,null,null,null,null,{"$f":"IF((IFERROR(RIGHT($A79,2),\"\")=\"KI\"),Azonosítás!$A$9,\"\")","v":""},null,null,null,"",null,null,null,"",null,null,null,{"$f":"IFERROR(\nIF(VLOOKUP($M79,Partnerek!$A$9:$K$108,11,FALSE)=\"\",\"\",VLOOKUP($M79,Partnerek!$A$9:$K$108,11,FALSE)),\"\")","v":""},{"$f":"IFERROR(\nIF(VLOOKUP($N79,Partnerek!$A$9:$K$108,11,FALSE)=\"\",\"\",VLOOKUP($N79,Partnerek!$A$9:$K$108,11,FALSE)),\"\")","v":""},{"$f":"IFERROR(VLOOKUP(Z79,ráták!$A$3:$AR$6,MATCH($Q79,ráták!$C$2:$AR$2,1)+2,FALSE),\"\")","v":""}]
[null,null,null,null,null,null,null,null,null,null,null,null,{"$f":"IF((IFERROR(RIGHT($A80,2),\"\")=\"KI\"),Azonosítás!$A$9,\"\")","v":""},null,null,null,"",null,null,null,"",null,null,null,{"$f":"IFERROR(\nIF(VLOOKUP($M80,Partnerek!$A$9:$K$108,11,FALSE)=\"\",\"\",VLOOKUP($M80,Partnerek!$A$9:$K$108,11,FALSE)),\"\")","v":""},{"$f":"IFERROR(\nIF(VLOOKUP($N80,Partnerek!$A$9:$K$108,11,FALSE)=\"\",\"\",VLOOKUP($N80,Partnerek!$A$9:$K$108,11,FALSE)),\"\")","v":""},{"$f":"IFERROR(VLOOKUP(Z80,ráták!$A$3:$AR$6,MATCH($Q80,ráták!$C$2:$AR$2,1)+2,FALSE),\"\")","v":""}]
[null,null,null,null,null,null,null,null,null,null,null,null,{"$f":"IF((IFERROR(RIGHT($A81,2),\"\")=\"KI\"),Azonosítás!$A$9,\"\")","v":""},null,null,null,"",null,null,null,"",null,null,null,{"$f":"IFERROR(\nIF(VLOOKUP($M81,Partnerek!$A$9:$K$108,11,FALSE)=\"\",\"\",VLOOKUP($M81,Partnerek!$A$9:$K$108,11,FALSE)),\"\")","v":""},{"$f":"IFERROR(\nIF(VLOOKUP($N81,Partnerek!$A$9:$K$108,11,FALSE)=\"\",\"\",VLOOKUP($N81,Partnerek!$A$9:$K$108,11,FALSE)),\"\")","v":""},{"$f":"IFERROR(VLOOKUP(Z81,ráták!$A$3:$AR$6,MATCH($Q81,ráták!$C$2:$AR$2,1)+2,FALSE),\"\")","v":""}]
[null,null,null,null,null,null,null,null,null,null,null,null,{"$f":"IF((IFERROR(RIGHT($A82,2),\"\")=\"KI\"),Azonosítás!$A$9,\"\")","v":""},null,null,null,"",null,null,null,"",null,null,null,{"$f":"IFERROR(\nIF(VLOOKUP($M82,Partnerek!$A$9:$K$108,11,FALSE)=\"\",\"\",VLOOKUP($M82,Partnerek!$A$9:$K$108,11,FALSE)),\"\")","v":""},{"$f":"IFERROR(\nIF(VLOOKUP($N82,Partnerek!$A$9:$K$108,11,FALSE)=\"\",\"\",VLOOKUP($N82,Partnerek!$A$9:$K$108,11,FALSE)),\"\")","v":""},{"$f":"IFERROR(VLOOKUP(Z82,ráták!$A$3:$AR$6,MATCH($Q82,ráták!$C$2:$AR$2,1)+2,FALSE),\"\")","v":""}]
[null,null,null,null,null,null,null,null,null,null,null,null,{"$f":"IF((IFERROR(RIGHT($A83,2),\"\")=\"KI\"),Azonosítás!$A$9,\"\")","v":""},null,null,null,"",null,null,null,"",null,null,null,{"$f":"IFERROR(\nIF(VLOOKUP($M83,Partnerek!$A$9:$K$108,11,FALSE)=\"\",\"\",VLOOKUP($M83,Partnerek!$A$9:$K$108,11,FALSE)),\"\")","v":""},{"$f":"IFERROR(\nIF(VLOOKUP($N83,Partnerek!$A$9:$K$108,11,FALSE)=\"\",\"\",VLOOKUP($N83,Partnerek!$A$9:$K$108,11,FALSE)),\"\")","v":""},{"$f":"IFERROR(VLOOKUP(Z83,ráták!$A$3:$AR$6,MATCH($Q83,ráták!$C$2:$AR$2,1)+2,FALSE),\"\")","v":""}]
[null,null,null,null,null,null,null,null,null,null,null,null,{"$f":"IF((IFERROR(RIGHT($A84,2),\"\")=\"KI\"),Azonosítás!$A$9,\"\")","v":""},null,null,null,"",null,null,null,"",null,null,null,{"$f":"IFERROR(\nIF(VLOOKUP($M84,Partnerek!$A$9:$K$108,11,FALSE)=\"\",\"\",VLOOKUP($M84,Partnerek!$A$9:$K$108,11,FALSE)),\"\")","v":""},{"$f":"IFERROR(\nIF(VLOOKUP($N84,Partnerek!$A$9:$K$108,11,FALSE)=\"\",\"\",VLOOKUP($N84,Partnerek!$A$9:$K$108,11,FALSE)),\"\")","v":""},{"$f":"IFERROR(VLOOKUP(Z84,ráták!$A$3:$AR$6,MATCH($Q84,ráták!$C$2:$AR$2,1)+2,FALSE),\"\")","v":""}]
[null,null,null,null,null,null,null,null,null,null,null,null,{"$f":"IF((IFERROR(RIGHT($A85,2),\"\")=\"KI\"),Azonosítás!$A$9,\"\")","v":""},null,null,null,"",null,null,null,"",null,null,null,{"$f":"IFERROR(\nIF(VLOOKUP($M85,Partnerek!$A$9:$K$108,11,FALSE)=\"\",\"\",VLOOKUP($M85,Partnerek!$A$9:$K$108,11,FALSE)),\"\")","v":""},{"$f":"IFERROR(\nIF(VLOOKUP($N85,Partnerek!$A$9:$K$108,11,FALSE)=\"\",\"\",VLOOKUP($N85,Partnerek!$A$9:$K$108,11,FALSE)),\"\")","v":""},{"$f":"IFERROR(VLOOKUP(Z85,ráták!$A$3:$AR$6,MATCH($Q85,ráták!$C$2:$AR$2,1)+2,FALSE),\"\")","v":""}]
[null,null,null,null,null,null,null,null,null,null,null,null,{"$f":"IF((IFERROR(RIGHT($A86,2),\"\")=\"KI\"),Azonosítás!$A$9,\"\")","v":""},null,null,null,"",null,null,null,"",null,null,null,{"$f":"IFERROR(\nIF(VLOOKUP($M86,Partnerek!$A$9:$K$108,11,FALSE)=\"\",\"\",VLOOKUP($M86,Partnerek!$A$9:$K$108,11,FALSE)),\"\")","v":""},{"$f":"IFERROR(\nIF(VLOOKUP($N86,Partnerek!$A$9:$K$108,11,FALSE)=\"\",\"\",VLOOKUP($N86,Partnerek!$A$9:$K$108,11,FALSE)),\"\")","v":""},{"$f":"IFERROR(VLOOKUP(Z86,ráták!$A$3:$AR$6,MATCH($Q86,ráták!$C$2:$AR$2,1)+2,FALSE),\"\")","v":""}]
[null,null,null,null,null,null,null,null,null,null,null,null,{"$f":"IF((IFERROR(RIGHT($A87,2),\"\")=\"KI\"),Azonosítás!$A$9,\"\")","v":""},null,null,null,"",null,null,null,"",null,null,null,{"$f":"IFERROR(\nIF(VLOOKUP($M87,Partnerek!$A$9:$K$108,11,FALSE)=\"\",\"\",VLOOKUP($M87,Partnerek!$A$9:$K$108,11,FALSE)),\"\")","v":""},{"$f":"IFERROR(\nIF(VLOOKUP($N87,Partnerek!$A$9:$K$108,11,FALSE)=\"\",\"\",VLOOKUP($N87,Partnerek!$A$9:$K$108,11,FALSE)),\"\")","v":""},{"$f":"IFERROR(VLOOKUP(Z87,ráták!$A$3:$AR$6,MATCH($Q87,ráták!$C$2:$AR$2,1)+2,FALSE),\"\")","v":""}]
[null,null,null,null,null,null,null,null,null,null,null,null,{"$f":"IF((IFERROR(RIGHT($A88,2),\"\")=\"KI\"),Azonosítás!$A$9,\"\")","v":""},null,null,null,"",null,null,null,"",null,null,null,{"$f":"IFERROR(\nIF(VLOOKUP($M88,Partnerek!$A$9:$K$108,11,FALSE)=\"\",\"\",VLOOKUP($M88,Partnerek!$A$9:$K$108,11,FALSE)),\"\")","v":""},{"$f":"IFERROR(\nIF(VLOOKUP($N88,Partnerek!$A$9:$K$108,11,FALSE)=\"\",\"\",VLOOKUP($N88,Partnerek!$A$9:$K$108,11,FALSE)),\"\")","v":""},{"$f":"IFERROR(VLOOKUP(Z88,ráták!$A$3:$AR$6,MATCH($Q88,ráták!$C$2:$AR$2,1)+2,FALSE),\"\")","v":""}]
[null,null,null,null,null,null,null,null,null,null,null,null,{"$f":"IF((IFERROR(RIGHT($A89,2),\"\")=\"KI\"),Azonosítás!$A$9,\"\")","v":""},null,null,null,"",null,null,null,"",null,null,null,{"$f":"IFERROR(\nIF(VLOOKUP($M89,Partnerek!$A$9:$K$108,11,FALSE)=\"\",\"\",VLOOKUP($M89,Partnerek!$A$9:$K$108,11,FALSE)),\"\")","v":""},{"$f":"IFERROR(\nIF(VLOOKUP($N89,Partnerek!$A$9:$K$108,11,FALSE)=\"\",\"\",VLOOKUP($N89,Partnerek!$A$9:$K$108,11,FALSE)),\"\")","v":""},{"$f":"IFERROR(VLOOKUP(Z89,ráták!$A$3:$AR$6,MATCH($Q89,ráták!$C$2:$AR$2,1)+2,FALSE),\"\")","v":""}]
[null,null,null,null,null,null,null,null,null,null,null,null,{"$f":"IF((IFERROR(RIGHT($A90,2),\"\")=\"KI\"),Azonosítás!$A$9,\"\")","v":""},null,null,null,"",null,null,null,"",null,null,null,{"$f":"IFERROR(\nIF(VLOOKUP($M90,Partnerek!$A$9:$K$108,11,FALSE)=\"\",\"\",VLOOKUP($M90,Partnerek!$A$9:$K$108,11,FALSE)),\"\")","v":""},{"$f":"IFERROR(\nIF(VLOOKUP($N90,Partnerek!$A$9:$K$108,11,FALSE)=\"\",\"\",VLOOKUP($N90,Partnerek!$A$9:$K$108,11,FALSE)),\"\")","v":""},{"$f":"IFERROR(VLOOKUP(Z90,ráták!$A$3:$AR$6,MATCH($Q90,ráták!$C$2:$AR$2,1)+2,FALSE),\"\")","v":""}]
[null,null,null,null,null,null,null,null,null,null,null,null,{"$f":"IF((IFERROR(RIGHT($A91,2),\"\")=\"KI\"),Azonosítás!$A$9,\"\")","v":""},null,null,null,"",null,null,null,"",null,null,null,{"$f":"IFERROR(\nIF(VLOOKUP($M91,Partnerek!$A$9:$K$108,11,FALSE)=\"\",\"\",VLOOKUP($M91,Partnerek!$A$9:$K$108,11,FALSE)),\"\")","v":""},{"$f":"IFERROR(\nIF(VLOOKUP($N91,Partnerek!$A$9:$K$108,11,FALSE)=\"\",\"\",VLOOKUP($N91,Partnerek!$A$9:$K$108,11,FALSE)),\"\")","v":""},{"$f":"IFERROR(VLOOKUP(Z91,ráták!$A$3:$AR$6,MATCH($Q91,ráták!$C$2:$AR$2,1)+2,FALSE),\"\")","v":""}]
[null,null,null,null,null,null,null,null,null,null,null,null,{"$f":"IF((IFERROR(RIGHT($A92,2),\"\")=\"KI\"),Azonosítás!$A$9,\"\")","v":""},null,null,null,"",null,null,null,"",null,null,null,{"$f":"IFERROR(\nIF(VLOOKUP($M92,Partnerek!$A$9:$K$108,11,FALSE)=\"\",\"\",VLOOKUP($M92,Partnerek!$A$9:$K$108,11,FALSE)),\"\")","v":""},{"$f":"IFERROR(\nIF(VLOOKUP($N92,Partnerek!$A$9:$K$108,11,FALSE)=\"\",\"\",VLOOKUP($N92,Partnerek!$A$9:$K$108,11,FALSE)),\"\")","v":""},{"$f":"IFERROR(VLOOKUP(Z92,ráták!$A$3:$AR$6,MATCH($Q92,ráták!$C$2:$AR$2,1)+2,FALSE),\"\")","v":""}]
[null,null,null,null,null,null,null,null,null,null,null,null,{"$f":"IF((IFERROR(RIGHT($A93,2),\"\")=\"KI\"),Azonosítás!$A$9,\"\")","v":""},null,null,null,"",null,null,null,"",null,null,null,{"$f":"IFERROR(\nIF(VLOOKUP($M93,Partnerek!$A$9:$K$108,11,FALSE)=\"\",\"\",VLOOKUP($M93,Partnerek!$A$9:$K$108,11,FALSE)),\"\")","v":""},{"$f":"IFERROR(\nIF(VLOOKUP($N93,Partnerek!$A$9:$K$108,11,FALSE)=\"\",\"\",VLOOKUP($N93,Partnerek!$A$9:$K$108,11,FALSE)),\"\")","v":""},{"$f":"IFERROR(VLOOKUP(Z93,ráták!$A$3:$AR$6,MATCH($Q93,ráták!$C$2:$AR$2,1)+2,FALSE),\"\")","v":""}]
[null,null,null,null,null,null,null,null,null,null,null,null,{"$f":"IF((IFERROR(RIGHT($A94,2),\"\")=\"KI\"),Azonosítás!$A$9,\"\")","v":""},null,null,null,"",null,null,null,"",null,null,null,{"$f":"IFERROR(\nIF(VLOOKUP($M94,Partnerek!$A$9:$K$108,11,FALSE)=\"\",\"\",VLOOKUP($M94,Partnerek!$A$9:$K$108,11,FALSE)),\"\")","v":""},{"$f":"IFERROR(\nIF(VLOOKUP($N94,Partnerek!$A$9:$K$108,11,FALSE)=\"\",\"\",VLOOKUP($N94,Partnerek!$A$9:$K$108,11,FALSE)),\"\")","v":""},{"$f":"IFERROR(VLOOKUP(Z94,ráták!$A$3:$AR$6,MATCH($Q94,ráták!$C$2:$AR$2,1)+2,FALSE),\"\")","v":""}]
[null,null,null,null,null,null,null,null,null,null,null,null,{"$f":"IF((IFERROR(RIGHT($A95,2),\"\")=\"KI\"),Azonosítás!$A$9,\"\")","v":""},null,null,null,"",null,null,null,"",null,null,null,{"$f":"IFERROR(\nIF(VLOOKUP($M95,Partnerek!$A$9:$K$108,11,FALSE)=\"\",\"\",VLOOKUP($M95,Partnerek!$A$9:$K$108,11,FALSE)),\"\")","v":""},{"$f":"IFERROR(\nIF(VLOOKUP($N95,Partnerek!$A$9:$K$108,11,FALSE)=\"\",\"\",VLOOKUP($N95,Partnerek!$A$9:$K$108,11,FALSE)),\"\")","v":""},{"$f":"IFERROR(VLOOKUP(Z95,ráták!$A$3:$AR$6,MATCH($Q95,ráták!$C$2:$AR$2,1)+2,FALSE),\"\")","v":""}]
[null,null,null,null,null,null,null,null,null,null,null,null,{"$f":"IF((IFERROR(RIGHT($A96,2),\"\")=\"KI\"),Azonosítás!$A$9,\"\")","v":""},null,null,null,"",null,null,null,"",null,null,null,{"$f":"IFERROR(\nIF(VLOOKUP($M96,Partnerek!$A$9:$K$108,11,FALSE)=\"\",\"\",VLOOKUP($M96,Partnerek!$A$9:$K$108,11,FALSE)),\"\")","v":""},{"$f":"IFERROR(\nIF(VLOOKUP($N96,Partnerek!$A$9:$K$108,11,FALSE)=\"\",\"\",VLOOKUP($N96,Partnerek!$A$9:$K$108,11,FALSE)),\"\")","v":""},{"$f":"IFERROR(VLOOKUP(Z96,ráták!$A$3:$AR$6,MATCH($Q96,ráták!$C$2:$AR$2,1)+2,FALSE),\"\")","v":""}]
[null,null,null,null,null,null,null,null,null,null,null,null,{"$f":"IF((IFERROR(RIGHT($A97,2),\"\")=\"KI\"),Azonosítás!$A$9,\"\")","v":""},null,null,null,"",null,null,null,"",null,null,null,{"$f":"IFERROR(\nIF(VLOOKUP($M97,Partnerek!$A$9:$K$108,11,FALSE)=\"\",\"\",VLOOKUP($M97,Partnerek!$A$9:$K$108,11,FALSE)),\"\")","v":""},{"$f":"IFERROR(\nIF(VLOOKUP($N97,Partnerek!$A$9:$K$108,11,FALSE)=\"\",\"\",VLOOKUP($N97,Partnerek!$A$9:$K$108,11,FALSE)),\"\")","v":""},{"$f":"IFERROR(VLOOKUP(Z97,ráták!$A$3:$AR$6,MATCH($Q97,ráták!$C$2:$AR$2,1)+2,FALSE),\"\")","v":""}]
[null,null,null,null,null,null,null,null,null,null,null,null,{"$f":"IF((IFERROR(RIGHT($A98,2),\"\")=\"KI\"),Azonosítás!$A$9,\"\")","v":""},null,null,null,"",null,null,null,"",null,null,null,{"$f":"IFERROR(\nIF(VLOOKUP($M98,Partnerek!$A$9:$K$108,11,FALSE)=\"\",\"\",VLOOKUP($M98,Partnerek!$A$9:$K$108,11,FALSE)),\"\")","v":""},{"$f":"IFERROR(\nIF(VLOOKUP($N98,Partnerek!$A$9:$K$108,11,FALSE)=\"\",\"\",VLOOKUP($N98,Partnerek!$A$9:$K$108,11,FALSE)),\"\")","v":""},{"$f":"IFERROR(VLOOKUP(Z98,ráták!$A$3:$AR$6,MATCH($Q98,ráták!$C$2:$AR$2,1)+2,FALSE),\"\")","v":""}]
[null,null,null,null,null,null,null,null,null,null,null,null,{"$f":"IF((IFERROR(RIGHT($A99,2),\"\")=\"KI\"),Azonosítás!$A$9,\"\")","v":""},null,null,null,"",null,null,null,"",null,null,null,{"$f":"IFERROR(\nIF(VLOOKUP($M99,Partnerek!$A$9:$K$108,11,FALSE)=\"\",\"\",VLOOKUP($M99,Partnerek!$A$9:$K$108,11,FALSE)),\"\")","v":""},{"$f":"IFERROR(\nIF(VLOOKUP($N99,Partnerek!$A$9:$K$108,11,FALSE)=\"\",\"\",VLOOKUP($N99,Partnerek!$A$9:$K$108,11,FALSE)),\"\")","v":""},{"$f":"IFERROR(VLOOKUP(Z99,ráták!$A$3:$AR$6,MATCH($Q99,ráták!$C$2:$AR$2,1)+2,FALSE),\"\")","v":""}]
[null,null,null,null,null,null,null,null,null,null,null,null,{"$f":"IF((IFERROR(RIGHT($A100,2),\"\")=\"KI\"),Azonosítás!$A$9,\"\")","v":""},null,null,null,"",null,null,null,{"$f":"IFERROR(\n   IF( ((RIGHT(A100,2)=\"KI\")*(Y100=\"HU\")*(Z100<>\"HU\"))+((RIGHT(A100,2)=\"BE\")*(Y100<>\"HU\")*(Z100=\"HU\")),  IF(A100<>\"\",AA100,\"\"),\"\"),\"\")","v":""},null,null,null,{"$f":"IFERROR(\nIF(VLOOKUP($M100,Partnerek!$A$9:$K$108,11,FALSE)=\"\",\"\",VLOOKUP($M100,Partnerek!$A$9:$K$108,11,FALSE)),\"\")","v":""},{"$f":"IFERROR(\nIF(VLOOKUP($N100,Partnerek!$A$9:$K$108,11,FALSE)=\"\",\"\",VLOOKUP($N100,Partnerek!$A$9:$K$108,11,FALSE)),\"\")","v":""},{"$f":"IFERROR(VLOOKUP(Z100,ráták!$A$3:$AR$6,MATCH($Q100,ráták!$C$2:$AR$2,1)+2,FALSE),\"\")","v":""}]
[null,null,null,null,null,null,null,null,null,null,null,null,{"$f":"IF((IFERROR(RIGHT($A101,2),\"\")=\"KI\"),Azonosítás!$A$9,\"\")","v":""},null,null,null,"",null,null,null,"",null,null,null,{"$f":"IFERROR(\nIF(VLOOKUP($M101,Partnerek!$A$9:$K$108,11,FALSE)=\"\",\"\",VLOOKUP($M101,Partnerek!$A$9:$K$108,11,FALSE)),\"\")","v":""},{"$f":"IFERROR(\nIF(VLOOKUP($N101,Partnerek!$A$9:$K$108,11,FALSE)=\"\",\"\",VLOOKUP($N101,Partnerek!$A$9:$K$108,11,FALSE)),\"\")","v":""},{"$f":"IFERROR(VLOOKUP(Z101,ráták!$A$3:$AR$6,MATCH($Q101,ráták!$C$2:$AR$2,1)+2,FALSE),\"\")","v":""}]
[null,null,null,null,null,null,null,null,null,null,null,null,{"$f":"IF((IFERROR(RIGHT($A102,2),\"\")=\"KI\"),Azonosítás!$A$9,\"\")","v":""},null,null,null,"",null,null,null,"",null,null,null,{"$f":"IFERROR(\nIF(VLOOKUP($M102,Partnerek!$A$9:$K$108,11,FALSE)=\"\",\"\",VLOOKUP($M102,Partnerek!$A$9:$K$108,11,FALSE)),\"\")","v":""},{"$f":"IFERROR(\nIF(VLOOKUP($N102,Partnerek!$A$9:$K$108,11,FALSE)=\"\",\"\",VLOOKUP($N102,Partnerek!$A$9:$K$108,11,FALSE)),\"\")","v":""},{"$f":"IFERROR(VLOOKUP(Z102,ráták!$A$3:$AR$6,MATCH($Q102,ráták!$C$2:$AR$2,1)+2,FALSE),\"\")","v":""}]
[null,null,null,null,null,null,null,null,null,null,null,null,{"$f":"IF((IFERROR(RIGHT($A103,2),\"\")=\"KI\"),Azonosítás!$A$9,\"\")","v":""},null,null,null,"",null,null,null,"",null,null,null,{"$f":"IFERROR(\nIF(VLOOKUP($M103,Partnerek!$A$9:$K$108,11,FALSE)=\"\",\"\",VLOOKUP($M103,Partnerek!$A$9:$K$108,11,FALSE)),\"\")","v":""},{"$f":"IFERROR(\nIF(VLOOKUP($N103,Partnerek!$A$9:$K$108,11,FALSE)=\"\",\"\",VLOOKUP($N103,Partnerek!$A$9:$K$108,11,FALSE)),\"\")","v":""},{"$f":"IFERROR(VLOOKUP(Z103,ráták!$A$3:$AR$6,MATCH($Q103,ráták!$C$2:$AR$2,1)+2,FALSE),\"\")","v":""}]
[null,null,null,null,null,null,null,null,null,null,null,null,{"$f":"IF((IFERROR(RIGHT($A104,2),\"\")=\"KI\"),Azonosítás!$A$9,\"\")","v":""},null,null,null,"",null,null,null,"",null,null,null,{"$f":"IFERROR(\nIF(VLOOKUP($M104,Partnerek!$A$9:$K$108,11,FALSE)=\"\",\"\",VLOOKUP($M104,Partnerek!$A$9:$K$108,11,FALSE)),\"\")","v":""},{"$f":"IFERROR(\nIF(VLOOKUP($N104,Partnerek!$A$9:$K$108,11,FALSE)=\"\",\"\",VLOOKUP($N104,Partnerek!$A$9:$K$108,11,FALSE)),\"\")","v":""},{"$f":"IFERROR(VLOOKUP(Z104,ráták!$A$3:$AR$6,MATCH($Q104,ráták!$C$2:$AR$2,1)+2,FALSE),\"\")","v":""}]
[null,null,null,null,null,null,null,null,null,null,null,null,{"$f":"IF((IFERROR(RIGHT($A105,2),\"\")=\"KI\"),Azonosítás!$A$9,\"\")","v":""},null,null,null,"",null,null,null,"",null,null,null,{"$f":"IFERROR(\nIF(VLOOKUP($M105,Partnerek!$A$9:$K$108,11,FALSE)=\"\",\"\",VLOOKUP($M105,Partnerek!$A$9:$K$108,11,FALSE)),\"\")","v":""},{"$f":"IFERROR(\nIF(VLOOKUP($N105,Partnerek!$A$9:$K$108,11,FALSE)=\"\",\"\",VLOOKUP($N105,Partnerek!$A$9:$K$108,11,FALSE)),\"\")","v":""},{"$f":"IFERROR(VLOOKUP(Z105,ráták!$A$3:$AR$6,MATCH($Q105,ráták!$C$2:$AR$2,1)+2,FALSE),\"\")","v":""}]
[null,null,null,null,null,null,null,null,null,null,null,null,{"$f":"IF((IFERROR(RIGHT($A106,2),\"\")=\"KI\"),Azonosítás!$A$9,\"\")","v":""},null,null,null,"",null,null,null,"",null,null,null,{"$f":"IFERROR(\nIF(VLOOKUP($M106,Partnerek!$A$9:$K$108,11,FALSE)=\"\",\"\",VLOOKUP($M106,Partnerek!$A$9:$K$108,11,FALSE)),\"\")","v":""},{"$f":"IFERROR(\nIF(VLOOKUP($N106,Partnerek!$A$9:$K$108,11,FALSE)=\"\",\"\",VLOOKUP($N106,Partnerek!$A$9:$K$108,11,FALSE)),\"\")","v":""},{"$f":"IFERROR(VLOOKUP(Z106,ráták!$A$3:$AR$6,MATCH($Q106,ráták!$C$2:$AR$2,1)+2,FALSE),\"\")","v":""}]
[null,null,null,null,null,null,null,null,null,null,null,null,{"$f":"IF((IFERROR(RIGHT($A107,2),\"\")=\"KI\"),Azonosítás!$A$9,\"\")","v":""},null,null,null,"",null,null,null,"",null,null,null,{"$f":"IFERROR(\nIF(VLOOKUP($M107,Partnerek!$A$9:$K$108,11,FALSE)=\"\",\"\",VLOOKUP($M107,Partnerek!$A$9:$K$108,11,FALSE)),\"\")","v":""},{"$f":"IFERROR(\nIF(VLOOKUP($N107,Partnerek!$A$9:$K$108,11,FALSE)=\"\",\"\",VLOOKUP($N107,Partnerek!$A$9:$K$108,11,FALSE)),\"\")","v":""},{"$f":"IFERROR(VLOOKUP(Z107,ráták!$A$3:$AR$6,MATCH($Q107,ráták!$C$2:$AR$2,1)+2,FALSE),\"\")","v":""}]
[null,null,null,null,null,null,null,null,null,null,null,null,{"$f":"IF((IFERROR(RIGHT($A108,2),\"\")=\"KI\"),Azonosítás!$A$9,\"\")","v":""},null,null,null,"",null,null,null,"",null,null,null,{"$f":"IFERROR(\nIF(VLOOKUP($M108,Partnerek!$A$9:$K$108,11,FALSE)=\"\",\"\",VLOOKUP($M108,Partnerek!$A$9:$K$108,11,FALSE)),\"\")","v":""},{"$f":"IFERROR(\nIF(VLOOKUP($N108,Partnerek!$A$9:$K$108,11,FALSE)=\"\",\"\",VLOOKUP($N108,Partnerek!$A$9:$K$108,11,FALSE)),\"\")","v":""},{"$f":"IFERROR(VLOOKUP(Z108,ráták!$A$3:$AR$6,MATCH($Q108,ráták!$C$2:$AR$2,1)+2,FALSE),\"\")","v":""}]

{"sheet":"Pénzügyi elszámolás","index":6,"n_rows":46,"n_cols":14,"rows_kept":46,"cut":false,"hidden":false,"merged":[[43,1,43,3],[44,1,44,3],[38,1,38,3],[45,1,45,3],[39,1,39,3],[42,1,42,3],[40,1,40,3],[41,1,41,3],[36,1,36,3],[37,1,37,3],[4,12,5,12],[3,1,3,2],[4,7,4,9],[35,1,35,3],[25,1,26,3],[25,4,26,9],[4,4,4,6],[0,1,0,11],[2,1,2,2],[2,3,2,9],[4,11,5,11],[4,10,5,10],[1,3,1,9]]}
[null,{"$f":"IF(Azonosítás!A3=\"\",\"\",Azonosítás!A3)","v":""}]
[]
[null,"Intézmény neve:",null,{"$f":"IF(Azonosítás!A9=\"\",\"\",Azonosítás!A9)","v":""}]
[null,"Szerződésszám:",null,{"$f":"Azonosítás!A6","v":0}]
[null,null,null,null,"Hallgatók",null,null,"Oktatói, személyzeti mobilitás",null,null,"Felkészítés","Mobilitás \nszervezése","Összesen"]
[null,"Szerződéses adatok",null,null,"Tanulmányok","Gyakorlat","Nyári egyetem","Oktatás","Konferencia, tréning","Intézménylátogatás"]
[null,"Megítélt támogatás összege",null,null,{"$f":"VLOOKUP($D$4,Alapadatok,6,FALSE)","v":{"$error":"#N/A"}},{"$f":"VLOOKUP($D$4,Alapadatok,7,FALSE)","v":{"$error":"#N/A"}},{"$f":"VLOOKUP($D$4,Alapadatok,8,FALSE)","v":{"$error":"#N/A"}},{"$f":"VLOOKUP($D$4,'Pályázói adatok'!A2:BG10,9,FALSE)","v":{"$error":"#N/A"}},{"$f":"VLOOKUP($D$4,'Pályázói adatok'!A2:BG10,10,FALSE)","v":{"$error":"#N/A"}},{"$f":"VLOOKUP($D$4,'Pályázói adatok'!A2:BG10,11,FALSE)","v":{"$error":"#N/A"}},{"$f":"VLOOKUP($D$4,Alapadatok,12,FALSE)","v":{"$error":"#N/A"}},{"$f":"VLOOKUP($D$4,'Pályázói adatok'!A2:BG10,13,FALSE)","v":{"$error":"#N/A"}},{"$f":"VLOOKUP($D$4,'Pályázói adatok'!A2:BG10,14,FALSE)","v":{"$error":"#N/A"}}]
[null,"Évközi módosítás összege (+/-)",null,null,0,0,0,0,0,null,0,0,{"$f":"SUM(E8:L8)","v":0}]
[null,"Megítélt összesen",null,null,{"$f":"E7+E8","v":{"$error":"#N/A"}},{"$error":"#N/A"},{"$error":"#N/A"},{"$error":"#N/A"},{"$error":"#N/A"},{"$error":"#N/A"},{"$error":"#N/A"},{"$error":"#N/A"},{"$error":"#N/A"}]
[null,"Megkötött szerződés(ek) összege (FOI - TKA)",null,null,null,null,null,null,null,null,null,null,{"$f":"SUM(E10:L10)","v":0}]
[null,null,{"$f":"\"-ig a Miniszterelnökségtől átutalt összesen\"","v":"-ig a Miniszterelnökségtől átutalt összesen"}]
[]
[null,"Jóváhagyott be- és kiutazói létszám",null,null,{"$f":"VLOOKUP($D$4,Alapadatok,18,FALSE)+VLOOKUP($D$4,Alapadatok,20,FALSE)","v":{"$error":"#N/A"}},{"$f":"VLOOKUP($D$4,Alapadatok,22,FALSE)+VLOOKUP($D$4,Alapadatok,24,FALSE)","v":{"$error":"#N/A"}},{"$f":"VLOOKUP($D$4,Alapadatok,26,FALSE)+VLOOKUP($D$4,Alapadatok,28,FALSE)","v":{"$error":"#N/A"}},{"$f":"VLOOKUP($D$4,'Pályázói adatok'!A2:BG10,30,FALSE)+VLOOKUP($D$4,'Pályázói adatok'!A2:BG10,32,FALSE)","v":{"$error":"#N/A"}},{"$f":"VLOOKUP($D$4,'Pályázói adatok'!A2:BG10,34,FALSE)+VLOOKUP($D$4,'Pályázói adatok'!A2:BG10,36,FALSE)","v":{"$error":"#N/A"}},{"$f":"VLOOKUP($D$4,'Pályázói adatok'!A2:BG10,38,FALSE)+VLOOKUP($D$4,'Pályázói adatok'!A2:BG10,40,FALSE)","v":{"$error":"#N/A"}},{"$f":"VLOOKUP($D$4,Alapadatok,59,FALSE)","v":{"$error":"#N/A"}},null,{"$f":"VLOOKUP($D$4,'Pályázói adatok'!A2:BG10,42,FALSE)","v":{"$error":"#N/A"}}]
[null,"Megkötött szerződések szerinti be- és kiutazói létszám",null,null,{"$f":"SUM(IF((('Ki- és beutazó hallgatók'!$A$9:$A$108=\"SMS_KI\")+('Ki- és beutazó hallgatók'!$A$9:$A$108=\"SMS_BE\"))*('Ki- és beutazó hallgatók'!$B$9:$B$108<>\"\"),1,0))","v":0},{"$f":"SUM(IF((('Ki- és beutazó hallgatók'!$A$9:$A$108=\"SMP_KI\")+('Ki- és beutazó hallgatók'!$A$9:$A$108=\"SMP_BE\"))*('Ki- és beutazó hallgatók'!$B$9:$B$108<>\"\"),1,0))","v":0},{"$f":"SUM(IF((('Ki- és beutazó hallgatók'!$A$9:$A$108=\"SMS_SU_KI\")+('Ki- és beutazó hallgatók'!$A$9:$A$108=\"SMS_SU_BE\"))*('Ki- és beutazó hallgatók'!$B$9:$B$108<>\"\"),1,0))","v":0},{"$f":"SUM(IF((('Ki- és beutazó okt, személyzet'!$A$9:$A$108=\"STA_KI\")+('Ki- és beutazó okt, személyzet'!$A$9:$A$108=\"STA_BE\"))*('Ki- és beutazó okt, személyzet'!$B$9:$B$108=\"Oktatás\")*('Ki- és beutazó okt, személyzet'!$C$9:$C$108<>\"\"),1,0))","v":0},{"$f":"SUM(IF(('Ki- és beutazó okt, személyzet'!$A$9:$A$108<>\"\")*('Ki- és beutazó okt, személyzet'!$B$9:$B$108=\"Konferencia/Szeminárium/Tréning\")*('Ki- és beutazó okt, személyzet'!$C$9:$C$108<>\"\"),1,0))","v":0},{"$f":"SUM(IF(('Ki- és beutazó okt, személyzet'!$A$9:$A$108<>\"\")*('Ki- és beutazó okt, személyzet'!$B$9:$B$108=\"Intézménylátogatás\")*('Ki- és beutazó okt, személyzet'!$C$9:$C$108<>\"\"),1,0))","v":0},{"$f":"SUM(IF(('Ki- és beutazó hallgatók'!$AA$9:$AA$108=\"Y\")*('Ki- és beutazó hallgatók'!$B$9:$B$108<>\"\"),1,0))","v":0},null,{"$f":"SUM(E14:J14)","v":0}]
[null,"További tervezett be- és kiutazói létszám",null,null,{"$f":"SUM(IF((('Ki- és beutazó hallgatók'!$A$9:$A$108=\"SMS_KI\")+('Ki- és beutazó hallgatók'!$A$9:$A$108=\"SMS_BE\")),1,0))","v":0},{"$f":"SUM(IF((('Ki- és beutazó hallgatók'!$A$9:$A$108=\"SMP_KI\")+('Ki- és beutazó hallgatók'!$A$9:$A$108=\"SMP_BE\")),1,0))","v":0},{"$f":"SUM(IF((('Ki- és beutazó hallgatók'!$A$9:$A$108=\"SMS_SU_KI\")+('Ki- és beutazó hallgatók'!$A$9:$A$108=\"SMS_SU_BE\")),1,0))","v":0},{"$f":"SUM(IF((('Ki- és beutazó okt, személyzet'!$A$9:$A$108=\"STA_KI\")+('Ki- és beutazó okt, személyzet'!$A$9:$A$108=\"STA_BE\"))*('Ki- és beutazó okt, személyzet'!$B$9:$B$108=\"Oktatás\"),1,0))","v":0},{"$f":"SUM(IF(('Ki- és beutazó okt, személyzet'!$A$9:$A$108<>\"\")*('Ki- és beutazó okt, személyzet'!$B$9:$B$108=\"Konferencia,Szeminárium,Tréning\"),1,0))","v":0},{"$f":"SUM(IF(('Ki- és beutazó okt, személyzet'!$A$9:$A$108<>\"\")*('Ki- és beutazó okt, személyzet'!$B$9:$B$108=\"Intézménylátogatás\"),1,0))","v":0},{"$f":"SUM(IF(('Ki- és beutazó hallgatók'!$AA$9:$AA$108=\"Y\"),1,0))","v":0},null,{"$f":"SUM(E15:J15)","v":0}]
[]
[null,"Felhasználható támogatás",null,null,{"$f":"E9","v":{"$error":"#N/A"}},{"$error":"#N/A"},{"$error":"#N/A"},{"$error":"#N/A"},{"$error":"#N/A"},{"$error":"#N/A"},{"$error":"#N/A"},{"$error":"#N/A"},{"$error":"#N/A"}]
[]
[null,"Elszámolás",null,null,null,null,null,null,null,null,null,{"$f":"IF(((M14)*100)>L17,\"Támogatási szerződésen túli mobilitás-szervezési igény:\",\"Nem jogosult mobilitásszervezési költség:\")","v":{"$error":"#N/A"}},{"$f":"IF(((M14)*100)>L17,(M14-M13)*100,(M13-M14)*100)","v":{"$error":"#N/A"}}]
[null,"Elszámolható támogatás",null,null,{"$f":"E17","v":{"$error":"#N/A"}},{"$error":"#N/A"},{"$error":"#N/A"},{"$error":"#N/A"},{"$f":"I17","v":{"$error":"#N/A"}},{"$f":"J17","v":{"$error":"#N/A"}},{"$f":"K17","v":{"$error":"#N/A"}},{"$f":"IF(M14>M13,L17,L17-M19)","v":{"$error":"#N/A"}},{"$f":"SUM(H20+I20+J20+L20)","v":{"$error":"#N/A"}}]
[null,"Megkötött szerződésben elszámolt támogatás",null,null,{"$f":"SUM(IF((('Ki- és beutazó hallgatók'!$A$9:$A$108=\"SMS_KI\")+('Ki- és beutazó hallgatók'!$A$9:$A$108=\"SMS_BE\"))*('Ki- és beutazó hallgatók'!$B$9:$B$108<>\"\"),'Ki- és beutazó hallgatók'!$AB$9:$AB$108,0))","v":0},{"$f":"SUM(IF((('Ki- és beutazó hallgatók'!$A$9:$A$108=\"SMP_KI\")+('Ki- és beutazó hallgatók'!$A$9:$A$108=\"SMP_BE\"))*('Ki- és beutazó hallgatók'!$B$9:$B$108<>\"\"),'Ki- és beutazó hallgatók'!$AB$9:$AB$108,0))","v":0},{"$f":"SUM(IF((('Ki- és beutazó hallgatók'!$A$9:$A$108=\"SMS_SU_KI\")+('Ki- és beutazó hallgatók'!$A$9:$A$108=\"SMS_SU_BE\"))*('Ki- és beutazó hallgatók'!$B$9:$B$108<>\"\"),'Ki- és beutazó hallgatók'!$AB$9:$AB$108,0))","v":0},{"$f":"SUM(IF((('Ki- és beutazó okt, személyzet'!$A$9:$A$108=\"STA_KI\")+('Ki- és beutazó okt, személyzet'!$A$9:$A$108=\"STA_BE\"))*('Ki- és beutazó okt, személyzet'!$B$9:$B$108=\"Oktatás\")*('Ki- és beutazó okt, személyzet'!$C$9:$C$108<>\"\"),'Ki- és beutazó okt, személyzet'!$U$9:$U$108,0))","v":0},{"$f":"SUM(IF(('Ki- és beutazó okt, személyzet'!$A$9:$A$108<>\"\")*('Ki- és beutazó okt, személyzet'!$B$9:$B$108=\"Konferencia,Szeminárium,Tréning\")*('Ki- és beutazó okt, személyzet'!$C$9:$C$108<>\"\"),'Ki- és beutazó okt, személyzet'!$U$9:$U$108,0))","v":0},{"$f":"SUM(IF(('Ki- és beutazó okt, személyzet'!$A$9:$A$108<>\"\")*('Ki- és beutazó okt, személyzet'!$B$9:$B$108=\"Intézménylátogatás\")*('Ki- és beutazó okt, személyzet'!$C$9:$C$108<>\"\"),'Ki- és beutazó okt, személyzet'!$U$9:$U$108,0))","v":0},{"$f":"SUM(IF(('Ki- és beutazó hallgatók'!$AA$9:$AA$108=\"Y\")*('Ki- és beutazó hallgatók'!$B$9:$B$108<>\"\"),100,0))","v":0},{"$f":"M14*100","v":0},{"$f":"SUM(E21:L21)","v":0}]
[null,"1901-02-28",{"$f":"\"-ig ténylegesen kifizetett\"","v":"-ig ténylegesen kifizetett"},null,null,null,null,null,null,null,null,null,0]
[null,"Átutalási kérelem összege",null,null,null,null,null,null,null,null,null,null,{"$f":"IF(M22>M11,M22-M11,0)","v":0}]
[null,{"$f":"IF(OR(B1=\"Erasmus évközi beszámoló 2013/2014\", B1=\"Erasmus módosított évközi beszámoló 2013/2014\"), \"Várható maradvány\",\"Maradvány\")","v":"Maradvány"},null,null,{"$f":"(E20-E21)-#REF!","v":{"$error":"#N/A"}},{"$f":"(F20-F21)-#REF!","v":{"$error":"#N/A"}},{"$f":"(G20-G21)-#REF!","v":{"$error":"#N/A"}},{"$f":"H20-H21","v":{"$error":"#N/A"}},{"$f":"I20-I21","v":{"$error":"#N/A"}},{"$f":"J20-J21","v":{"$error":"#N/A"}},{"$f":"(K20-K21)-#REF!","v":{"$error":"#N/A"}},{"$f":"L20-L21","v":{"$error":"#N/A"}},{"$f":"H24+I24+J24+L24","v":{"$error":"#N/A"}}]
[]
[null,"Megjegyzés:"]
[]
[null,null,null,null,null,null,null,null,null,null,null,null,null," "]
[null,null,null,null,null,null,null,"Hivatalos képviselő:"]
[null,null,{"$f":"IF(COUNTBLANK(B36:B42)<7,\"HIBÁS BESZÁMOLÓ NEM KÜLDHETŐ BE!\",\"\")","v":"HIBÁS BESZÁMOLÓ NEM KÜLDHETŐ BE!"},null,null,null,null,"Beosztása:"]
[null,null,null,null,null,null,null,"Kelt:"]
[null,null,null,null,null,null,null,null,null,null,null,"P.H."]
[]
[]
[null,{"$f":"IF(COUNTBLANK(B36:B46)<11,\"HIBALISTA\",\"\")","v":"HIBALISTA"}]
[null,{"$f":"IF('Pénzügyi elszámolás'!B11=\"\",\"Dátum hiányzik a B11-es cellában\",\"\")","v":"Dátum hiányzik a B11-es cellában"}]
[null,{"$f":"IF('Pénzügyi elszámolás'!M11=\"\",\"Miniszterelnökségtől átutalt összeg hiányzik a M11-es cellában\", \"\")","v":"Miniszterelnökségtől átutalt összeg hiányzik a M11-es cellában"}]
[null,{"$f":"IF('Pénzügyi elszámolás'!B22=\"\",\"Dátum hiányzik a B22-es cellában\", \"\")","v":""}]
[null,{"$f":"IF('Pénzügyi elszámolás'!H22=\"\",\"A ténylegesen kifizetett összeg hiányzik a H22-es cellában\", \"\")","v":"A ténylegesen kifizetett összeg hiányzik a H22-es cellában"}]
[null,{"$f":"IF('Pénzügyi elszámolás'!I22=\"\",\"A ténylegesen kifizetett összeg hiányzik az I22-es cellában\", \"\")","v":"A ténylegesen kifizetett összeg hiányzik az I22-es cellában"}]
[null,{"$f":"IF('Pénzügyi elszámolás'!J22=\"\",\"A ténylegesen kifizetett összeg hiányzik a J22-es cellában\", \"\")","v":"A ténylegesen kifizetett összeg hiányzik a J22-es cellában"}]
[null,{"$f":"IF('Pénzügyi elszámolás'!L22=\"\",\"A ténylegesen kifizetett összeg hiányzik az L22-es cellában\", \"\")","v":"A ténylegesen kifizetett összeg hiányzik az L22-es cellában"}]
[null,{"$f":"IF('Pénzügyi elszámolás'!H21=H22,\"\", \"A H21-es és a H22-es cella értékei nem egyeznek\")","v":""}]
[null,{"$f":"IF('Pénzügyi elszámolás'!I21=I22,\"\", \"Az I21-es és az I22-es cella értékei nem egyeznek\")","v":""}]
[null,{"$f":"IF('Pénzügyi elszámolás'!J21=J22,\"\", \"A J21-es és a J22-es cella értékei nem egyeznek\")","v":""}]
[null,{"$f":"IF('Pénzügyi elszámolás'!L21=L22,\"\", \"Az L21-es és az L22-es cella értékei nem egyeznek\")","v":""}]

{"sheet":"Pályázói adatok","index":7,"n_rows":11,"n_cols":59,"rows_kept":11,"cut":false,"hidden":true,"merged":[]}
["Szerzodesszam","Erasmus_ID","Intezmeny","Város","EUC_szam","SMS","SMP","SMS SU","Oktatás","Konferencia, szeminárium, tréning","Intézmény-látogatás","Felkészítési ktg","Mobilitás-szervezés","Összes elnyert","80%",0.1,"Utolsó részlet","Jóváhagyott fő (SMS_KI)","Elvárt hó \n(SMS_KI)","Jóváhagyott fő (SMS_BE)","Elvárt hó \n(SMS_BE)","Jóváhagyott fő (SMP_KI)","Elvárt hó \n(SMP_KI)","Jóváhagyott fő (SMP_BE)","Elvárt hó \n(SMP_BE)","Jóváhagyott fő (SMS_SU_KI)","Elvárt hó \n(SMS_SU_ki)","Jóváhagyott fő (SMS_SU_BE)","Elvárt hó \n(SMS_SU_BE)","Jóváhagyott fő \n(oktatás_ki)","Elvárt nap \n(oktatás_ki)","Jóváhagyott fő \n(oktatás_be)","Elvárt nap \n(oktatás_be)","Jóváhagyott fő (konf_ki)","Elvárt nap \n(konf_ki)","Jóváhagyott fő (konf_be)","Elvárt nap \n(konf_be)","Jóváhagyott fő (int.lát_ki)","Elvárt nap \n(int.lát_ki)","Jóváhagyott fő (int.lát_be)","Elvárt nap \n(int.lát_be)","Jóváhagyott fő\nÖSSZES","Mobilitas\nAzonosito","Eloiranyzat\nAzonosito","Appid","Intézmény-\ntípus","Működési\nforma","Jogi\nstátusz","Gazdasági\nszektor","Méret \n(dolgozók)","Méret\n(tanulók)  ","Kapcsolattartó telefon","Kapcsolattartó E-mail","Irányítószám","Város","Ország","Régió","Projektkód","Felkészítés"]
["EGT/156/M3-0006",null,"Baranya Megyei Önkormányzat Közegészségügyi, Narkomán Fiatalokat Gyógyító- Foglalkoztató Közalapítványa (Indít Alapítvány)","Pécs",null,null,null,null,0,1458,6500,null,700,8658,6926,null,null,null,null,null,null,null,null,null,null,null,null,null,null,0,0,0,0,0,0,2,4,5,7,0,0,7,2027479826,-94631510,"d80140e2-27e6-4768-af89-b26017bcca4d_2013",null,null,null,null,null,null,3672315083,"inditkozalap@gmail.com","7623","Pécs","HU"]
["EGT/156/M3-0007",null,"Magyar Cukrász Iparosok Országos Ipartestülete","Budapest",null,null,null,null,14056,0,18882,null,2200,35138,28110,null,null,null,null,null,null,null,null,null,null,null,null,null,null,8,11,0,0,0,0,0,0,6,12,8,8,22,-30675898,-94631510,"c580e703-7283-4bb9-9492-3fa406afde8c_2013",null,null,null,null,null,null,3612664165,"avojtek20@gmail.com","1053","Budapest","HU"]
["EGT/156/M3-0008",null,"Balassi Bálint Nyolcévfolyamos Gimnázium","Budapest",null,null,null,null,0,0,2100,null,100,2200,1760,null,null,null,null,null,null,null,null,null,null,null,null,null,null,0,0,0,0,0,0,0,0,1,14,0,0,1,102318837,-94631510,"8c504fa2-ae5c-44f2-a2bf-8708d8d855b4_2013",null,null,null,null,null,null,"36 16322858","andi3560@gmail.com","1174","Budapest","HU"]
["EGT/156/M3-0009",null,"Georgikon Görögkatolikus Mezőgazdasági és Élelmiszeripari Szakgimnázium, Szakközépiskola és Kollégium","Sátoraljaújhely",null,null,null,null,0,0,11700,null,900,12600,10080,null,null,null,null,null,null,null,null,null,null,null,null,null,null,0,0,0,0,0,0,0,0,9,7,0,0,9,73533959,-94631510,"08318f39-1944-4184-9190-a4af2d3d7cce_2013",null,null,null,null,null,null,3647523340,"szanozsu@gmail.com","3980","Sátoraljaújhely","HU"]
["EGT/156/M3-0010",null,"Váci Szakképzési Centrum Petzelt József Szakközépiskolája és Szakiskolája","Szentendre",null,null,null,null,0,0,13200,null,1200,14400,11520,null,null,null,null,null,null,null,null,null,null,null,null,null,null,0,0,0,0,0,0,0,0,6,7,6,7,12,-815439015,-94631510,"67b12a59-58a8-48f3-a7f4-944e9de6c96f_2013",null,null,null,null,null,null,3626312167,"projekt@petzeltj.hu","2000","Szentendre","HU"]
["EGT/156/M3-0011",null,"Andrássy György Katolikus Közgazdasági Középiskola","Eger",null,null,null,null,0,3058,8300,null,900,12258,9806,null,null,null,null,null,null,null,null,null,null,null,null,null,null,0,0,1,0,2,9,0,0,5,7,2,7,9,null,null,null,null,null,null,null,null,null,"+3636510060","kiralykr@gmail.com","3300","Eger"]
["EGT/156/M3-0012",null,"Magyar Hegesztéstechnikai és Anyagvizsgálati Egyesülés","Budapest",null,null,null,null,0,0,18570,null,2000,20570,16456,null,null,null,null,null,null,null,null,null,null,null,null,null,null,0,0,0,0,0,0,0,0,10,5,10,5,20,null,null,null,null,null,null,null,null,null,3617690056,"benedekj@mhte.hu","1148","Budapest","HU"]
["EGT/156/M3-0013",null,"Athéné Idegenforgalmi, Informatikai és Üzletemberképző Szakképző Iskola","Budapest",null,null,null,null,0,0,5656,null,400,6056,4845,null,null,null,null,null,null,null,null,null,null,null,null,null,null,0,0,0,0,0,0,0,0,4,8,0,0,4,null,null,null,null,null,null,null,null,null,3618872300,"t.siptaragi@gmail.com","1073","Budapest","HU"]
["EGT/156/M3-0014",null,"Jászsági Általános Iskola Bercsényi Miklós Általános Iskolai Tagintézménye","Jászberény",null,null,null,null,0,0,18300,null,1500,19800,15840,null,null,null,null,null,null,null,null,null,null,null,null,null,null,0,0,0,0,0,0,0,0,12,7,3,7,15,null,null,null,null,null,null,null,null,null,3657501730,"atikis@freemail.hu","5100","Jászberény","HU"]
[null,null,null,null,null,null,null,null,null,null,null,null,null,null,null,null,null,null,null,null,null,null,null,null,null,null,null,null,null,null,null,null,null,null,null,null,null,null,null,null,null,null,null,null,null,null,null,null,null,null,null,null,null,null,null,null,null," "]

{"sheet":"Segédadatok","index":8,"n_rows":1005,"n_cols":17,"rows_kept":1005,"cut":false,"hidden":false,"merged":[]}
[null,null,"MOBILITY TYPE","Description",null,"Erasmus országkód","Országkód","Ország","Country","Code","Description","Code","Lang","ISO_orszagkodok","NACE1","Description","Napkezdes"]
[null,null,"SMS","ERASMUS Student Mobility for Studies",null,"HU","HU","Magyarország","Hungary","HU","Hungary","EN","English","AT","A","AGRICULTURE, FORESTRY AND FISHING","2014-08-01"]
[null,null,"SMP","ERASMUS Student Mobility for Placements",null,"IS","IS","Izland","Iceland","IS","Iceland","DE","German","BE","B","MINING AND QUARRYING","2014-08-02"]
[null,null,"STA","ERASMUS Staff Mobility",null,"LI","LI","Lichtenstein","Liechtenstein","LI","Liechtenstein","IS","Icelandic","BG","C","MANUFACTURING","2014-08-03"]
[null,null,"STT","ERASMUS Staff Mobility",null,"NO","NO","Norvégia","Norway","NO","Norway","NO","Norwegian","CH","D","ELECTRICITY,  GAS, STEAM AND AIR CONDITIONING SUPPLY","2014-08-04"]
[null,null,null,null,null,null,null,null,null,"XX","other","HU","Hungarian","CY","E","WATER SUPPLY; SEWERAGE, WASTE MANAGEMENT AND REMEDIATION ACTIVITIES","2014-08-05"]
[null,null,"GENDER","Description",null,null,null,null,null,null,null,"AA","Afar","CZ","F","CONSTRUCTION","2014-08-06"]
[null,null,"F","Female",null,null,null,null,null,null,null,"AB","Abkhazian","DE","G","WHOLESALE AND RETAIL TRADE; REPAIR OF MOTOR VEHICLES AND MOTORCYCLES","2014-08-07"]
[null,null,"M","Male",null,null,null,null,null,null,null,"AE","Avestan","DK","H","TRANSPORTATION AND STORAGE","2014-08-08"]
[null,null,null,null,null,null,null,null,null,null,null,"AF","Afrikaans","EE","I","ACCOMMODATION AND FOOD SERVICE ACTIVITIES","2014-08-09"]
[null,null,"TYPE OF PARTICIPANT","Description",null,null,null,null,null,null,null,"AK","Akan","ES","J","INFORMATION AND COMMUNICATION","2014-08-10"]
[null,null,"STA_KI","Teaching staff out",null,null,null,null,null,null,null,"AM","Amharic","FI","K","FINANCIAL AND INSURANCE ACTIVITIES","2014-08-11"]
[null,null,"STA_BE","Teaching staff in",null,null,null,null,null,null,null,"AN","Aragonese","FL","L","REAL ESTATE ACTIVITIES","2014-08-12"]
[null,null,"STT_KI","Non-teaching staff out",null,null,null,null,null,null,null,"AR","Arabic","FR","M","PROFESSIONAL, SCIENTIFIC AND TECHNICAL ACTIVITIES","2014-08-13"]
[null,null,"STT_BE","Non-teaching staff in",null,null,null,null,null,null,null,"AS","Assamese","GR","N","ADMINISTRATIVE AND SUPPORT SERVICE ACTIVITIES","2014-08-14"]
[null,null,null,null,null,null,null,null,null,null,null,"AV","Avaric","HR","O","PUBLIC ADMINISTRATION AND DEFENCE; COMPULSORY SOCIAL SECURITY","2014-08-15"]
[null,null,"Level of Study or Teaching","Description",null,null,null,null,null,null,null,"AY","Aymara","HU","P","EDUCATION","2014-08-16"]
[null,null,1,"First Cycle",null,null,null,null,null,null,null,"AZ","Azerbaijani","IE","Q","HUMAN HEALTH AND SOCIAL WORK ACTIVITIES","2014-08-17"]
[null,null,2,"Second Cycle",null,null,null,null,null,null,null,"BA","Bashkir","IS","R","ARTS, ENTERTAINMENT AND RECREATION","2014-08-18"]
[null,null,3,"Third Cycle",null,null,null,null,null,null,null,"BE","Belarusian","IT","S","OTHER SERVICE ACTIVITIES","2014-08-19"]
[null,null,"S","Short Cycle",null,null,null,null,null,null,null,"BG","Bulgarian","LT","T","ACTIVITIES OF HOUSEHOLDS AS EMPLOYERS; UNDIFFERENTIATED GOODS- AND SERVICES-PRODUCING ACTIVITIES OF HOUSEHOLDS FOR OWN USE","2014-08-20"]
[null,null,"M","Multiple Cycles",null,null,null,null,null,null,null,"BH","Bihari","LU","U","ACTIVITIES OF EXTRATERRITORIAL ORGANIZATIONS AND BODIES","2014-08-21"]
[null,null,null,null,null,null,null,null,null,null,null,"BI","Bislama","LV",null,null,"2014-08-22"]
[null,null,"Type of Activity","Description",null,null,null,null,null,null,null,"BM","Bambara","MK",null,null,"2014-08-23"]
[null,null,"Oktatás","Oktatás",null,null,null,null,null,null,null,"BN","Bengali","MT",null,null,"2014-08-24"]
[null,null,"Konferencia,Szeminárium,Tréning","Konferencia,Szeminárium,Tréning",null,null,null,null,null,null,null,"BO","Tibetan","NL",null,null,"2014-08-25"]
[null,null,"Intézménylátogatás","Intézménylátogatás",null,null,null,null,null,null,null,"BR","Breton","NO",null,null,"2014-08-26"]
[null,null,"Category of Work","Description",null,null,null,null,null,null,null,"BS","Bosnian","PL",null,null,"2014-08-27"]
[null,null,"Cont.Edu","Continuing Education",null,null,null,null,null,null,null,"CA","Catalan","PT",null,null,"2014-08-28"]
[null,null,"Fin","Finance",null,null,null,null,null,null,null,"CE","Chechen","RO",null,null,"2014-08-29"]
[null,null,"Gen.Adm","General Admin and Technical",null,null,null,null,null,null,null,"CH","Chamorro","SE",null,null,"2014-08-30"]
[null,null,"Int.Off","International Office",null,null,null,null,null,null,null,"CO","Corsican","SI",null,null,"2014-08-31"]
[null,null,"Oth","Other",null,null,null,null,null,null,null,"CR","Cree","SK",null,null,"2014-09-01"]
[null,null,"Stud.Inf","Student Information",null,null,null,null,null,null,null,"CU","Church Slavic","TR",null,null,"2014-09-02"]
[null,null,"Man","Manager",null,null,null,null,null,null,null,"CV","Chuvash","UK",null,null,"2014-09-03"]
[null,null,"Res/Teach/Tr","Researcher/Teacher/Trainer",null,null,null,null,null,null,null,"CY","Welsh","XX",null,null,"2014-09-04"]
[null,null,"Techn","Technical",null,null,null,null,null,null,null,"CS","Czech",null,null,null,"2014-09-05"]
[null,null,"Admin","Administrative",null,null,null,null,null,null,null,"DA","Danish",null,null,null,"2014-09-06"]
[null,null,"Activities","Description",null,null,null,null,null,null,null,"DV","Divehi",null,null,null,"2014-09-07"]
[null,null,"E","Workshop",null,null,null,null,null,null,null,"DZ","Dzongkha",null,null,null,"2014-09-08"]
[null,null,"O","Other",null,null,null,null,null,null,null,"EE","Ewe",null,null,null,"2014-09-09"]
[null,null,"W","Job shadowing or work placement",null,null,null,null,null,null,null,"EL","Greek",null,null,null,"2014-09-10"]
[null,null,"T","Training",null,null,null,null,null,null,null,"EO","Esperanto",null,null,null,"2014-09-11"]
[null,null,"A","Teaching",null,null,null,null,null,null,null,"ES","Spanish",null,null,null,"2014-09-12"]
[null,null,null,null,null,null,null,null,null,null,null,"ET","Estonian",null,null,null,"2014-09-13"]
[null,null,"Seniority","Description",null,null,null,null,null,null,null,"EU","Basque",null,null,null,"2014-09-14"]
[null,null,"J","Junior (approx. < 10 years of experience)",null,null,null,null,null,null,null,"FA","Persian",null,null,null,"2014-09-15"]
[null,null,"I","Intermediate (approx. > 10 and < 20 years of experience)",null,null,null,null,null,null,null,"FF","Fulah",null,null,null,"2014-09-16"]
[null,null,"S","Senior (approx. > 20 years of experience)",null,null,null,null,null,null,null,"FI","Finnish",null,null,null,"2014-09-17"]
[null,null,null,null,null,null,null,null,null,null,null,"FJ","Fijian",null,null,null,"2014-09-18"]
[null,null,"Type of Organisation","Description",null,null,null,null,null,null,null,"FO","Faroese",null,null,null,"2014-09-19"]
[null,null,"EPLUS-EDU-HEI","Higher education institution (tertiary level)",null,null,null,null,null,null,null,"FR","French",null,null,null,"2014-09-20"]
[null,null,"EPLUS-EDU-GEN-PRE","School/Institute/Educational centre – General education (pre-primary level)",null,null,null,null,null,null,null,"FY","Frisian",null,null,null,"2014-09-21"]
[null,null,"EPLUS-EDU-GEN-PRI","School/Institute/Educational centre – General education (primary level)",null,null,null,null,null,null,null,"GA","Irish",null,null,null,"2014-09-22"]
[null,null,"EPLUS-EDU-GEN-SEC","School/Institute/Educational centre – General education (secondary level)",null,null,null,null,null,null,null,"GD","Gaelic (Scots)",null,null,null,"2014-09-23"]
[null,null,"EPLUS-EDU-VOC-SEC","School/Institute/Educational centre – Vocational Training (secondary level)",null,null,null,null,null,null,null,"GL","Gallegan",null,null,null,"2014-09-24"]
[null,null,"EPLUS-EDU-VOC-TER","School/Institute/Educational centre – Vocational Training (tertiary level)",null,null,null,null,null,null,null,"GN","Guarani",null,null,null,"2014-09-25"]
[null,null,"EPLUS-EDU-ADULT","School/Institute/Educational centre – Adult education",null,null,null,null,null,null,null,"GU","Gujarati",null,null,null,"2014-09-26"]
[null,null,"EPLUS-BODY-PUB-NAT","National Public body ",null,null,null,null,null,null,null,"HR","Croatian",null,null,null,"2014-09-27"]
[null,null,"EPLUS-BODY-PUB-REG","Regional Public body",null,null,null,null,null,null,null,"IA","Interlingua (International Auxiliary Language Association)",null,null,null,"2014-09-28"]
[null,null,"EPLUS-BODY-PUB-LOC","Local Public body ",null,null,null,null,null,null,null,"II","Sichuan Yi",null,null,null,"2014-09-29"]
[null,null,"EPLUS-ENT-SME","Small and medium sized enterprise",null,null,null,null,null,null,null,"IK","Inupiaq",null,null,null,"2014-09-30"]
[null,null,"EPLUS-ENT-LARGE","Large enterprise",null,null,null,null,null,null,null,"IO","Ido",null,null,null,"2014-10-01"]
[null,null,"EPLUS-NGO","Non-governmental organisation/association/social enterprise",null,null,null,null,null,null,null,"IT","Italian",null,null,null,"2014-10-02"]
[null,null,"EPLUS-FOUND","Foundation",null,null,null,null,null,null,null,"IU","Inuktitut",null,null,null,"2014-10-03"]
[null,null,"EPLUS-SOCIAL","Social partner or other representative of working life (chambers of commerce, trade union, trade association)",null,null,null,null,null,null,null,"JA","Japanese",null,null,null,"2014-10-04"]
[null,null,"EPLUS-RES","Research Institute/Centre",null,null,null,null,null,null,null,"JV","Javanese",null,null,null,"2014-10-05"]
[null,null,"EPLUS-YOUTH-COUNCIL","National Youth Council",null,null,null,null,null,null,null,"KA","Georgian",null,null,null,"2014-10-06"]
[null,null,"EPLUS-ENGO","European NGO",null,null,null,null,null,null,null,"KG","Kongo",null,null,null,"2014-10-07"]
[null,null,"EPLUS-NET-EU","EU-wide network",null,null,null,null,null,null,null,"KI","Kikuyu",null,null,null,"2014-10-08"]
[null,null,"EPLUS-YOUTH-GROUP","Group of young people active in youth work",null,null,null,null,null,null,null,"KJ","Kuanyama",null,null,null,"2014-10-09"]
[null,null,"EPLUS-EURO-GROUP-COOP","European grouping of territorial cooperation",null,null,null,null,null,null,null,"KK","Kazakh",null,null,null,"2014-10-10"]
[null,null,"EPLUS-BODY-ACCRED","Accreditation, certification or qualification body",null,null,null,null,null,null,null,"KL","Kalaallisut",null,null,null,"2014-10-11"]
[null,null,"EPLUS-BODY-CONS","Counselling body",null,null,null,null,null,null,null,"KM","Khmer",null,null,null,"2014-10-12"]
[null,null,"EPLUS-INTER","International organisation under public law",null,null,null,null,null,null,null,"KN","Kannada",null,null,null,"2014-10-13"]
[null,null,"EPLUS-SPORT-PARTIAL","Organisation or association representing (parts of) the sport sector",null,null,null,null,null,null,null,"KO","Korean",null,null,null,"2014-10-14"]
[null,null,"EPLUS-SPORT-FED","Sport federation",null,null,null,null,null,null,null,"KR","Kanuri",null,null,null,"2014-10-15"]
[null,null,"EPLUS-SPORT-LEAGUE","Sport league",null,null,null,null,null,null,null,"KS","Kashmiri",null,null,null,"2014-10-16"]
[null,null,"EPLUS-SPORT-CLUB","Sport club",null,null,null,null,null,null,null,"KU","Kurdish",null,null,null,"2014-10-17"]
[null,null,"OTH","Other",null,null,null,null,null,null,null,"KV","Komi",null,null,null,"2014-10-18"]
[null,null,null,null,null,null,null,null,null,null,null,"KW","Cornish",null,null,null,"2014-10-19"]
[null,null,"Commercial Orientation","Description",null,null,null,null,null,null,null,"KY","Kirghiz",null,null,null,"2014-10-20"]
[null,null,"P","Profit",null,null,null,null,null,null,null,"LA","Latin",null,null,null,"2014-10-21"]
[null,null,"NP","Not for profit",null,null,null,null,null,null,null,"LB","Letzeburgesch",null,null,null,"2014-10-22"]
[null,null,null,null,null,null,null,null,null,null,null,"LG","Ganda",null,null,null,"2014-10-23"]
[null,null,"Legal Status","Description",null,null,null,null,null,null,null,"LI","Limburgan; Limburger; Limburgish",null,null,null,"2014-10-24"]
[null,null,"PR","Private",null,null,null,null,null,null,null,"LN","Lingala",null,null,null,"2014-10-25"]
[null,null,"PB","Public",null,null,null,null,null,null,null,"LO","Lao",null,null,null,"2014-10-26"]
[null,null,null,null,null,null,null,null,null,null,null,"LT","Lithuanian",null,null,null,"2014-10-27"]
[null,null,"Type of work at Enterprise","Description",null,null,null,null,null,null,null,"LU","Luba-Katanga",null,null,null,"2014-10-28"]
[null,null,"M","Manager",null,null,null,null,null,null,null,"LV","Latvian",null,null,null,"2014-10-29"]
[null,null,"R","Researcher/Teacher/Trainer",null,null,null,null,null,null,null,"ME","Montenegrin",null,null,null,"2014-10-30"]
[null,null,"T","Technical",null,null,null,null,null,null,null,"MG","Malagasy",null,null,null,"2014-10-31"]
[null,null,"A","Administrativ",null,null,null,null,null,null,null,"MH","Marshall",null,null,null,"2014-11-01"]
[null,null,null,null,null,null,null,null,null,null,null,"MI","Maori",null,null,null,"2014-11-02"]
[null,null,"Hallgatói mobilitás jellege","Description",null,null,null,null,null,null,null,"MK","Macedonian",null,null,null,"2014-11-03"]
[null,null,"SMS_KI","Kiutazó tanulmányi célú",null,null,null,null,null,null,null,"ML","Malayalam",null,null,null,"2014-11-04"]
[null,null,"SMS_BE","Beutazó tanulmányi célú",null,null,null,null,null,null,null,"MN","Mongolian",null,null,null,"2014-11-05"]
[null,null,"SMP_KI","Kiutazó szakmai gyakorlat",null,null,null,null,null,null,null,"MO","Moldavian",null,null,null,"2014-11-06"]
[null,null,"SMP_BE","Beutazó szakmai gyakorlat",null,null,null,null,null,null,null,"MR","Marathi",null,null,null,"2014-11-07"]
[null,null,"SMS_SU_KI","Kiutazó nyári egyetem",null,null,null,null,null,null,null,"MS","Malay",null,null,null,"2014-11-08"]
[null,null,"SMS_SU_BE","Beutazó nyári egyetem",null,null,null,null,null,null,null,"MT","Maltese",null,null,null,"2014-11-09"]
[null,null,null,null,null,null,null,null,null,null,null,"MY","Burmese",null,null,null,"2014-11-10"]
[null,null,"Hallgatói mobilitás jellege","Description",null,null,null,null,null,null,null,"NA","Nauru",null,null,null,"2014-11-11"]
[null,null,"Pre-prim","Óvodai",null,null,null,null,null,null,null,"NB","Norwegian Bokmael",null,null,null,"2014-11-12"]
[null,null,"Prim","Általános",null,null,null,null,null,null,null,"ND","Ndebele, North",null,null,null,"2014-11-13"]
[null,null,"Sec","Középiskolai",null,null,null,null,null,null,null,"NE","Nepali",null,null,null,"2014-11-14"]
[null,null,"Voc","Felső középfokú szakképzés (szakközépiskola, szakiskola)",null,null,null,null,null,null,null,"NG","Ndonga",null,null,null,"2014-11-15"]
[null,null,"Postsec","Posztszekunder, nem felsőfokú szakképzés (szakközépiskolai érettségi utáni szakképző évfolyamok",null,null,null,null,null,null,null,"NL","Dutch",null,null,null,"2014-11-16"]
[null,null,"Adult","Felnőttoktatás",null,null,null,null,null,null,null,"NN","Norwegian Nynorsk",null,null,null,"2014-11-17"]
[null,null,"Other","Egyéb",null,null,null,null,null,null,null,"NR","Ndebele, South",null,null,null,"2014-11-18"]
[null,null,null,null,null,null,null,null,null,null,null,"NV","Navajo",null,null,null,"2014-11-19"]
[null,null,"NUTS code","Description","Description total",null,null,null,null,null,null,"NY","Chichewa",null,null,null,"2014-11-20"]
[null,null,"HU1","KÖZÉP-MAGYARORSZÁG","HU1 - KÖZÉP-MAGYARORSZÁG",null,null,null,null,null,null,"OC","Occitan (post 1500)",null,null,null,"2014-11-21"]
[null,null,"HU10","Közép-Magyarország","HU10 - Közép-Magyarország",null,null,null,null,null,null,"OJ","Ojibwa",null,null,null,"2014-11-22"]
[null,null,"HU101","Budapest","HU101 - Budapest",null,null,null,null,null,null,"OM","Oromo",null,null,null,"2014-11-23"]
[null,null,"HU102","Pest","HU102 - Pest",null,null,null,null,null,null,"OR","Oriya",null,null,null,"2014-11-24"]
[null,null,"HU2","DUNÁNTÚL","HU2 - DUNÁNTÚL",null,null,null,null,null,null,"OS","Ossetian",null,null,null,"2014-11-25"]
[null,null,"HU21","Közép-Dunántúl","HU21 - Közép-Dunántúl",null,null,null,null,null,null,"PA","Panjabi",null,null,null,"2014-11-26"]
[null,null,"HU211","Fejér","HU211 - Fejér",null,null,null,null,null,null,"PI","Pali",null,null,null,"2014-11-27"]
[null,null,"HU212","Komárom-Esztergom","HU212 - Komárom-Esztergom",null,null,null,null,null,null,"PL","Polish",null,null,null,"2014-11-28"]
[null,null,"HU213","Veszprém","HU213 - Veszprém",null,null,null,null,null,null,"PS","Pushto",null,null,null,"2014-11-29"]
[null,null,"HU22","Nyugat-Dunántúl","HU22 - Nyugat-Dunántúl",null,null,null,null,null,null,"PT","Portuguese",null,null,null,"2014-11-30"]
[null,null,"HU221","Győr-Moson-Sopron","HU221 - Győr-Moson-Sopron",null,null,null,null,null,null,"QU","Quechua",null,null,null,"2014-12-01"]
[null,null,"HU222","Vas","HU222 - Vas",null,null,null,null,null,null,"RM","Raeto-Romance",null,null,null,"2014-12-02"]
[null,null,"HU223","Zala","HU223 - Zala",null,null,null,null,null,null,"RN","Rundi",null,null,null,"2014-12-03"]
[null,null,"HU23","Dél-Dunántúl","HU23 - Dél-Dunántúl",null,null,null,null,null,null,"RO","Romanian",null,null,null,"2014-12-04"]
[null,null,"HU231","Baranya","HU231 - Baranya",null,null,null,null,null,null,"RU","Russian",null,null,null,"2014-12-05"]
[null,null,"HU232","Somogy","HU232 - Somogy",null,null,null,null,null,null,"RW","Kinyarwanda",null,null,null,"2014-12-06"]
[null,null,"HU233","Tolna","HU233 - Tolna",null,null,null,null,null,null,"SA","Sanskrit",null,null,null,"2014-12-07"]
[null,null,"HU3","ALFÖLD ÉS ÉSZAK","HU3 - ALFÖLD ÉS ÉSZAK",null,null,null,null,null,null,"SC","Sardinian",null,null,null,"2014-12-08"]
[null,null,"HU31","Észak-Magyarország","HU31 - Észak-Magyarország",null,null,null,null,null,null,"SD","Sindhi",null,null,null,"2014-12-09"]
[null,null,"HU311","Borsod-Abaúj-Zemplén","HU311 - Borsod-Abaúj-Zemplén",null,null,null,null,null,null,"SE","Northern Sami",null,null,null,"2014-12-10"]
[null,null,"HU312","Heves","HU312 - Heves",null,null,null,null,null,null,"SG","Sango",null,null,null,"2014-12-11"]
[null,null,"HU313","Nógrád","HU313 - Nógrád",null,null,null,null,null,null,"SH","Serbo-Croatian",null,null,null,"2014-12-12"]
[null,null,"HU32","Észak-Alföld","HU32 - Észak-Alföld",null,null,null,null,null,null,"SI","Sinhalese",null,null,null,"2014-12-13"]
[null,null,"HU321","Hajdú-Bihar","HU321 - Hajdú-Bihar",null,null,null,null,null,null,"SK","Slovak",null,null,null,"2014-12-14"]
[null,null,"HU322","Jász-Nagykun-Szolnok","HU322 - Jász-Nagykun-Szolnok",null,null,null,null,null,null,"SL","Slovenian",null,null,null,"2014-12-15"]
[null,null,"HU323","Szabolcs-Szatmár-Bereg","HU323 - Szabolcs-Szatmár-Bereg",null,null,null,null,null,null,"SM","Samoan",null,null,null,"2014-12-16"]
[null,null,"HU33","Dél-Alföld","HU33 - Dél-Alföld",null,null,null,null,null,null,"SN","Shona",null,null,null,"2014-12-17"]
[null,null,"HU331","Bács-Kiskun","HU331 - Bács-Kiskun",null,null,null,null,null,null,"SO","Somali",null,null,null,"2014-12-18"]
[null,null,"HU332","Békés","HU332 - Békés",null,null,null,null,null,null,"SQ","Albanian",null,null,null,"2014-12-19"]
[null,null,"HU333","Csongrád","HU333 - Csongrád",null,null,null,null,null,null,"SS","Swati",null,null,null,"2014-12-20"]
[null,null,"HUZ","EXTRA-REGIO NUTS 1","HUZ - EXTRA-REGIO NUTS 1",null,null,null,null,null,null,"ST","Sotho, Southern",null,null,null,"2014-12-21"]
[null,null,"HUZZ","Extra-Regio NUTS 2","HUZZ - Extra-Regio NUTS 2",null,null,null,null,null,null,"SU","Sundanese",null,null,null,"2014-12-22"]
[null,null,"HUZZZ","Extra-Regio","HUZZZ - Extra-Regio",null,null,null,null,null,null,"SV","Swedish",null,null,null,"2014-12-23"]
[null,null,"IS","Iceland","IS - Iceland",null,null,null,null,null,null,"SW","Swahili",null,null,null,"2014-12-24"]
[null,null,"IS0","ÍSLAND","IS0 - ÍSLAND",null,null,null,null,null,null,"TA","Tamil",null,null,null,"2014-12-25"]
[null,null,"IS00","Ísland","IS00 - Ísland",null,null,null,null,null,null,"TE","Telugu",null,null,null,"2014-12-26"]
[null,null,"IS001","Höfuðborgarsvæði","IS001 - Höfuðborgarsvæði",null,null,null,null,null,null,"TG","Tajik",null,null,null,"2014-12-27"]
[null,null,"IS002","Landsbyggð","IS002 - Landsbyggð",null,null,null,null,null,null,"TH","Thai",null,null,null,"2014-12-28"]
[null,null,"NO","Norway","NO - Norway",null,null,null,null,null,null,"TK","Turkmen",null,null,null,"2014-12-29"]
[null,null,"NO0","NORGE","NO0 - NORGE",null,null,null,null,null,null,"TL","Tagalog",null,null,null,"2014-12-30"]
[null,null,"NO01","Oslo og Akershus","NO01 - Oslo og Akershus",null,null,null,null,null,null,"TN","Tswana",null,null,null,"2014-12-31"]
[null,null,"NO011","Oslo","NO011 - Oslo",null,null,null,null,null,null,"TR","Turkish",null,null,null,"2015-01-01"]
[null,null,"NO012","Akershus","NO012 - Akershus",null,null,null,null,null,null,"TS","Tsonga",null,null,null,"2015-01-02"]
[null,null,"NO02","Hedmark og Oppland","NO02 - Hedmark og Oppland",null,null,null,null,null,null,"TT","Tatar",null,null,null,"2015-01-03"]
[null,null,"NO021","Hedmark","NO021 - Hedmark",null,null,null,null,null,null,"TW","Twi",null,null,null,"2015-01-04"]
[null,null,"NO022","Oppland","NO022 - Oppland",null,null,null,null,null,null,"TY","Tahitian",null,null,null,"2015-01-05"]
[null,null,"NO03","Sør-Østlandet","NO03 - Sør-Østlandet",null,null,null,null,null,null,"UG","Uighur",null,null,null,"2015-01-06"]
[null,null,"NO031","Østfold","NO031 - Østfold",null,null,null,null,null,null,"UK","Ukrainian",null,null,null,"2015-01-07"]
[null,null,"NO032","Buskerud","NO032 - Buskerud",null,null,null,null,null,null,"UN","Un-identified",null,null,null,"2015-01-08"]
[null,null,"NO033","Vestfold","NO033 - Vestfold",null,null,null,null,null,null,"UR","Urdu",null,null,null,"2015-01-09"]
[null,null,"NO034","Telemark","NO034 - Telemark",null,null,null,null,null,null,"UZ","Uzbek",null,null,null,"2015-01-10"]
[null,null,"NO04","Agder og Rogaland","NO04 - Agder og Rogaland",null,null,null,null,null,null,"VE","Venda",null,null,null,"2015-01-11"]
[null,null,"NO041","Aust-Agder","NO041 - Aust-Agder",null,null,null,null,null,null,"VI","Vietnamese",null,null,null,"2015-01-12"]
[null,null,"NO042","Vest-Agder","NO042 - Vest-Agder",null,null,null,null,null,null,"VO","Volapok",null,null,null,"2015-01-13"]
[null,null,"NO043","Rogaland","NO043 - Rogaland",null,null,null,null,null,null,"WA","Walloon",null,null,null,"2015-01-14"]
[null,null,"NO05","Vestlandet","NO05 - Vestlandet",null,null,null,null,null,null,"WO","Wolof",null,null,null,"2015-01-15"]
[null,null,"NO051","Hordaland","NO051 - Hordaland",null,null,null,null,null,null,"XH","Xhosa",null,null,null,"2015-01-16"]
[null,null,"NO052","Sogn og Fjordane","NO052 - Sogn og Fjordane",null,null,null,null,null,null,"YI","Yiddish",null,null,null,"2015-01-17"]
[null,null,"NO053","Møre og Romsdal","NO053 - Møre og Romsdal",null,null,null,null,null,null,"ZA","Zhuang",null,null,null,"2015-01-18"]
[null,null,"NO06","Trøndelag","NO06 - Trøndelag",null,null,null,null,null,null,"ZH","Chinese",null,null,null,"2015-01-19"]
[null,null,"NO061","Sør-Trøndelag","NO061 - Sør-Trøndelag",null,null,null,null,null,null,"ZU","Zulu",null,null,null,"2015-01-20"]
[null,null,"NO062","Nord-Trøndelag","NO062 - Nord-Trøndelag",null,null,null,null,null,null,null,null,null,null,null,"2015-01-21"]
[null,null,"NO07","Nord-Norge","NO07 - Nord-Norge",null,null,null,null,null,null,null,null,null,null,null,"2015-01-22"]
[null,null,"NO071","Nordland","NO071 - Nordland",null,null,null,null,null,null,null,null,null,null,null,"2015-01-23"]
[null,null,"NO072","Troms","NO072 - Troms",null,null,null,null,null,null,null,null,null,null,null,"2015-01-24"]
[null,null,"NO073","Finnmark","NO073 - Finnmark",null,null,null,null,null,null,null,null,null,null,null,"2015-01-25"]
[null,null,"LI","Liechtenstein","LI - Liechtenstein",null,null,null,null,null,null,null,null,null,null,null,"2015-01-26"]
[null,null,"LI0","LIECHTENSTEIN","LI0 - LIECHTENSTEIN",null,null,null,null,null,null,null,null,null,null,null,"2015-01-27"]
[null,null,"LI00","Liechtenstein","LI00 - Liechtenstein",null,null,null,null,null,null,null,null,null,null,null,"2015-01-28"]
[null,null,"LI000","Liechtenstein","LI000 - Liechtenstein",null,null,null,null,null,null,null,null,null,null,null,"2015-01-29"]
[null,null,null,null,null,null,null,null,null,null,null,null,null,null,null,null,"2015-01-30"]
[null,null,null,null,null,null,null,null,null,null,null,null,null,null,null,null,"2015-01-31"]
[null,null,null,null,null,null,null,null,null,null,null,null,null,null,null,null,"2015-02-01"]
[null,null,null,null,null,null,null,null,null,null,null,null,null,null,null,null,"2015-02-02"]
[null,null,null,null,null,null,null,null,null,null,null,null,null,null,null,null,"2015-02-03"]
[null,null,null,null,null,null,null,null,null,null,null,null,null,null,null,null,"2015-02-04"]
[null,null,null,null,null,null,null,null,null,null,null,null,null,null,null,null,"2015-02-05"]
[null,null,null,null,null,null,null,null,null,null,null,null,null,null,null,null,"2015-02-06"]
[null,null,null,null,null,null,null,null,null,null,null,null,null,null,null,null,"2015-02-07"]
[null,null,null,null,null,null,null,null,null,null,null,null,null,null,null,null,"2015-02-08"]
[null,null,null,null,null,null,null,null,null,null,null,null,null,null,null,null,"2015-02-09"]
[null,null,null,null,null,null,null,null,null,null,null,null,null,null,null,null,"2015-02-10"]
[null,null,null,null,null,null,null,null,null,null,null,null,null,null,null,null,"2015-02-11"]
[null,null,null,null,null,null,null,null,null,null,null,null,null,null,null,null,"2015-02-12"]
[null,null,null,null,null,null,null,null,null,null,null,null,null,null,null,null,"2015-02-13"]
[null,null,null,null,null,null,null,null,null,null,null,null,null,null,null,null,"2015-02-14"]
[null,null,null,null,null,null,null,null,null,null,null,null,null,null,null,null,"2015-02-15"]
[null,null,null,null,null,null,null,null,null,null,null,null,null,null,null,null,"2015-02-16"]
[null,null,null,null,null,null,null,null,null,null,null,null,null,null,null,null,"2015-02-17"]
[null,null,null,null,null,null,null,null,null,null,null,null,null,null,null,null,"2015-02-18"]
[null,null,null,null,null,null,null,null,null,null,null,null,null,null,null,null,"2015-02-19"]
[null,null,null,null,null,null,null,null,null,null,null,null,null,null,null,null,"2015-02-20"]
[null,null,null,null,null,null,null,null,null,null,null,null,null,null,null,null,"2015-02-21"]
[null,null,null,null,null,null,null,null,null,null,null,null,null,null,null,null,"2015-02-22"]
[null,null,null,null,null,null,null,null,null,null,null,null,null,null,null,null,"2015-02-23"]
[null,null,null,null,null,null,null,null,null,null,null,null,null,null,null,null,"2015-02-24"]
[null,null,null,null,null,null,null,null,null,null,null,null,null,null,null,null,"2015-02-25"]
[null,null,null,null,null,null,null,null,null,null,null,null,null,null,null,null,"2015-02-26"]
[null,null,null,null,null,null,null,null,null,null,null,null,null,null,null,null,"2015-02-27"]
[null,null,null,null,null,null,null,null,null,null,null,null,null,null,null,null,"2015-02-28"]
[null,null,null,null,null,null,null,null,null,null,null,null,null,null,null,null,"2015-03-01"]
[null,null,null,null,null,null,null,null,null,null,null,null,null,null,null,null,"2015-03-02"]
[null,null,null,null,null,null,null,null,null,null,null,null,null,null,null,null,"2015-03-03"]
[null,null,null,null,null,null,null,null,null,null,null,null,null,null,null,null,"2015-03-04"]
[null,null,null,null,null,null,null,null,null,null,null,null,null,null,null,null,"2015-03-05"]
[null,null,null,null,null,null,null,null,null,null,null,null,null,null,null,null,"2015-03-06"]
[null,null,null,null,null,null,null,null,null,null,null,null,null,null,null,null,"2015-03-07"]
[null,null,null,null,null,null,null,null,null,null,null,null,null,null,null,null,"2015-03-08"]
[null,null,null,null,null,null,null,null,null,null,null,null,null,null,null,null,"2015-03-09"]
[null,null,null,null,null,null,null,null,null,null,null,null,null,null,null,null,"2015-03-10"]
[null,null,null,null,null,null,null,null,null,null,null,null,null,null,null,null,"2015-03-11"]
[null,null,null,null,null,null,null,null,null,null,null,null,null,null,null,null,"2015-03-12"]
[null,null,null,null,null,null,null,null,null,null,null,null,null,null,null,null,"2015-03-13"]
[null,null,null,null,null,null,null,null,null,null,null,null,null,null,null,null,"2015-03-14"]
[null,null,null,null,null,null,null,null,null,null,null,null,null,null,null,null,"2015-03-15"]
[null,null,null,null,null,null,null,null,null,null,null,null,null,null,null,null,"2015-03-16"]
[null,null,null,null,null,null,null,null,null,null,null,null,null,null,null,null,"2015-03-17"]
[null,null,null,null,null,null,null,null,null,null,null,null,null,null,null,null,"2015-03-18"]
[null,null,null,null,null,null,null,null,null,null,null,null,null,null,null,null,"2015-03-19"]
[null,null,null,null,null,null,null,null,null,null,null,null,null,null,null,null,"2015-03-20"]
[null,null,null,null,null,null,null,null,null,null,null,null,null,null,null,null,"2015-03-21"]
[null,null,null,null,null,null,null,null,null,null,null,null,null,null,null,null,"2015-03-22"]
[null,null,null,null,null,null,null,null,null,null,null,null,null,null,null,null,"2015-03-23"]
[null,null,null,null,null,null,null,null,null,null,null,null,null,null,null,null,"2015-03-24"]
[null,null,null,null,null,null,null,null,null,null,null,null,null,null,null,null,"2015-03-25"]
[null,null,null,null,null,null,null,null,null,null,null,null,null,null,null,null,"2015-03-26"]
[null,null,null,null,null,null,null,null,null,null,null,null,null,null,null,null,"2015-03-27"]
[null,null,null,null,null,null,null,null,null,null,null,null,null,null,null,null,"2015-03-28"]
[null,null,null,null,null,null,null,null,null,null,null,null,null,null,null,null,"2015-03-29"]
[null,null,null,null,null,null,null,null,null,null,null,null,null,null,null,null,"2015-03-30"]
[null,null,null,null,null,null,null,null,null,null,null,null,null,null,null,null,"2015-03-31"]
[null,null,null,null,null,null,null,null,null,null,null,null,null,null,null,null,"2015-04-01"]
[null,null,null,null,null,null,null,null,null,null,null,null,null,null,null,null,"2015-04-02"]
[null,null,null,null,null,null,null,null,null,null,null,null,null,null,null,null,"2015-04-03"]
[null,null,null,null,null,null,null,null,null,null,null,null,null,null,null,null,"2015-04-04"]
[null,null,null,null,null,null,null,null,null,null,null,null,null,null,null,null,"2015-04-05"]
[null,null,null,null,null,null,null,null,null,null,null,null,null,null,null,null,"2015-04-06"]
[null,null,null,null,null,null,null,null,null,null,null,null,null,null,null,null,"2015-04-07"]
[null,null,null,null,null,null,null,null,null,null,null,null,null,null,null,null,"2015-04-08"]
[null,null,null,null,null,null,null,null,null,null,null,null,null,null,null,null,"2015-04-09"]
[null,null,null,null,null,null,null,null,null,null,null,null,null,null,null,null,"2015-04-10"]
[null,null,null,null,null,null,null,null,null,null,null,null,null,null,null,null,"2015-04-11"]
[null,null,null,null,null,null,null,null,null,null,null,null,null,null,null,null,"2015-04-12"]
[null,null,null,null,null,null,null,null,null,null,null,null,null,null,null,null,"2015-04-13"]
[null,null,null,null,null,null,null,null,null,null,null,null,null,null,null,null,"2015-04-14"]
[null,null,null,null,null,null,null,null,null,null,null,null,null,null,null,null,"2015-04-15"]
[null,null,null,null,null,null,null,null,null,null,null,null,null,null,null,null,"2015-04-16"]
[null,null,null,null,null,null,null,null,null,null,null,null,null,null,null,null,"2015-04-17"]
[null,null,null,null,null,null,null,null,null,null,null,null,null,null,null,null,"2015-04-18"]
[null,null,null,null,null,null,null,null,null,null,null,null,null,null,null,null,"2015-04-19"]
[null,null,null,null,null,null,null,null,null,null,null,null,null,null,null,null,"2015-04-20"]
[null,null,null,null,null,null,null,null,null,null,null,null,null,null,null,null,"2015-04-21"]
[null,null,null,null,null,null,null,null,null,null,null,null,null,null,null,null,"2015-04-22"]
[null,null,null,null,null,null,null,null,null,null,null,null,null,null,null,null,"2015-04-23"]
[null,null,null,null,null,null,null,null,null,null,null,null,null,null,null,null,"2015-04-24"]
[null,null,null,null,null,null,null,null,null,null,null,null,null,null,null,null,"2015-04-25"]
[null,null,null,null,null,null,null,null,null,null,null,null,null,null,null,null,"2015-04-26"]
[null,null,null,null,null,null,null,null,null,null,null,null,null,null,null,null,"2015-04-27"]
[null,null,null,null,null,null,null,null,null,null,null,null,null,null,null,null,"2015-04-28"]
[null,null,null,null,null,null,null,null,null,null,null,null,null,null,null,null,"2015-04-29"]
[null,null,null,null,null,null,null,null,null,null,null,null,null,null,null,null,"2015-04-30"]
[null,null,null,null,null,null,null,null,null,null,null,null,null,null,null,null,"2015-05-01"]
[null,null,null,null,null,null,null,null,null,null,null,null,null,null,null,null,"2015-05-02"]
[null,null,null,null,null,null,null,null,null,null,null,null,null,null,null,null,"2015-05-03"]
[null,null,null,null,null,null,null,null,null,null,null,null,null,null,null,null,"2015-05-04"]
[null,null,null,null,null,null,null,null,null,null,null,null,null,null,null,null,"2015-05-05"]
[null,null,null,null,null,null,null,null,null,null,null,null,null,null,null,null,"2015-05-06"]
[null,null,null,null,null,null,null,null,null,null,null,null,null,null,null,null,"2015-05-07"]
[null,null,null,null,null,null,null,null,null,null,null,null,null,null,null,null,"2015-05-08"]
[null,null,null,null,null,null,null,null,null,null,null,null,null,null,null,null,"2015-05-09"]
[null,null,null,null,null,null,null,null,null,null,null,null,null,null,null,null,"2015-05-10"]
[null,null,null,null,null,null,null,null,null,null,null,null,null,null,null,null,"2015-05-11"]
[null,null,null,null,null,null,null,null,null,null,null,null,null,null,null,null,"2015-05-12"]
[null,null,null,null,null,null,null,null,null,null,null,null,null,null,null,null,"2015-05-13"]
[null,null,null,null,null,null,null,null,null,null,null,null,null,null,null,null,"2015-05-14"]
[null,null,null,null,null,null,null,null,null,null,null,null,null,null,null,null,"2015-05-15"]
[null,null,null,null,null,null,null,null,null,null,null,null,null,null,null,null,"2015-05-16"]
[null,null,null,null,null,null,null,null,null,null,null,null,null,null,null,null,"2015-05-17"]
[null,null,null,null,null,null,null,null,null,null,null,null,null,null,null,null,"2015-05-18"]
[null,null,null,null,null,null,null,null,null,null,null,null,null,null,null,null,"2015-05-19"]
[null,null,null,null,null,null,null,null,null,null,null,null,null,null,null,null,"2015-05-20"]
[null,null,null,null,null,null,null,null,null,null,null,null,null,null,null,null,"2015-05-21"]
[null,null,null,null,null,null,null,null,null,null,null,null,null,null,null,null,"2015-05-22"]
[null,null,null,null,null,null,null,null,null,null,null,null,null,null,null,null,"2015-05-23"]
[null,null,null,null,null,null,null,null,null,null,null,null,null,null,null,null,"2015-05-24"]
[null,null,null,null,null,null,null,null,null,null,null,null,null,null,null,null,"2015-05-25"]
[null,null,null,null,null,null,null,null,null,null,null,null,null,null,null,null,"2015-05-26"]
[null,null,null,null,null,null,null,null,null,null,null,null,null,null,null,null,"2015-05-27"]
[null,null,null,null,null,null,null,null,null,null,null,null,null,null,null,null,"2015-05-28"]
[null,null,null,null,null,null,null,null,null,null,null,null,null,null,null,null,"2015-05-29"]
[null,null,null,null,null,null,null,null,null,null,null,null,null,null,null,null,"2015-05-30"]
[null,null,null,null,null,null,null,null,null,null,null,null,null,null,null,null,"2015-05-31"]
[null,null,null,null,null,null,null,null,null,null,null,null,null,null,null,null,"2015-06-01"]
[null,null,null,null,null,null,null,null,null,null,null,null,null,null,null,null,"2015-06-02"]
[null,null,null,null,null,null,null,null,null,null,null,null,null,null,null,null,"2015-06-03"]
[null,null,null,null,null,null,null,null,null,null,null,null,null,null,null,null,"2015-06-04"]
[null,null,null,null,null,null,null,null,null,null,null,null,null,null,null,null,"2015-06-05"]
[null,null,null,null,null,null,null,null,null,null,null,null,null,null,null,null,"2015-06-06"]
[null,null,null,null,null,null,null,null,null,null,null,null,null,null,null,null,"2015-06-07"]
[null,null,null,null,null,null,null,null,null,null,null,null,null,null,null,null,"2015-06-08"]
[null,null,null,null,null,null,null,null,null,null,null,null,null,null,null,null,"2015-06-09"]
[null,null,null,null,null,null,null,null,null,null,null,null,null,null,null,null,"2015-06-10"]
[null,null,null,null,null,null,null,null,null,null,null,null,null,null,null,null,"2015-06-11"]
[null,null,null,null,null,null,null,null,null,null,null,null,null,null,null,null,"2015-06-12"]
[null,null,null,null,null,null,null,null,null,null,null,null,null,null,null,null,"2015-06-13"]
[null,null,null,null,null,null,null,null,null,null,null,null,null,null,null,null,"2015-06-14"]
[null,null,null,null,null,null,null,null,null,null,null,null,null,null,null,null,"2015-06-15"]
[null,null,null,null,null,null,null,null,null,null,null,null,null,null,null,null,"2015-06-16"]
[null,null,null,null,null,null,null,null,null,null,null,null,null,null,null,null,"2015-06-17"]
[null,null,null,null,null,null,null,null,null,null,null,null,null,null,null,null,"2015-06-18"]
[null,null,null,null,null,null,null,null,null,null,null,null,null,null,null,null,"2015-06-19"]
[null,null,null,null,null,null,null,null,null,null,null,null,null,null,null,null,"2015-06-20"]
[null,null,null,null,null,null,null,null,null,null,null,null,null,null,null,null,"2015-06-21"]
[null,null,null,null,null,null,null,null,null,null,null,null,null,null,null,null,"2015-06-22"]
[null,null,null,null,null,null,null,null,null,null,null,null,null,null,null,null,"2015-06-23"]
[null,null,null,null,null,null,null,null,null,null,null,null,null,null,null,null,"2015-06-24"]
[null,null,null,null,null,null,null,null,null,null,null,null,null,null,null,null,"2015-06-25"]
[null,null,null,null,null,null,null,null,null,null,null,null,null,null,null,null,"2015-06-26"]
[null,null,null,null,null,null,null,null,null,null,null,null,null,null,null,null,"2015-06-27"]
[null,null,null,null,null,null,null,null,null,null,null,null,null,null,null,null,"2015-06-28"]
[null,null,null,null,null,null,null,null,null,null,null,null,null,null,null,null,"2015-06-29"]
[null,null,null,null,null,null,null,null,null,null,null,null,null,null,null,null,"2015-06-30"]
[null,null,null,null,null,null,null,null,null,null,null,null,null,null,null,null,"2015-07-01"]
[null,null,null,null,null,null,null,null,null,null,null,null,null,null,null,null,"2015-07-02"]
[null,null,null,null,null,null,null,null,null,null,null,null,null,null,null,null,"2015-07-03"]
[null,null,null,null,null,null,null,null,null,null,null,null,null,null,null,null,"2015-07-04"]
[null,null,null,null,null,null,null,null,null,null,null,null,null,null,null,null,"2015-07-05"]
[null,null,null,null,null,null,null,null,null,null,null,null,null,null,null,null,"2015-07-06"]
[null,null,null,null,null,null,null,null,null,null,null,null,null,null,null,null,"2015-07-07"]
[null,null,null,null,null,null,null,null,null,null,null,null,null,null,null,null,"2015-07-08"]
[null,null,null,null,null,null,null,null,null,null,null,null,null,null,null,null,"2015-07-09"]
[null,null,null,null,null,null,null,null,null,null,null,null,null,null,null,null,"2015-07-10"]
[null,null,null,null,null,null,null,null,null,null,null,null,null,null,null,null,"2015-07-11"]
[null,null,null,null,null,null,null,null,null,null,null,null,null,null,null,null,"2015-07-12"]
[null,null,null,null,null,null,null,null,null,null,null,null,null,null,null,null,"2015-07-13"]
[null,null,null,null,null,null,null,null,null,null,null,null,null,null,null,null,"2015-07-14"]
[null,null,null,null,null,null,null,null,null,null,null,null,null,null,null,null,"2015-07-15"]
[null,null,null,null,null,null,null,null,null,null,null,null,null,null,null,null,"2015-07-16"]
[null,null,null,null,null,null,null,null,null,null,null,null,null,null,null,null,"2015-07-17"]
[null,null,null,null,null,null,null,null,null,null,null,null,null,null,null,null,"2015-07-18"]
[null,null,null,null,null,null,null,null,null,null,null,null,null,null,null,null,"2015-07-19"]
[null,null,null,null,null,null,null,null,null,null,null,null,null,null,null,null,"2015-07-20"]
[null,null,null,null,null,null,null,null,null,null,null,null,null,null,null,null,"2015-07-21"]
[null,null,null,null,null,null,null,null,null,null,null,null,null,null,null,null,"2015-07-22"]
[null,null,null,null,null,null,null,null,null,null,null,null,null,null,null,null,"2015-07-23"]
[null,null,null,null,null,null,null,null,null,null,null,null,null,null,null,null,"2015-07-24"]
[null,null,null,null,null,null,null,null,null,null,null,null,null,null,null,null,"2015-07-25"]
[null,null,null,null,null,null,null,null,null,null,null,null,null,null,null,null,"2015-07-26"]
[null,null,null,null,null,null,null,null,null,null,null,null,null,null,null,null,"2015-07-27"]
[null,null,null,null,null,null,null,null,null,null,null,null,null,null,null,null,"2015-07-28"]
[null,null,null,null,null,null,null,null,null,null,null,null,null,null,null,null,"2015-07-29"]
[null,null,null,null,null,null,null,null,null,null,null,null,null,null,null,null,"2015-07-30"]
[null,null,null,null,null,null,null,null,null,null,null,null,null,null,null,null,"2015-07-31"]
[null,null,null,null,null,null,null,null,null,null,null,null,null,null,null,null,"2015-08-01"]
[null,null,null,null,null,null,null,null,null,null,null,null,null,null,null,null,"2015-08-02"]
[null,null,null,null,null,null,null,null,null,null,null,null,null,null,null,null,"2015-08-03"]
[null,null,null,null,null,null,null,null,null,null,null,null,null,null,null,null,"2015-08-04"]
[null,null,null,null,null,null,null,null,null,null,null,null,null,null,null,null,"2015-08-05"]
[null,null,null,null,null,null,null,null,null,null,null,null,null,null,null,null,"2015-08-06"]
[null,null,null,null,null,null,null,null,null,null,null,null,null,null,null,null,"2015-08-07"]
[null,null,null,null,null,null,null,null,null,null,null,null,null,null,null,null,"2015-08-08"]
[null,null,null,null,null,null,null,null,null,null,null,null,null,null,null,null,"2015-08-09"]
[null,null,null,null,null,null,null,null,null,null,null,null,null,null,null,null,"2015-08-10"]
[null,null,null,null,null,null,null,null,null,null,null,null,null,null,null,null,"2015-08-11"]
[null,null,null,null,null,null,null,null,null,null,null,null,null,null,null,null,"2015-08-12"]
[null,null,null,null,null,null,null,null,null,null,null,null,null,null,null,null,"2015-08-13"]
[null,null,null,null,null,null,null,null,null,null,null,null,null,null,null,null,"2015-08-14"]
[null,null,null,null,null,null,null,null,null,null,null,null,null,null,null,null,"2015-08-15"]
[null,null,null,null,null,null,null,null,null,null,null,null,null,null,null,null,"2015-08-16"]
[null,null,null,null,null,null,null,null,null,null,null,null,null,null,null,null,"2015-08-17"]
[null,null,null,null,null,null,null,null,null,null,null,null,null,null,null,null,"2015-08-18"]
[null,null,null,null,null,null,null,null,null,null,null,null,null,null,null,null,"2015-08-19"]
[null,null,null,null,null,null,null,null,null,null,null,null,null,null,null,null,"2015-08-20"]
[null,null,null,null,null,null,null,null,null,null,null,null,null,null,null,null,"2015-08-21"]
[null,null,null,null,null,null,null,null,null,null,null,null,null,null,null,null,"2015-08-22"]
[null,null,null,null,null,null,null,null,null,null,null,null,null,null,null,null,"2015-08-23"]
[null,null,null,null,null,null,null,null,null,null,null,null,null,null,null,null,"2015-08-24"]
[null,null,null,null,null,null,null,null,null,null,null,null,null,null,null,null,"2015-08-25"]
[null,null,null,null,null,null,null,null,null,null,null,null,null,null,null,null,"2015-08-26"]
[null,null,null,null,null,null,null,null,null,null,null,null,null,null,null,null,"2015-08-27"]
[null,null,null,null,null,null,null,null,null,null,null,null,null,null,null,null,"2015-08-28"]
[null,null,null,null,null,null,null,null,null,null,null,null,null,null,null,null,"2015-08-29"]
[null,null,null,null,null,null,null,null,null,null,null,null,null,null,null,null,"2015-08-30"]
[null,null,null,null,null,null,null,null,null,null,null,null,null,null,null,null,"2015-08-31"]
[null,null,null,null,null,null,null,null,null,null,null,null,null,null,null,null,"2015-09-01"]
[null,null,null,null,null,null,null,null,null,null,null,null,null,null,null,null,"2015-09-02"]
[null,null,null,null,null,null,null,null,null,null,null,null,null,null,null,null,"2015-09-03"]
[null,null,null,null,null,null,null,null,null,null,null,null,null,null,null,null,"2015-09-04"]
[null,null,null,null,null,null,null,null,null,null,null,null,null,null,null,null,"2015-09-05"]
[null,null,null,null,null,null,null,null,null,null,null,null,null,null,null,null,"2015-09-06"]
[null,null,null,null,null,null,null,null,null,null,null,null,null,null,null,null,"2015-09-07"]
[null,null,null,null,null,null,null,null,null,null,null,null,null,null,null,null,"2015-09-08"]
[null,null,null,null,null,null,null,null,null,null,null,null,null,null,null,null,"2015-09-09"]
[null,null,null,null,null,null,null,null,null,null,null,null,null,null,null,null,"2015-09-10"]
[null,null,null,null,null,null,null,null,null,null,null,null,null,null,null,null,"2015-09-11"]
[null,null,null,null,null,null,null,null,null,null,null,null,null,null,null,null,"2015-09-12"]
[null,null,null,null,null,null,null,null,null,null,null,null,null,null,null,null,"2015-09-13"]
[null,null,null,null,null,null,null,null,null,null,null,null,null,null,null,null,"2015-09-14"]
[null,null,null,null,null,null,null,null,null,null,null,null,null,null,null,null,"2015-09-15"]
[null,null,null,null,null,null,null,null,null,null,null,null,null,null,null,null,"2015-09-16"]
[null,null,null,null,null,null,null,null,null,null,null,null,null,null,null,null,"2015-09-17"]
[null,null,null,null,null,null,null,null,null,null,null,null,null,null,null,null,"2015-09-18"]
[null,null,null,null,null,null,null,null,null,null,null,null,null,null,null,null,"2015-09-19"]
[null,null,null,null,null,null,null,null,null,null,null,null,null,null,null,null,"2015-09-20"]
[null,null,null,null,null,null,null,null,null,null,null,null,null,null,null,null,"2015-09-21"]
[null,null,null,null,null,null,null,null,null,null,null,null,null,null,null,null,"2015-09-22"]
[null,null,null,null,null,null,null,null,null,null,null,null,null,null,null,null,"2015-09-23"]
[null,null,null,null,null,null,null,null,null,null,null,null,null,null,null,null,"2015-09-24"]
[null,null,null,null,null,null,null,null,null,null,null,null,null,null,null,null,"2015-09-25"]
[null,null,null,null,null,null,null,null,null,null,null,null,null,null,null,null,"2015-09-26"]
[null,null,null,null,null,null,null,null,null,null,null,null,null,null,null,null,"2015-09-27"]
[null,null,null,null,null,null,null,null,null,null,null,null,null,null,null,null,"2015-09-28"]
[null,null,null,null,null,null,null,null,null,null,null,null,null,null,null,null,"2015-09-29"]
[null,null,null,null,null,null,null,null,null,null,null,null,null,null,null,null,"2015-09-30"]
[null,null,null,null,null,null,null,null,null,null,null,null,null,null,null,null,"2015-10-01"]
[null,null,null,null,null,null,null,null,null,null,null,null,null,null,null,null,"2015-10-02"]
[null,null,null,null,null,null,null,null,null,null,null,null,null,null,null,null,"2015-10-03"]
[null,null,null,null,null,null,null,null,null,null,null,null,null,null,null,null,"2015-10-04"]
[null,null,null,null,null,null,null,null,null,null,null,null,null,null,null,null,"2015-10-05"]
[null,null,null,null,null,null,null,null,null,null,null,null,null,null,null,null,"2015-10-06"]
[null,null,null,null,null,null,null,null,null,null,null,null,null,null,null,null,"2015-10-07"]
[null,null,null,null,null,null,null,null,null,null,null,null,null,null,null,null,"2015-10-08"]
[null,null,null,null,null,null,null,null,null,null,null,null,null,null,null,null,"2015-10-09"]
[null,null,null,null,null,null,null,null,null,null,null,null,null,null,null,null,"2015-10-10"]
[null,null,null,null,null,null,null,null,null,null,null,null,null,null,null,null,"2015-10-11"]
[null,null,null,null,null,null,null,null,null,null,null,null,null,null,null,null,"2015-10-12"]
[null,null,null,null,null,null,null,null,null,null,null,null,null,null,null,null,"2015-10-13"]
[null,null,null,null,null,null,null,null,null,null,null,null,null,null,null,null,"2015-10-14"]
[null,null,null,null,null,null,null,null,null,null,null,null,null,null,null,null,"2015-10-15"]
[null,null,null,null,null,null,null,null,null,null,null,null,null,null,null,null,"2015-10-16"]
[null,null,null,null,null,null,null,null,null,null,null,null,null,null,null,null,"2015-10-17"]
[null,null,null,null,null,null,null,null,null,null,null,null,null,null,null,null,"2015-10-18"]
[null,null,null,null,null,null,null,null,null,null,null,null,null,null,null,null,"2015-10-19"]
[null,null,null,null,null,null,null,null,null,null,null,null,null,null,null,null,"2015-10-20"]
[null,null,null,null,null,null,null,null,null,null,null,null,null,null,null,null,"2015-10-21"]
[null,null,null,null,null,null,null,null,null,null,null,null,null,null,null,null,"2015-10-22"]
[null,null,null,null,null,null,null,null,null,null,null,null,null,null,null,null,"2015-10-23"]
[null,null,null,null,null,null,null,null,null,null,null,null,null,null,null,null,"2015-10-24"]
[null,null,null,null,null,null,null,null,null,null,null,null,null,null,null,null,"2015-10-25"]
[null,null,null,null,null,null,null,null,null,null,null,null,null,null,null,null,"2015-10-26"]
[null,null,null,null,null,null,null,null,null,null,null,null,null,null,null,null,"2015-10-27"]
[null,null,null,null,null,null,null,null,null,null,null,null,null,null,null,null,"2015-10-28"]
[null,null,null,null,null,null,null,null,null,null,null,null,null,null,null,null,"2015-10-29"]
[null,null,null,null,null,null,null,null,null,null,null,null,null,null,null,null,"2015-10-30"]
[null,null,null,null,null,null,null,null,null,null,null,null,null,null,null,null,"2015-10-31"]
[null,null,null,null,null,null,null,null,null,null,null,null,null,null,null,null,"2015-11-01"]
[null,null,null,null,null,null,null,null,null,null,null,null,null,null,null,null,"2015-11-02"]
[null,null,null,null,null,null,null,null,null,null,null,null,null,null,null,null,"2015-11-03"]
[null,null,null,null,null,null,null,null,null,null,null,null,null,null,null,null,"2015-11-04"]
[null,null,null,null,null,null,null,null,null,null,null,null,null,null,null,null,"2015-11-05"]
[null,null,null,null,null,null,null,null,null,null,null,null,null,null,null,null,"2015-11-06"]
[null,null,null,null,null,null,null,null,null,null,null,null,null,null,null,null,"2015-11-07"]
[null,null,null,null,null,null,null,null,null,null,null,null,null,null,null,null,"2015-11-08"]
[null,null,null,null,null,null,null,null,null,null,null,null,null,null,null,null,"2015-11-09"]
[null,null,null,null,null,null,null,null,null,null,null,null,null,null,null,null,"2015-11-10"]
[null,null,null,null,null,null,null,null,null,null,null,null,null,null,null,null,"2015-11-11"]
[null,null,null,null,null,null,null,null,null,null,null,null,null,null,null,null,"2015-11-12"]
[null,null,null,null,null,null,null,null,null,null,null,null,null,null,null,null,"2015-11-13"]
[null,null,null,null,null,null,null,null,null,null,null,null,null,null,null,null,"2015-11-14"]
[null,null,null,null,null,null,null,null,null,null,null,null,null,null,null,null,"2015-11-15"]
[null,null,null,null,null,null,null,null,null,null,null,null,null,null,null,null,"2015-11-16"]
[null,null,null,null,null,null,null,null,null,null,null,null,null,null,null,null,"2015-11-17"]
[null,null,null,null,null,null,null,null,null,null,null,null,null,null,null,null,"2015-11-18"]
[null,null,null,null,null,null,null,null,null,null,null,null,null,null,null,null,"2015-11-19"]
[null,null,null,null,null,null,null,null,null,null,null,null,null,null,null,null,"2015-11-20"]
[null,null,null,null,null,null,null,null,null,null,null,null,null,null,null,null,"2015-11-21"]
[null,null,null,null,null,null,null,null,null,null,null,null,null,null,null,null,"2015-11-22"]
[null,null,null,null,null,null,null,null,null,null,null,null,null,null,null,null,"2015-11-23"]
[null,null,null,null,null,null,null,null,null,null,null,null,null,null,null,null,"2015-11-24"]
[null,null,null,null,null,null,null,null,null,null,null,null,null,null,null,null,"2015-11-25"]
[null,null,null,null,null,null,null,null,null,null,null,null,null,null,null,null,"2015-11-26"]
[null,null,null,null,null,null,null,null,null,null,null,null,null,null,null,null,"2015-11-27"]
[null,null,null,null,null,null,null,null,null,null,null,null,null,null,null,null,"2015-11-28"]
[null,null,null,null,null,null,null,null,null,null,null,null,null,null,null,null,"2015-11-29"]
[null,null,null,null,null,null,null,null,null,null,null,null,null,null,null,null,"2015-11-30"]
[null,null,null,null,null,null,null,null,null,null,null,null,null,null,null,null,"2015-12-01"]
[null,null,null,null,null,null,null,null,null,null,null,null,null,null,null,null,"2015-12-02"]
[null,null,null,null,null,null,null,null,null,null,null,null,null,null,null,null,"2015-12-03"]
[null,null,null,null,null,null,null,null,null,null,null,null,null,null,null,null,"2015-12-04"]
[null,null,null,null,null,null,null,null,null,null,null,null,null,null,null,null,"2015-12-05"]
[null,null,null,null,null,null,null,null,null,null,null,null,null,null,null,null,"2015-12-06"]
[null,null,null,null,null,null,null,null,null,null,null,null,null,null,null,null,"2015-12-07"]
[null,null,null,null,null,null,null,null,null,null,null,null,null,null,null,null,"2015-12-08"]
[null,null,null,null,null,null,null,null,null,null,null,null,null,null,null,null,"2015-12-09"]
[null,null,null,null,null,null,null,null,null,null,null,null,null,null,null,null,"2015-12-10"]
[null,null,null,null,null,null,null,null,null,null,null,null,null,null,null,null,"2015-12-11"]
[null,null,null,null,null,null,null,null,null,null,null,null,null,null,null,null,"2015-12-12"]
[null,null,null,null,null,null,null,null,null,null,null,null,null,null,null,null,"2015-12-13"]
[null,null,null,null,null,null,null,null,null,null,null,null,null,null,null,null,"2015-12-14"]
[null,null,null,null,null,null,null,null,null,null,null,null,null,null,null,null,"2015-12-15"]
[null,null,null,null,null,null,null,null,null,null,null,null,null,null,null,null,"2015-12-16"]
[null,null,null,null,null,null,null,null,null,null,null,null,null,null,null,null,"2015-12-17"]
[null,null,null,null,null,null,null,null,null,null,null,null,null,null,null,null,"2015-12-18"]
[null,null,null,null,null,null,null,null,null,null,null,null,null,null,null,null,"2015-12-19"]
[null,null,null,null,null,null,null,null,null,null,null,null,null,null,null,null,"2015-12-20"]
[null,null,null,null,null,null,null,null,null,null,null,null,null,null,null,null,"2015-12-21"]
[null,null,null,null,null,null,null,null,null,null,null,null,null,null,null,null,"2015-12-22"]
[null,null,null,null,null,null,null,null,null,null,null,null,null,null,null,null,"2015-12-23"]
[null,null,null,null,null,null,null,null,null,null,null,null,null,null,null,null,"2015-12-24"]
[null,null,null,null,null,null,null,null,null,null,null,null,null,null,null,null,"2015-12-25"]
[null,null,null,null,null,null,null,null,null,null,null,null,null,null,null,null,"2015-12-26"]
[null,null,null,null,null,null,null,null,null,null,null,null,null,null,null,null,"2015-12-27"]
[null,null,null,null,null,null,null,null,null,null,null,null,null,null,null,null,"2015-12-28"]
[null,null,null,null,null,null,null,null,null,null,null,null,null,null,null,null,"2015-12-29"]
[null,null,null,null,null,null,null,null,null,null,null,null,null,null,null,null,"2015-12-30"]
[null,null,null,null,null,null,null,null,null,null,null,null,null,null,null,null,"2015-12-31"]
[null,null,null,null,null,null,null,null,null,null,null,null,null,null,null,null,"2016-01-01"]
[null,null,null,null,null,null,null,null,null,null,null,null,null,null,null,null,"2016-01-02"]
[null,null,null,null,null,null,null,null,null,null,null,null,null,null,null,null,"2016-01-03"]
[null,null,null,null,null,null,null,null,null,null,null,null,null,null,null,null,"2016-01-04"]
[null,null,null,null,null,null,null,null,null,null,null,null,null,null,null,null,"2016-01-05"]
[null,null,null,null,null,null,null,null,null,null,null,null,null,null,null,null,"2016-01-06"]
[null,null,null,null,null,null,null,null,null,null,null,null,null,null,null,null,"2016-01-07"]
[null,null,null,null,null,null,null,null,null,null,null,null,null,null,null,null,"2016-01-08"]
[null,null,null,null,null,null,null,null,null,null,null,null,null,null,null,null,"2016-01-09"]
[null,null,null,null,null,null,null,null,null,null,null,null,null,null,null,null,"2016-01-10"]
[null,null,null,null,null,null,null,null,null,null,null,null,null,null,null,null,"2016-01-11"]
[null,null,null,null,null,null,null,null,null,null,null,null,null,null,null,null,"2016-01-12"]
[null,null,null,null,null,null,null,null,null,null,null,null,null,null,null,null,"2016-01-13"]
[null,null,null,null,null,null,null,null,null,null,null,null,null,null,null,null,"2016-01-14"]
[null,null,null,null,null,null,null,null,null,null,null,null,null,null,null,null,"2016-01-15"]
[null,null,null,null,null,null,null,null,null,null,null,null,null,null,null,null,"2016-01-16"]
[null,null,null,null,null,null,null,null,null,null,null,null,null,null,null,null,"2016-01-17"]
[null,null,null,null,null,null,null,null,null,null,null,null,null,null,null,null,"2016-01-18"]
[null,null,null,null,null,null,null,null,null,null,null,null,null,null,null,null,"2016-01-19"]
[null,null,null,null,null,null,null,null,null,null,null,null,null,null,null,null,"2016-01-20"]
[null,null,null,null,null,null,null,null,null,null,null,null,null,null,null,null,"2016-01-21"]
[null,null,null,null,null,null,null,null,null,null,null,null,null,null,null,null,"2016-01-22"]
[null,null,null,null,null,null,null,null,null,null,null,null,null,null,null,null,"2016-01-23"]
[null,null,null,null,null,null,null,null,null,null,null,null,null,null,null,null,"2016-01-24"]
[null,null,null,null,null,null,null,null,null,null,null,null,null,null,null,null,"2016-01-25"]
[null,null,null,null,null,null,null,null,null,null,null,null,null,null,null,null,"2016-01-26"]
[null,null,null,null,null,null,null,null,null,null,null,null,null,null,null,null,"2016-01-27"]
[null,null,null,null,null,null,null,null,null,null,null,null,null,null,null,null,"2016-01-28"]
[null,null,null,null,null,null,null,null,null,null,null,null,null,null,null,null,"2016-01-29"]
[null,null,null,null,null,null,null,null,null,null,null,null,null,null,null,null,"2016-01-30"]
[null,null,null,null,null,null,null,null,null,null,null,null,null,null,null,null,"2016-01-31"]
[null,null,null,null,null,null,null,null,null,null,null,null,null,null,null,null,"2016-02-01"]
[null,null,null,null,null,null,null,null,null,null,null,null,null,null,null,null,"2016-02-02"]
[null,null,null,null,null,null,null,null,null,null,null,null,null,null,null,null,"2016-02-03"]
[null,null,null,null,null,null,null,null,null,null,null,null,null,null,null,null,"2016-02-04"]
[null,null,null,null,null,null,null,null,null,null,null,null,null,null,null,null,"2016-02-05"]
[null,null,null,null,null,null,null,null,null,null,null,null,null,null,null,null,"2016-02-06"]
[null,null,null,null,null,null,null,null,null,null,null,null,null,null,null,null,"2016-02-07"]
[null,null,null,null,null,null,null,null,null,null,null,null,null,null,null,null,"2016-02-08"]
[null,null,null,null,null,null,null,null,null,null,null,null,null,null,null,null,"2016-02-09"]
[null,null,null,null,null,null,null,null,null,null,null,null,null,null,null,null,"2016-02-10"]
[null,null,null,null,null,null,null,null,null,null,null,null,null,null,null,null,"2016-02-11"]
[null,null,null,null,null,null,null,null,null,null,null,null,null,null,null,null,"2016-02-12"]
[null,null,null,null,null,null,null,null,null,null,null,null,null,null,null,null,"2016-02-13"]
[null,null,null,null,null,null,null,null,null,null,null,null,null,null,null,null,"2016-02-14"]
[null,null,null,null,null,null,null,null,null,null,null,null,null,null,null,null,"2016-02-15"]
[null,null,null,null,null,null,null,null,null,null,null,null,null,null,null,null,"2016-02-16"]
[null,null,null,null,null,null,null,null,null,null,null,null,null,null,null,null,"2016-02-17"]
[null,null,null,null,null,null,null,null,null,null,null,null,null,null,null,null,"2016-02-18"]
[null,null,null,null,null,null,null,null,null,null,null,null,null,null,null,null,"2016-02-19"]
[null,null,null,null,null,null,null,null,null,null,null,null,null,null,null,null,"2016-02-20"]
[null,null,null,null,null,null,null,null,null,null,null,null,null,null,null,null,"2016-02-21"]
[null,null,null,null,null,null,null,null,null,null,null,null,null,null,null,null,"2016-02-22"]
[null,null,null,null,null,null,null,null,null,null,null,null,null,null,null,null,"2016-02-23"]
[null,null,null,null,null,null,null,null,null,null,null,null,null,null,null,null,"2016-02-24"]
[null,null,null,null,null,null,null,null,null,null,null,null,null,null,null,null,"2016-02-25"]
[null,null,null,null,null,null,null,null,null,null,null,null,null,null,null,null,"2016-02-26"]
[null,null,null,null,null,null,null,null,null,null,null,null,null,null,null,null,"2016-02-27"]
[null,null,null,null,null,null,null,null,null,null,null,null,null,null,null,null,"2016-02-28"]
[null,null,null,null,null,null,null,null,null,null,null,null,null,null,null,null,"2016-02-29"]
[null,null,null,null,null,null,null,null,null,null,null,null,null,null,null,null,"2016-03-01"]
[null,null,null,null,null,null,null,null,null,null,null,null,null,null,null,null,"2016-03-02"]
[null,null,null,null,null,null,null,null,null,null,null,null,null,null,null,null,"2016-03-03"]
[null,null,null,null,null,null,null,null,null,null,null,null,null,null,null,null,"2016-03-04"]
[null,null,null,null,null,null,null,null,null,null,null,null,null,null,null,null,"2016-03-05"]
[null,null,null,null,null,null,null,null,null,null,null,null,null,null,null,null,"2016-03-06"]
[null,null,null,null,null,null,null,null,null,null,null,null,null,null,null,null,"2016-03-07"]
[null,null,null,null,null,null,null,null,null,null,null,null,null,null,null,null,"2016-03-08"]
[null,null,null,null,null,null,null,null,null,null,null,null,null,null,null,null,"2016-03-09"]
[null,null,null,null,null,null,null,null,null,null,null,null,null,null,null,null,"2016-03-10"]
[null,null,null,null,null,null,null,null,null,null,null,null,null,null,null,null,"2016-03-11"]
[null,null,null,null,null,null,null,null,null,null,null,null,null,null,null,null,"2016-03-12"]
[null,null,null,null,null,null,null,null,null,null,null,null,null,null,null,null,"2016-03-13"]
[null,null,null,null,null,null,null,null,null,null,null,null,null,null,null,null,"2016-03-14"]
[null,null,null,null,null,null,null,null,null,null,null,null,null,null,null,null,"2016-03-15"]
[null,null,null,null,null,null,null,null,null,null,null,null,null,null,null,null,"2016-03-16"]
[null,null,null,null,null,null,null,null,null,null,null,null,null,null,null,null,"2016-03-17"]
[null,null,null,null,null,null,null,null,null,null,null,null,null,null,null,null,"2016-03-18"]
[null,null,null,null,null,null,null,null,null,null,null,null,null,null,null,null,"2016-03-19"]
[null,null,null,null,null,null,null,null,null,null,null,null,null,null,null,null,"2016-03-20"]
[null,null,null,null,null,null,null,null,null,null,null,null,null,null,null,null,"2016-03-21"]
[null,null,null,null,null,null,null,null,null,null,null,null,null,null,null,null,"2016-03-22"]
[null,null,null,null,null,null,null,null,null,null,null,null,null,null,null,null,"2016-03-23"]
[null,null,null,null,null,null,null,null,null,null,null,null,null,null,null,null,"2016-03-24"]
[null,null,null,null,null,null,null,null,null,null,null,null,null,null,null,null,"2016-03-25"]
[null,null,null,null,null,null,null,null,null,null,null,null,null,null,null,null,"2016-03-26"]
[null,null,null,null,null,null,null,null,null,null,null,null,null,null,null,null,"2016-03-27"]
[null,null,null,null,null,null,null,null,null,null,null,null,null,null,null,null,"2016-03-28"]
[null,null,null,null,null,null,null,null,null,null,null,null,null,null,null,null,"2016-03-29"]
[null,null,null,null,null,null,null,null,null,null,null,null,null,null,null,null,"2016-03-30"]
[null,null,null,null,null,null,null,null,null,null,null,null,null,null,null,null,"2016-03-31"]
[null,null,null,null,null,null,null,null,null,null,null,null,null,null,null,null,"2016-04-01"]
[null,null,null,null,null,null,null,null,null,null,null,null,null,null,null,null,"2016-04-02"]
[null,null,null,null,null,null,null,null,null,null,null,null,null,null,null,null,"2016-04-03"]
[null,null,null,null,null,null,null,null,null,null,null,null,null,null,null,null,"2016-04-04"]
[null,null,null,null,null,null,null,null,null,null,null,null,null,null,null,null,"2016-04-05"]
[null,null,null,null,null,null,null,null,null,null,null,null,null,null,null,null,"2016-04-06"]
[null,null,null,null,null,null,null,null,null,null,null,null,null,null,null,null,"2016-04-07"]
[null,null,null,null,null,null,null,null,null,null,null,null,null,null,null,null,"2016-04-08"]
[null,null,null,null,null,null,null,null,null,null,null,null,null,null,null,null,"2016-04-09"]
[null,null,null,null,null,null,null,null,null,null,null,null,null,null,null,null,"2016-04-10"]
[null,null,null,null,null,null,null,null,null,null,null,null,null,null,null,null,"2016-04-11"]
[null,null,null,null,null,null,null,null,null,null,null,null,null,null,null,null,"2016-04-12"]
[null,null,null,null,null,null,null,null,null,null,null,null,null,null,null,null,"2016-04-13"]
[null,null,null,null,null,null,null,null,null,null,null,null,null,null,null,null,"2016-04-14"]
[null,null,null,null,null,null,null,null,null,null,null,null,null,null,null,null,"2016-04-15"]
[null,null,null,null,null,null,null,null,null,null,null,null,null,null,null,null,"2016-04-16"]
[null,null,null,null,null,null,null,null,null,null,null,null,null,null,null,null,"2016-04-17"]
[null,null,null,null,null,null,null,null,null,null,null,null,null,null,null,null,"2016-04-18"]
[null,null,null,null,null,null,null,null,null,null,null,null,null,null,null,null,"2016-04-19"]
[null,null,null,null,null,null,null,null,null,null,null,null,null,null,null,null,"2016-04-20"]
[null,null,null,null,null,null,null,null,null,null,null,null,null,null,null,null,"2016-04-21"]
[null,null,null,null,null,null,null,null,null,null,null,null,null,null,null,null,"2016-04-22"]
[null,null,null,null,null,null,null,null,null,null,null,null,null,null,null,null,"2016-04-23"]
[null,null,null,null,null,null,null,null,null,null,null,null,null,null,null,null,"2016-04-24"]
[null,null,null,null,null,null,null,null,null,null,null,null,null,null,null,null,"2016-04-25"]
[null,null,null,null,null,null,null,null,null,null,null,null,null,null,null,null,"2016-04-26"]
[null,null,null,null,null,null,null,null,null,null,null,null,null,null,null,null,"2016-04-27"]
[null,null,null,null,null,null,null,null,null,null,null,null,null,null,null,null,"2016-04-28"]
[null,null,null,null,null,null,null,null,null,null,null,null,null,null,null,null,"2016-04-29"]
[null,null,null,null,null,null,null,null,null,null,null,null,null,null,null,null,"2016-04-30"]
[null,null,null,null,null,null,null,null,null,null,null,null,null,null,null,null,"2016-05-01"]
[null,null,null,null,null,null,null,null,null,null,null,null,null,null,null,null,"2016-05-02"]
[null,null,null,null,null,null,null,null,null,null,null,null,null,null,null,null,"2016-05-03"]
[null,null,null,null,null,null,null,null,null,null,null,null,null,null,null,null,"2016-05-04"]
[null,null,null,null,null,null,null,null,null,null,null,null,null,null,null,null,"2016-05-05"]
[null,null,null,null,null,null,null,null,null,null,null,null,null,null,null,null,"2016-05-06"]
[null,null,null,null,null,null,null,null,null,null,null,null,null,null,null,null,"2016-05-07"]
[null,null,null,null,null,null,null,null,null,null,null,null,null,null,null,null,"2016-05-08"]
[null,null,null,null,null,null,null,null,null,null,null,null,null,null,null,null,"2016-05-09"]
[null,null,null,null,null,null,null,null,null,null,null,null,null,null,null,null,"2016-05-10"]
[null,null,null,null,null,null,null,null,null,null,null,null,null,null,null,null,"2016-05-11"]
[null,null,null,null,null,null,null,null,null,null,null,null,null,null,null,null,"2016-05-12"]
[null,null,null,null,null,null,null,null,null,null,null,null,null,null,null,null,"2016-05-13"]
[null,null,null,null,null,null,null,null,null,null,null,null,null,null,null,null,"2016-05-14"]
[null,null,null,null,null,null,null,null,null,null,null,null,null,null,null,null,"2016-05-15"]
[null,null,null,null,null,null,null,null,null,null,null,null,null,null,null,null,"2016-05-16"]
[null,null,null,null,null,null,null,null,null,null,null,null,null,null,null,null,"2016-05-17"]
[null,null,null,null,null,null,null,null,null,null,null,null,null,null,null,null,"2016-05-18"]
[null,null,null,null,null,null,null,null,null,null,null,null,null,null,null,null,"2016-05-19"]
[null,null,null,null,null,null,null,null,null,null,null,null,null,null,null,null,"2016-05-20"]
[null,null,null,null,null,null,null,null,null,null,null,null,null,null,null,null,"2016-05-21"]
[null,null,null,null,null,null,null,null,null,null,null,null,null,null,null,null,"2016-05-22"]
[null,null,null,null,null,null,null,null,null,null,null,null,null,null,null,null,"2016-05-23"]
[null,null,null,null,null,null,null,null,null,null,null,null,null,null,null,null,"2016-05-24"]
[null,null,null,null,null,null,null,null,null,null,null,null,null,null,null,null,"2016-05-25"]
[null,null,null,null,null,null,null,null,null,null,null,null,null,null,null,null,"2016-05-26"]
[null,null,null,null,null,null,null,null,null,null,null,null,null,null,null,null,"2016-05-27"]
[null,null,null,null,null,null,null,null,null,null,null,null,null,null,null,null,"2016-05-28"]
[null,null,null,null,null,null,null,null,null,null,null,null,null,null,null,null,"2016-05-29"]
[null,null,null,null,null,null,null,null,null,null,null,null,null,null,null,null,"2016-05-30"]
[null,null,null,null,null,null,null,null,null,null,null,null,null,null,null,null,"2016-05-31"]
[null,null,null,null,null,null,null,null,null,null,null,null,null,null,null,null,"2016-06-01"]
[null,null,null,null,null,null,null,null,null,null,null,null,null,null,null,null,"2016-06-02"]
[null,null,null,null,null,null,null,null,null,null,null,null,null,null,null,null,"2016-06-03"]
[null,null,null,null,null,null,null,null,null,null,null,null,null,null,null,null,"2016-06-04"]
[null,null,null,null,null,null,null,null,null,null,null,null,null,null,null,null,"2016-06-05"]
[null,null,null,null,null,null,null,null,null,null,null,null,null,null,null,null,"2016-06-06"]
[null,null,null,null,null,null,null,null,null,null,null,null,null,null,null,null,"2016-06-07"]
[null,null,null,null,null,null,null,null,null,null,null,null,null,null,null,null,"2016-06-08"]
[null,null,null,null,null,null,null,null,null,null,null,null,null,null,null,null,"2016-06-09"]
[null,null,null,null,null,null,null,null,null,null,null,null,null,null,null,null,"2016-06-10"]
[null,null,null,null,null,null,null,null,null,null,null,null,null,null,null,null,"2016-06-11"]
[null,null,null,null,null,null,null,null,null,null,null,null,null,null,null,null,"2016-06-12"]
[null,null,null,null,null,null,null,null,null,null,null,null,null,null,null,null,"2016-06-13"]
[null,null,null,null,null,null,null,null,null,null,null,null,null,null,null,null,"2016-06-14"]
[null,null,null,null,null,null,null,null,null,null,null,null,null,null,null,null,"2016-06-15"]
[null,null,null,null,null,null,null,null,null,null,null,null,null,null,null,null,"2016-06-16"]
[null,null,null,null,null,null,null,null,null,null,null,null,null,null,null,null,"2016-06-17"]
[null,null,null,null,null,null,null,null,null,null,null,null,null,null,null,null,"2016-06-18"]
[null,null,null,null,null,null,null,null,null,null,null,null,null,null,null,null,"2016-06-19"]
[null,null,null,null,null,null,null,null,null,null,null,null,null,null,null,null,"2016-06-20"]
[null,null,null,null,null,null,null,null,null,null,null,null,null,null,null,null,"2016-06-21"]
[null,null,null,null,null,null,null,null,null,null,null,null,null,null,null,null,"2016-06-22"]
[null,null,null,null,null,null,null,null,null,null,null,null,null,null,null,null,"2016-06-23"]
[null,null,null,null,null,null,null,null,null,null,null,null,null,null,null,null,"2016-06-24"]
[null,null,null,null,null,null,null,null,null,null,null,null,null,null,null,null,"2016-06-25"]
[null,null,null,null,null,null,null,null,null,null,null,null,null,null,null,null,"2016-06-26"]
[null,null,null,null,null,null,null,null,null,null,null,null,null,null,null,null,"2016-06-27"]
[null,null,null,null,null,null,null,null,null,null,null,null,null,null,null,null,"2016-06-28"]
[null,null,null,null,null,null,null,null,null,null,null,null,null,null,null,null,"2016-06-29"]
[null,null,null,null,null,null,null,null,null,null,null,null,null,null,null,null,"2016-06-30"]
[null,null,null,null,null,null,null,null,null,null,null,null,null,null,null,null,"2016-07-01"]
[null,null,null,null,null,null,null,null,null,null,null,null,null,null,null,null,"2016-07-02"]
[null,null,null,null,null,null,null,null,null,null,null,null,null,null,null,null,"2016-07-03"]
[null,null,null,null,null,null,null,null,null,null,null,null,null,null,null,null,"2016-07-04"]
[null,null,null,null,null,null,null,null,null,null,null,null,null,null,null,null,"2016-07-05"]
[null,null,null,null,null,null,null,null,null,null,null,null,null,null,null,null,"2016-07-06"]
[null,null,null,null,null,null,null,null,null,null,null,null,null,null,null,null,"2016-07-07"]
[null,null,null,null,null,null,null,null,null,null,null,null,null,null,null,null,"2016-07-08"]
[null,null,null,null,null,null,null,null,null,null,null,null,null,null,null,null,"2016-07-09"]
[null,null,null,null,null,null,null,null,null,null,null,null,null,null,null,null,"2016-07-10"]
[null,null,null,null,null,null,null,null,null,null,null,null,null,null,null,null,"2016-07-11"]
[null,null,null,null,null,null,null,null,null,null,null,null,null,null,null,null,"2016-07-12"]
[null,null,null,null,null,null,null,null,null,null,null,null,null,null,null,null,"2016-07-13"]
[null,null,null,null,null,null,null,null,null,null,null,null,null,null,null,null,"2016-07-14"]
[null,null,null,null,null,null,null,null,null,null,null,null,null,null,null,null,"2016-07-15"]
[null,null,null,null,null,null,null,null,null,null,null,null,null,null,null,null,"2016-07-16"]
[null,null,null,null,null,null,null,null,null,null,null,null,null,null,null,null,"2016-07-17"]
[null,null,null,null,null,null,null,null,null,null,null,null,null,null,null,null,"2016-07-18"]
[null,null,null,null,null,null,null,null,null,null,null,null,null,null,null,null,"2016-07-19"]
[null,null,null,null,null,null,null,null,null,null,null,null,null,null,null,null,"2016-07-20"]
[null,null,null,null,null,null,null,null,null,null,null,null,null,null,null,null,"2016-07-21"]
[null,null,null,null,null,null,null,null,null,null,null,null,null,null,null,null,"2016-07-22"]
[null,null,null,null,null,null,null,null,null,null,null,null,null,null,null,null,"2016-07-23"]
[null,null,null,null,null,null,null,null,null,null,null,null,null,null,null,null,"2016-07-24"]
[null,null,null,null,null,null,null,null,null,null,null,null,null,null,null,null,"2016-07-25"]
[null,null,null,null,null,null,null,null,null,null,null,null,null,null,null,null,"2016-07-26"]
[null,null,null,null,null,null,null,null,null,null,null,null,null,null,null,null,"2016-07-27"]
[null,null,null,null,null,null,null,null,null,null,null,null,null,null,null,null,"2016-07-28"]
[null,null,null,null,null,null,null,null,null,null,null,null,null,null,null,null,"2016-07-29"]
[null,null,null,null,null,null,null,null,null,null,null,null,null,null,null,null,"2016-07-30"]
[null,null,null,null,null,null,null,null,null,null,null,null,null,null,null,null,"2016-07-31"]
[null,null,null,null,null,null,null,null,null,null,null,null,null,null,null,null,"2016-08-01"]
[null,null,null,null,null,null,null,null,null,null,null,null,null,null,null,null,"2016-08-02"]
[null,null,null,null,null,null,null,null,null,null,null,null,null,null,null,null,"2016-08-03"]
[null,null,null,null,null,null,null,null,null,null,null,null,null,null,null,null,"2016-08-04"]
[null,null,null,null,null,null,null,null,null,null,null,null,null,null,null,null,"2016-08-05"]
[null,null,null,null,null,null,null,null,null,null,null,null,null,null,null,null,"2016-08-06"]
[null,null,null,null,null,null,null,null,null,null,null,null,null,null,null,null,"2016-08-07"]
[null,null,null,null,null,null,null,null,null,null,null,null,null,null,null,null,"2016-08-08"]
[null,null,null,null,null,null,null,null,null,null,null,null,null,null,null,null,"2016-08-09"]
[null,null,null,null,null,null,null,null,null,null,null,null,null,null,null,null,"2016-08-10"]
[null,null,null,null,null,null,null,null,null,null,null,null,null,null,null,null,"2016-08-11"]
[null,null,null,null,null,null,null,null,null,null,null,null,null,null,null,null,"2016-08-12"]
[null,null,null,null,null,null,null,null,null,null,null,null,null,null,null,null,"2016-08-13"]
[null,null,null,null,null,null,null,null,null,null,null,null,null,null,null,null,"2016-08-14"]
[null,null,null,null,null,null,null,null,null,null,null,null,null,null,null,null,"2016-08-15"]
[null,null,null,null,null,null,null,null,null,null,null,null,null,null,null,null,"2016-08-16"]
[null,null,null,null,null,null,null,null,null,null,null,null,null,null,null,null,"2016-08-17"]
[null,null,null,null,null,null,null,null,null,null,null,null,null,null,null,null,"2016-08-18"]
[null,null,null,null,null,null,null,null,null,null,null,null,null,null,null,null,"2016-08-19"]
[null,null,null,null,null,null,null,null,null,null,null,null,null,null,null,null,"2016-08-20"]
[null,null,null,null,null,null,null,null,null,null,null,null,null,null,null,null,"2016-08-21"]
[null,null,null,null,null,null,null,null,null,null,null,null,null,null,null,null,"2016-08-22"]
[null,null,null,null,null,null,null,null,null,null,null,null,null,null,null,null,"2016-08-23"]
[null,null,null,null,null,null,null,null,null,null,null,null,null,null,null,null,"2016-08-24"]
[null,null,null,null,null,null,null,null,null,null,null,null,null,null,null,null,"2016-08-25"]
[null,null,null,null,null,null,null,null,null,null,null,null,null,null,null,null,"2016-08-26"]
[null,null,null,null,null,null,null,null,null,null,null,null,null,null,null,null,"2016-08-27"]
[null,null,null,null,null,null,null,null,null,null,null,null,null,null,null,null,"2016-08-28"]
[null,null,null,null,null,null,null,null,null,null,null,null,null,null,null,null,"2016-08-29"]
[null,null,null,null,null,null,null,null,null,null,null,null,null,null,null,null,"2016-08-30"]
[null,null,null,null,null,null,null,null,null,null,null,null,null,null,null,null,"2016-08-31"]
[null,null,null,null,null,null,null,null,null,null,null,null,null,null,null,null,"2016-09-01"]
[null,null,null,null,null,null,null,null,null,null,null,null,null,null,null,null,"2016-09-02"]
[null,null,null,null,null,null,null,null,null,null,null,null,null,null,null,null,"2016-09-03"]
[null,null,null,null,null,null,null,null,null,null,null,null,null,null,null,null,"2016-09-04"]
[null,null,null,null,null,null,null,null,null,null,null,null,null,null,null,null,"2016-09-05"]
[null,null,null,null,null,null,null,null,null,null,null,null,null,null,null,null,"2016-09-06"]
[null,null,null,null,null,null,null,null,null,null,null,null,null,null,null,null,"2016-09-07"]
[null,null,null,null,null,null,null,null,null,null,null,null,null,null,null,null,"2016-09-08"]
[null,null,null,null,null,null,null,null,null,null,null,null,null,null,null,null,"2016-09-09"]
[null,null,null,null,null,null,null,null,null,null,null,null,null,null,null,null,"2016-09-10"]
[null,null,null,null,null,null,null,null,null,null,null,null,null,null,null,null,"2016-09-11"]
[null,null,null,null,null,null,null,null,null,null,null,null,null,null,null,null,"2016-09-12"]
[null,null,null,null,null,null,null,null,null,null,null,null,null,null,null,null,"2016-09-13"]
[null,null,null,null,null,null,null,null,null,null,null,null,null,null,null,null,"2016-09-14"]
[null,null,null,null,null,null,null,null,null,null,null,null,null,null,null,null,"2016-09-15"]
[null,null,null,null,null,null,null,null,null,null,null,null,null,null,null,null,"2016-09-16"]
[null,null,null,null,null,null,null,null,null,null,null,null,null,null,null,null,"2016-09-17"]
[null,null,null,null,null,null,null,null,null,null,null,null,null,null,null,null,"2016-09-18"]
[null,null,null,null,null,null,null,null,null,null,null,null,null,null,null,null,"2016-09-19"]
[null,null,null,null,null,null,null,null,null,null,null,null,null,null,null,null,"2016-09-20"]
[null,null,null,null,null,null,null,null,null,null,null,null,null,null,null,null,"2016-09-21"]
[null,null,null,null,null,null,null,null,null,null,null,null,null,null,null,null,"2016-09-22"]
[null,null,null,null,null,null,null,null,null,null,null,null,null,null,null,null,"2016-09-23"]
[null,null,null,null,null,null,null,null,null,null,null,null,null,null,null,null,"2016-09-24"]
[null,null,null,null,null,null,null,null,null,null,null,null,null,null,null,null,"2016-09-25"]
[null,null,null,null,null,null,null,null,null,null,null,null,null,null,null,null,"2016-09-26"]
[null,null,null,null,null,null,null,null,null,null,null,null,null,null,null,null,"2016-09-27"]
[null,null,null,null,null,null,null,null,null,null,null,null,null,null,null,null,"2016-09-28"]
[null,null,null,null,null,null,null,null,null,null,null,null,null,null,null,null,"2016-09-29"]
[null,null,null,null,null,null,null,null,null,null,null,null,null,null,null,null,"2016-09-30"]
[null,null,null,null,null,null,null,null,null,null,null,null,null,null,null,null,"2016-10-01"]
[null,null,null,null,null,null,null,null,null,null,null,null,null,null,null,null,"2016-10-02"]
[null,null,null,null,null,null,null,null,null,null,null,null,null,null,null,null,"2016-10-03"]
[null,null,null,null,null,null,null,null,null,null,null,null,null,null,null,null,"2016-10-04"]
[null,null,null,null,null,null,null,null,null,null,null,null,null,null,null,null,"2016-10-05"]
[null,null,null,null,null,null,null,null,null,null,null,null,null,null,null,null,"2016-10-06"]
[null,null,null,null,null,null,null,null,null,null,null,null,null,null,null,null,"2016-10-07"]
[null,null,null,null,null,null,null,null,null,null,null,null,null,null,null,null,"2016-10-08"]
[null,null,null,null,null,null,null,null,null,null,null,null,null,null,null,null,"2016-10-09"]
[null,null,null,null,null,null,null,null,null,null,null,null,null,null,null,null,"2016-10-10"]
[null,null,null,null,null,null,null,null,null,null,null,null,null,null,null,null,"2016-10-11"]
[null,null,null,null,null,null,null,null,null,null,null,null,null,null,null,null,"2016-10-12"]
[null,null,null,null,null,null,null,null,null,null,null,null,null,null,null,null,"2016-10-13"]
[null,null,null,null,null,null,null,null,null,null,null,null,null,null,null,null,"2016-10-14"]
[null,null,null,null,null,null,null,null,null,null,null,null,null,null,null,null,"2016-10-15"]
[null,null,null,null,null,null,null,null,null,null,null,null,null,null,null,null,"2016-10-16"]
[null,null,null,null,null,null,null,null,null,null,null,null,null,null,null,null,"2016-10-17"]
[null,null,null,null,null,null,null,null,null,null,null,null,null,null,null,null,"2016-10-18"]
[null,null,null,null,null,null,null,null,null,null,null,null,null,null,null,null,"2016-10-19"]
[null,null,null,null,null,null,null,null,null,null,null,null,null,null,null,null,"2016-10-20"]
[null,null,null,null,null,null,null,null,null,null,null,null,null,null,null,null,"2016-10-21"]
[null,null,null,null,null,null,null,null,null,null,null,null,null,null,null,null,"2016-10-22"]
[null,null,null,null,null,null,null,null,null,null,null,null,null,null,null,null,"2016-10-23"]
[null,null,null,null,null,null,null,null,null,null,null,null,null,null,null,null,"2016-10-24"]
[null,null,null,null,null,null,null,null,null,null,null,null,null,null,null,null,"2016-10-25"]
[null,null,null,null,null,null,null,null,null,null,null,null,null,null,null,null,"2016-10-26"]
[null,null,null,null,null,null,null,null,null,null,null,null,null,null,null,null,"2016-10-27"]
[null,null,null,null,null,null,null,null,null,null,null,null,null,null,null,null,"2016-10-28"]
[null,null,null,null,null,null,null,null,null,null,null,null,null,null,null,null,"2016-10-29"]
[null,null,null,null,null,null,null,null,null,null,null,null,null,null,null,null,"2016-10-30"]
[null,null,null,null,null,null,null,null,null,null,null,null,null,null,null,null,"2016-10-31"]
[null,null,null,null,null,null,null,null,null,null,null,null,null,null,null,null,"2016-11-01"]
[null,null,null,null,null,null,null,null,null,null,null,null,null,null,null,null,"2016-11-02"]
[null,null,null,null,null,null,null,null,null,null,null,null,null,null,null,null,"2016-11-03"]
[null,null,null,null,null,null,null,null,null,null,null,null,null,null,null,null,"2016-11-04"]
[null,null,null,null,null,null,null,null,null,null,null,null,null,null,null,null,"2016-11-05"]
[null,null,null,null,null,null,null,null,null,null,null,null,null,null,null,null,"2016-11-06"]
[null,null,null,null,null,null,null,null,null,null,null,null,null,null,null,null,"2016-11-07"]
[null,null,null,null,null,null,null,null,null,null,null,null,null,null,null,null,"2016-11-08"]
[null,null,null,null,null,null,null,null,null,null,null,null,null,null,null,null,"2016-11-09"]
[null,null,null,null,null,null,null,null,null,null,null,null,null,null,null,null,"2016-11-10"]
[null,null,null,null,null,null,null,null,null,null,null,null,null,null,null,null,"2016-11-11"]
[null,null,null,null,null,null,null,null,null,null,null,null,null,null,null,null,"2016-11-12"]
[null,null,null,null,null,null,null,null,null,null,null,null,null,null,null,null,"2016-11-13"]
[null,null,null,null,null,null,null,null,null,null,null,null,null,null,null,null,"2016-11-14"]
[null,null,null,null,null,null,null,null,null,null,null,null,null,null,null,null,"2016-11-15"]
[null,null,null,null,null,null,null,null,null,null,null,null,null,null,null,null,"2016-11-16"]
[null,null,null,null,null,null,null,null,null,null,null,null,null,null,null,null,"2016-11-17"]
[null,null,null,null,null,null,null,null,null,null,null,null,null,null,null,null,"2016-11-18"]
[null,null,null,null,null,null,null,null,null,null,null,null,null,null,null,null,"2016-11-19"]
[null,null,null,null,null,null,null,null,null,null,null,null,null,null,null,null,"2016-11-20"]
[null,null,null,null,null,null,null,null,null,null,null,null,null,null,null,null,"2016-11-21"]
[null,null,null,null,null,null,null,null,null,null,null,null,null,null,null,null,"2016-11-22"]
[null,null,null,null,null,null,null,null,null,null,null,null,null,null,null,null,"2016-11-23"]
[null,null,null,null,null,null,null,null,null,null,null,null,null,null,null,null,"2016-11-24"]
[null,null,null,null,null,null,null,null,null,null,null,null,null,null,null,null,"2016-11-25"]
[null,null,null,null,null,null,null,null,null,null,null,null,null,null,null,null,"2016-11-26"]
[null,null,null,null,null,null,null,null,null,null,null,null,null,null,null,null,"2016-11-27"]
[null,null,null,null,null,null,null,null,null,null,null,null,null,null,null,null,"2016-11-28"]
[null,null,null,null,null,null,null,null,null,null,null,null,null,null,null,null,"2016-11-29"]
[null,null,null,null,null,null,null,null,null,null,null,null,null,null,null,null,"2016-11-30"]
[null,null,null,null,null,null,null,null,null,null,null,null,null,null,null,null,"2016-12-01"]
[null,null,null,null,null,null,null,null,null,null,null,null,null,null,null,null,"2016-12-02"]
[null,null,null,null,null,null,null,null,null,null,null,null,null,null,null,null,"2016-12-03"]
[null,null,null,null,null,null,null,null,null,null,null,null,null,null,null,null,"2016-12-04"]
[null,null,null,null,null,null,null,null,null,null,null,null,null,null,null,null,"2016-12-05"]
[null,null,null,null,null,null,null,null,null,null,null,null,null,null,null,null,"2016-12-06"]
[null,null,null,null,null,null,null,null,null,null,null,null,null,null,null,null,"2016-12-07"]
[null,null,null,null,null,null,null,null,null,null,null,null,null,null,null,null,"2016-12-08"]
[null,null,null,null,null,null,null,null,null,null,null,null,null,null,null,null,"2016-12-09"]
[null,null,null,null,null,null,null,null,null,null,null,null,null,null,null,null,"2016-12-10"]
[null,null,null,null,null,null,null,null,null,null,null,null,null,null,null,null,"2016-12-11"]
[null,null,null,null,null,null,null,null,null,null,null,null,null,null,null,null,"2016-12-12"]
[null,null,null,null,null,null,null,null,null,null,null,null,null,null,null,null,"2016-12-13"]
[null,null,null,null,null,null,null,null,null,null,null,null,null,null,null,null,"2016-12-14"]
[null,null,null,null,null,null,null,null,null,null,null,null,null,null,null,null,"2016-12-15"]
[null,null,null,null,null,null,null,null,null,null,null,null,null,null,null,null,"2016-12-16"]
[null,null,null,null,null,null,null,null,null,null,null,null,null,null,null,null,"2016-12-17"]
[null,null,null,null,null,null,null,null,null,null,null,null,null,null,null,null,"2016-12-18"]
[null,null,null,null,null,null,null,null,null,null,null,null,null,null,null,null,"2016-12-19"]
[null,null,null,null,null,null,null,null,null,null,null,null,null,null,null,null,"2016-12-20"]
[null,null,null,null,null,null,null,null,null,null,null,null,null,null,null,null,"2016-12-21"]
[null,null,null,null,null,null,null,null,null,null,null,null,null,null,null,null,"2016-12-22"]
[null,null,null,null,null,null,null,null,null,null,null,null,null,null,null,null,"2016-12-23"]
[null,null,null,null,null,null,null,null,null,null,null,null,null,null,null,null,"2016-12-24"]
[null,null,null,null,null,null,null,null,null,null,null,null,null,null,null,null,"2016-12-25"]
[null,null,null,null,null,null,null,null,null,null,null,null,null,null,null,null,"2016-12-26"]
[null,null,null,null,null,null,null,null,null,null,null,null,null,null,null,null,"2016-12-27"]
[null,null,null,null,null,null,null,null,null,null,null,null,null,null,null,null,"2016-12-28"]
[null,null,null,null,null,null,null,null,null,null,null,null,null,null,null,null,"2016-12-29"]
[null,null,null,null,null,null,null,null,null,null,null,null,null,null,null,null,"2016-12-30"]
[null,null,null,null,null,null,null,null,null,null,null,null,null,null,null,null,"2016-12-31"]
[null,null,null,null,null,null,null,null,null,null,null,null,null,null,null,null,"2017-01-01"]
[null,null,null,null,null,null,null,null,null,null,null,null,null,null,null,null,"2017-01-02"]
[null,null,null,null,null,null,null,null,null,null,null,null,null,null,null,null,"2017-01-03"]
[null,null,null,null,null,null,null,null,null,null,null,null,null,null,null,null,"2017-01-04"]
[null,null,null,null,null,null,null,null,null,null,null,null,null,null,null,null,"2017-01-05"]
[null,null,null,null,null,null,null,null,null,null,null,null,null,null,null,null,"2017-01-06"]
[null,null,null,null,null,null,null,null,null,null,null,null,null,null,null,null,"2017-01-07"]
[null,null,null,null,null,null,null,null,null,null,null,null,null,null,null,null,"2017-01-08"]
[null,null,null,null,null,null,null,null,null,null,null,null,null,null,null,null,"2017-01-09"]
[null,null,null,null,null,null,null,null,null,null,null,null,null,null,null,null,"2017-01-10"]
[null,null,null,null,null,null,null,null,null,null,null,null,null,null,null,null,"2017-01-11"]
[null,null,null,null,null,null,null,null,null,null,null,null,null,null,null,null,"2017-01-12"]
[null,null,null,null,null,null,null,null,null,null,null,null,null,null,null,null,"2017-01-13"]
[null,null,null,null,null,null,null,null,null,null,null,null,null,null,null,null,"2017-01-14"]
[null,null,null,null,null,null,null,null,null,null,null,null,null,null,null,null,"2017-01-15"]
[null,null,null,null,null,null,null,null,null,null,null,null,null,null,null,null,"2017-01-16"]
[null,null,null,null,null,null,null,null,null,null,null,null,null,null,null,null,"2017-01-17"]
[null,null,null,null,null,null,null,null,null,null,null,null,null,null,null,null,"2017-01-18"]
[null,null,null,null,null,null,null,null,null,null,null,null,null,null,null,null,"2017-01-19"]
[null,null,null,null,null,null,null,null,null,null,null,null,null,null,null,null,"2017-01-20"]
[null,null,null,null,null,null,null,null,null,null,null,null,null,null,null,null,"2017-01-21"]
[null,null,null,null,null,null,null,null,null,null,null,null,null,null,null,null,"2017-01-22"]
[null,null,null,null,null,null,null,null,null,null,null,null,null,null,null,null,"2017-01-23"]
[null,null,null,null,null,null,null,null,null,null,null,null,null,null,null,null,"2017-01-24"]
[null,null,null,null,null,null,null,null,null,null,null,null,null,null,null,null,"2017-01-25"]
[null,null,null,null,null,null,null,null,null,null,null,null,null,null,null,null,"2017-01-26"]
[null,null,null,null,null,null,null,null,null,null,null,null,null,null,null,null,"2017-01-27"]
[null,null,null,null,null,null,null,null,null,null,null,null,null,null,null,null,"2017-01-28"]
[null,null,null,null,null,null,null,null,null,null,null,null,null,null,null,null,"2017-01-29"]
[null,null,null,null,null,null,null,null,null,null,null,null,null,null,null,null,"2017-01-30"]
[null,null,null,null,null,null,null,null,null,null,null,null,null,null,null,null,"2017-01-31"]
[null,null,null,null,null,null,null,null,null,null,null,null,null,null,null,null,"2017-02-01"]
[null,null,null,null,null,null,null,null,null,null,null,null,null,null,null,null,"2017-02-02"]
[null,null,null,null,null,null,null,null,null,null,null,null,null,null,null,null,"2017-02-03"]
[null,null,null,null,null,null,null,null,null,null,null,null,null,null,null,null,"2017-02-04"]
[null,null,null,null,null,null,null,null,null,null,null,null,null,null,null,null,"2017-02-05"]
[null,null,null,null,null,null,null,null,null,null,null,null,null,null,null,null,"2017-02-06"]
[null,null,null,null,null,null,null,null,null,null,null,null,null,null,null,null,"2017-02-07"]
[null,null,null,null,null,null,null,null,null,null,null,null,null,null,null,null,"2017-02-08"]
[null,null,null,null,null,null,null,null,null,null,null,null,null,null,null,null,"2017-02-09"]
[null,null,null,null,null,null,null,null,null,null,null,null,null,null,null,null,"2017-02-10"]
[null,null,null,null,null,null,null,null,null,null,null,null,null,null,null,null,"2017-02-11"]
[null,null,null,null,null,null,null,null,null,null,null,null,null,null,null,null,"2017-02-12"]
[null,null,null,null,null,null,null,null,null,null,null,null,null,null,null,null,"2017-02-13"]
[null,null,null,null,null,null,null,null,null,null,null,null,null,null,null,null,"2017-02-14"]
[null,null,null,null,null,null,null,null,null,null,null,null,null,null,null,null,"2017-02-15"]
[null,null,null,null,null,null,null,null,null,null,null,null,null,null,null,null,"2017-02-16"]
[null,null,null,null,null,null,null,null,null,null,null,null,null,null,null,null,"2017-02-17"]
[null,null,null,null,null,null,null,null,null,null,null,null,null,null,null,null,"2017-02-18"]
[null,null,null,null,null,null,null,null,null,null,null,null,null,null,null,null,"2017-02-19"]
[null,null,null,null,null,null,null,null,null,null,null,null,null,null,null,null,"2017-02-20"]
[null,null,null,null,null,null,null,null,null,null,null,null,null,null,null,null,"2017-02-21"]
[null,null,null,null,null,null,null,null,null,null,null,null,null,null,null,null,"2017-02-22"]
[null,null,null,null,null,null,null,null,null,null,null,null,null,null,null,null,"2017-02-23"]
[null,null,null,null,null,null,null,null,null,null,null,null,null,null,null,null,"2017-02-24"]
[null,null,null,null,null,null,null,null,null,null,null,null,null,null,null,null,"2017-02-25"]
[null,null,null,null,null,null,null,null,null,null,null,null,null,null,null,null,"2017-02-26"]
[null,null,null,null,null,null,null,null,null,null,null,null,null,null,null,null,"2017-02-27"]
[null,null,null,null,null,null,null,null,null,null,null,null,null,null,null,null,"2017-02-28"]
[null,null,null,null,null,null,null,null,null,null,null,null,null,null,null,null,"2017-03-01"]
[null,null,null,null,null,null,null,null,null,null,null,null,null,null,null,null,"2017-03-02"]
[null,null,null,null,null,null,null,null,null,null,null,null,null,null,null,null,"2017-03-03"]
[null,null,null,null,null,null,null,null,null,null,null,null,null,null,null,null,"2017-03-04"]
[null,null,null,null,null,null,null,null,null,null,null,null,null,null,null,null,"2017-03-05"]
[null,null,null,null,null,null,null,null,null,null,null,null,null,null,null,null,"2017-03-06"]
[null,null,null,null,null,null,null,null,null,null,null,null,null,null,null,null,"2017-03-07"]
[null,null,null,null,null,null,null,null,null,null,null,null,null,null,null,null,"2017-03-08"]
[null,null,null,null,null,null,null,null,null,null,null,null,null,null,null,null,"2017-03-09"]
[null,null,null,null,null,null,null,null,null,null,null,null,null,null,null,null,"2017-03-10"]
[null,null,null,null,null,null,null,null,null,null,null,null,null,null,null,null,"2017-03-11"]
[null,null,null,null,null,null,null,null,null,null,null,null,null,null,null,null,"2017-03-12"]
[null,null,null,null,null,null,null,null,null,null,null,null,null,null,null,null,"2017-03-13"]
[null,null,null,null,null,null,null,null,null,null,null,null,null,null,null,null,"2017-03-14"]
[null,null,null,null,null,null,null,null,null,null,null,null,null,null,null,null,"2017-03-15"]
[null,null,null,null,null,null,null,null,null,null,null,null,null,null,null,null,"2017-03-16"]
[null,null,null,null,null,null,null,null,null,null,null,null,null,null,null,null,"2017-03-17"]
[null,null,null,null,null,null,null,null,null,null,null,null,null,null,null,null,"2017-03-18"]
[null,null,null,null,null,null,null,null,null,null,null,null,null,null,null,null,"2017-03-19"]
[null,null,null,null,null,null,null,null,null,null,null,null,null,null,null,null,"2017-03-20"]
[null,null,null,null,null,null,null,null,null,null,null,null,null,null,null,null,"2017-03-21"]
[null,null,null,null,null,null,null,null,null,null,null,null,null,null,null,null,"2017-03-22"]
[null,null,null,null,null,null,null,null,null,null,null,null,null,null,null,null,"2017-03-23"]
[null,null,null,null,null,null,null,null,null,null,null,null,null,null,null,null,"2017-03-24"]
[null,null,null,null,null,null,null,null,null,null,null,null,null,null,null,null,"2017-03-25"]
[null,null,null,null,null,null,null,null,null,null,null,null,null,null,null,null,"2017-03-26"]
[null,null,null,null,null,null,null,null,null,null,null,null,null,null,null,null,"2017-03-27"]
[null,null,null,null,null,null,null,null,null,null,null,null,null,null,null,null,"2017-03-28"]
[null,null,null,null,null,null,null,null,null,null,null,null,null,null,null,null,"2017-03-29"]
[null,null,null,null,null,null,null,null,null,null,null,null,null,null,null,null,"2017-03-30"]
[null,null,null,null,null,null,null,null,null,null,null,null,null,null,null,null,"2017-03-31"]
[null,null,null,null,null,null,null,null,null,null,null,null,null,null,null,null,"2017-04-01"]
[null,null,null,null,null,null,null,null,null,null,null,null,null,null,null,null,"2017-04-02"]
[null,null,null,null,null,null,null,null,null,null,null,null,null,null,null,null,"2017-04-03"]
[null,null,null,null,null,null,null,null,null,null,null,null,null,null,null,null,"2017-04-04"]
[null,null,null,null,null,null,null,null,null,null,null,null,null,null,null,null,"2017-04-05"]
[null,null,null,null,null,null,null,null,null,null,null,null,null,null,null,null,"2017-04-06"]
[null,null,null,null,null,null,null,null,null,null,null,null,null,null,null,null,"2017-04-07"]
[null,null,null,null,null,null,null,null,null,null,null,null,null,null,null,null,"2017-04-08"]
[null,null,null,null,null,null,null,null,null,null,null,null,null,null,null,null,"2017-04-09"]
[null,null,null,null,null,null,null,null,null,null,null,null,null,null,null,null,"2017-04-10"]
[null,null,null,null,null,null,null,null,null,null,null,null,null,null,null,null,"2017-04-11"]
[null,null,null,null,null,null,null,null,null,null,null,null,null,null,null,null,"2017-04-12"]
[null,null,null,null,null,null,null,null,null,null,null,null,null,null,null,null,"2017-04-13"]
[null,null,null,null,null,null,null,null,null,null,null,null,null,null,null,null,"2017-04-14"]
[null,null,null,null,null,null,null,null,null,null,null,null,null,null,null,null,"2017-04-15"]
[null,null,null,null,null,null,null,null,null,null,null,null,null,null,null,null,"2017-04-16"]
[null,null,null,null,null,null,null,null,null,null,null,null,null,null,null,null,"2017-04-17"]
[null,null,null,null,null,null,null,null,null,null,null,null,null,null,null,null,"2017-04-18"]
[null,null,null,null,null,null,null,null,null,null,null,null,null,null,null,null,"2017-04-19"]
[null,null,null,null,null,null,null,null,null,null,null,null,null,null,null,null,"2017-04-20"]
[null,null,null,null,null,null,null,null,null,null,null,null,null,null,null,null,"2017-04-21"]
[null,null,null,null,null,null,null,null,null,null,null,null,null,null,null,null,"2017-04-22"]
[null,null,null,null,null,null,null,null,null,null,null,null,null,null,null,null,"2017-04-23"]
[null,null,null,null,null,null,null,null,null,null,null,null,null,null,null,null,"2017-04-24"]
[null,null,null,null,null,null,null,null,null,null,null,null,null,null,null,null,"2017-04-25"]
[null,null,null,null,null,null,null,null,null,null,null,null,null,null,null,null,"2017-04-26"]
[null,null,null,null,null,null,null,null,null,null,null,null,null,null,null,null,"2017-04-27"]
[null,null,null,null,null,null,null,null,null,null,null,null,null,null,null,null,"2017-04-28"]
[null,null,null,null,null,null,null,null,null,null,null,null,null,null,null,null,"2017-04-29"]
[null,null,null,null,null,null,null,null,null,null,null,null,null,null,null,null,"2017-04-30"]

{"sheet":"Segédadatok2","index":9,"n_rows":44,"n_cols":10,"rows_kept":44,"cut":false,"hidden":false,"merged":[]}
["Code","Description","Magyarul","Former ERASMUS Codes",null,"ERASMUS Code","Subject Area Description","Magyarul","EquivalentISCED97","ISCED"]
[0,"General Programmes","Általános program",null,null,"01.00","Agriculture","Mezőgazdaságtan, Mezőgazdasági tudományok","NO 001","6, 62, 620, 621, 622, 623, 624, 629, 64, 640"]
[1,"Basic/broad, general programmes","Alapozó, keretprogramok",null,null,"01.10","Anthropology","Antropológia","NO 002","31, 312"]
[10,"Basic/broad, general programmes","Alapozó, keretprogramok",null,null,"01.20","Archaeology","Régészet","NO 003",225]
[9,"Personal skills","Személyiségfejlesztés",null,null,"01.30","Architecture, design and applied arts","Építészet, dizájn és alkalmazott művészetek","NO 004","58, 581, 214, 215, 219"]
[90,"Personal skills","Személyiségfejlesztés",null,null,"01.40","Area studies","Regionális tanulmányok","NO 005","3, 310, 313, 319"]
[1,"Education","Oktatás",null,null,"01.50","Business","Üzleti tudományok","NO 006","34, 340, 341, 342, 343, 344, 345, 346, 347, 349"]
[14,"Teacher training and education science","Tanárképzés, oktatástudomány",null,null,"01.60","Chemistry","Kémia","NO 007","4, 442"]
[140,"Teacher training and education science (broad programmes)","Tanárképzés, oktatástudomány","05.0; 05.1",null,"01.70","Computer sciences","Informatika","NO 008","48, 481, 482, 489"]
[141,"Teaching and training","Tanárképzés",null,null,"01.80","Cultural studies and ethnic studies","Kulturális és etnikai tanulmányok","NO 009","3, 312"]
[142,"Education science","Oktatástudomány","05.7; 05.8",null,"01.90","Earth sciences","Földtudományok","NO 010","4, 443"]
[143,"Training for pre-school teachers","Óvodapedagógusok képzése",null,null,"02.00","Economics","Közgazdaságtan","NO 011","3, 314"]
[144,"Training for teachers at basic levels","Alapfokú oktatásban tanító pedagógusok képzése","05.2; 05.5; 05.6",null,"02.10","Education (including teacher training/education)","Oktatás (tanárképzés is)","NO 012","1, 14, 140,141, 142, 143, 144, 145, 146, 149"]
[145,"Training for teachers with subject specialisation","Szakosodott oktatók (szaktanárok) képzése","05.3",null,"02.20","Engineering","Mérnöktudományok","NO 013","5, 52, 520, 521, 522, 523, 524, 525, 529, 54, 540"]
[146,"Training for teachers of vocational subjects","Szakoktató képzés","05.4",null,"02.30","Environmental studies and Forestry","Környezetvédelem és erdészet","NO 014","422, 6, 62, 620, 623, 624, 629, 64, 640"]
[149,"Teacher training and education science (others)","Tanárképzés, oktatástudomány (egyéb)","05.9",null,"02.40","Family and consumer science","Család és háztartástan","NO 015","319, 729"]
[2,"Humanities and Arts","Humán tudományok és művészetek",null,null,"02.50","Gender and sexuality studies","Gender studies","NO 016",312]
[21,"Arts","Művészetek",null,null,"02.60","Geography","Földrajz, földtan","NO 017","4, 443"]
[210,"Arts (broad programmes)","Művészetek","03.0",null,"02.90","Health sciences (medicine, nursing, dentistry, etc.)","Egészségtudományok","NO 018","7, 72, 720, 721, 723, 724, 725, 726, 727, 729"]
[211,"Fine arts","Képzőművészet, szépművészet","03.1",null,"03.00","History","Történelem","NO 019","2, 225"]
[212,"Music and performing arts","Zene- és előadóművészetek","03.2; 03.3",null,"03.10","Journalism, media and communication","Média és kommunikáció","NO 020","32, 321, 322, 329"]
[213,"Audio-visual techniques and media production","Audiovizuális módszerek és szakismeretek, média","03.4",null,"03.20","Languages and linguistics","Nyelvek és nyelvészet","NO 021","22, 222, 223, 229"]
[214,"Design","Formatervezés","02.2; 03.5",null,"03.30","Law","Jog","NO 022","3, 38, 380"]
[215,"Craft skills","Kézművesség",null,null,"03.40","Library and museum studies","Könyvtári tudományok és muzeológia","NO 023","3, 322"]
[219,"Arts (others)","Művészetek (egyéb)","03.9",null,"03.50","Life science (including biology)","Természettudományok (biológia is)","NO 024","42, 421, 422, 429"]
[22,"Humanities","Humán tudományok",null,null,"03.60","Literature","Irodalom","NO 025","220, 222, 223, 229"]
[220,"Humanities (broad programmes)","Humán tudományok","08.0",null,"03.90","Mathematics","Matematika","NO 026","4, 46, 461, 462, 469"]
[221,"Religion","Vallási ismeretek","08.2",null,"04.00","Military sciences","Honvédelem","NO 027","86, 860, 861, 862, 863, 869"]
[222,"Foreign languages","Idegen nyelvek","09.0; 09.2; 09.5; 09.6; 09.9",null,"04.10","Performing arts","Előadóművészet","NO 028","2, 210, 212"]
[223,"Mother tongue","Anyanyelvi képzés","09.1; 09.3; 09.4; 09.7; 09.8",null,"04.20","Philosophy","Filozófia","NO 029","2, 226"]
[225,"History and archaeology","Történelem és régészet","03.6; 08.3; 08.4",null,"04.30","Physics","Fizika","NO 030","44, 440, 441, 449"]
[226,"Philosophy and ethics","Filozófia és etika","08.1",null,"04.40","Political science","Politikatudomány","NO 031",313]
[3,"Social sciences, Business and Law","Társadalomtudományok, gazdaság, jog",null,null,"04.50","Psychology","Pszichológia","NO 032","31, 311"]
[31,"Social and behavioural science","Társadalom- és viselkedéstudomány",null,null,"04.60","Public affairs","Közigazgatás","NO 033","38, 313"]
[310,"Social and behavioural science (broad programmes)","Társadalom- és viselkedéstudomány","14.0",null,"04.70","Religion","Vallás","NO 034",221]
[311,"Psychology","Pszichológia","14.4",null,"04.90","Social work","Szociális munka","NO 035","76, 761, 762, 769"]
[312,"Sociology and cultural studies","Szociológia és kulturális tanulmányok","14.2; 14.7; 14.8",null,"05.00","Sociology","Szociológia","NO 036",312]
[313,"Political science and civics","Politikai és civil társadalmi tanulmányok","14.1; 14.6",null,"05.10","Space sciences","Űrtudományok","NO 037",44]
[314,"Economics","Közgazdaságtan","14.3",null,"05.20","Systems science","Rendszertanulmányok","NO 038",481]
[319,"Social and behavioural science (others)",null,"14.9",null,"05.30","Theology","Teológia","NO 039",221]
[32,"Journalism and information","Újságírás és más információ szolgáltatás",null,null,"05.40","Transportation","Szállítás","NO 040","8, 84, 840"]
[321,"Journalism and reporting","Újságírás és riporter- képzés","15.0; 15.1; 15.2",null,"05.50","Visual arts","Képzőművészetek","NO 041","210, 211, 213, 214, 215"]
[869,"Security services (others)"]
[99,"Not known or unspecified",null,"16.0; 16.9"]

{"sheet":"ráták","index":10,"n_rows":47,"n_cols":50,"rows_kept":47,"cut":false,"hidden":false,"merged":[]}
["Személyzet"]
["Célország","Heti ráta",1,2,3,4,5,6,7,8,9,10,11,12,13,14,15,16,17,18,19,20,21,22,23,24,25,26,27,28,29,30,31,32,33,34,35,36,37,38,39,40,41,42]
["IS",800,614,729,843,957,1071,1186,1300,1414,1529,1642,1757,1871,1986,2100,2214,2329,2443,2557,2671,2786,2900,3014,3129,3243,3357,3471,3586,3700,3814,3929,4043,4157,4271,4386,4500,4614,4729,4843,4957,5071,5186,5200]
["LI",800,614,729,843,957,1071,1186,1300,1414,1529,1642,1757,1871,1986,2100,2214,2329,2443,2557,2671,2786,2900,3014,3129,3243,3357,3471,3586,3700,3814,3929,4043,4157,4271,4386,4500,4614,4729,4843,4957,5071,5186,5200]
["NO",800,614,729,843,957,1071,1186,1300,1414,1529,1642,1757,1871,1986,2100,2214,2329,2443,2557,2671,2786,2900,3014,3129,3243,3357,3471,3586,3700,3814,3929,4043,4157,4271,4386,4500,4614,4729,4843,4957,5071,5186,5200]
["HU",400,557,614,671,729,786,843,900,957,1014,1071,1129,1186,1243,1300,1357,1414,1471,1529,1586,1643,1700,1757,1814,1871,1929,1986,2043,2100,2157,2214,2271,2329,2386,2443,2500,2557,2614,2671,2729,2786,2843,2900]
[]
["Hallgatók"]
["Célország","Havi ráta",0.25,0.5,0.75,1,1.25,1.5,1.75,2,2.25,2.5,2.75,3,3.25,3.5,3.75,4,4.25,4.5,4.75,5,5.25,5.5,5.75,6,6.25,6.5,6.75,7,7.25,7.5,7.75,8,8.25,8.5,8.75,9,9.25,9.5,9.75,10,10.25,10.5,10.75,11,11.25,11.5,11.75,12]
["IS",900,725,950,1175,1400,{"$f":"F10+C10-500","v":1625},{"$f":" F10+D10-500","v":1850},{"$f":"F10+E10-500","v":2075},2300,{"$f":"J10+C10-500","v":2525},{"$f":"J10+D10-500","v":2750},{"$f":"J10+E10-500","v":2975},3200,{"$f":"N10+C10-500","v":3425},{"$f":"N10+D10-500","v":3650},{"$f":"N10+E10-500","v":3875},4100,{"$f":"R10+C10-500","v":4325},{"$f":"R10+D10-500","v":4550},{"$f":"R10+E10-500","v":4775},5000,{"$f":"V10+C10-500","v":5225},{"$f":"V10+D10-500","v":5450},{"$f":"V10+E10-500","v":5675},5900,{"$f":"Z10+C10-500","v":6125},{"$f":"Z10+D10-500","v":6350},{"$f":"Z10+E10-500","v":6575},6800,{"$f":"AD10+C10-500","v":7025},{"$f":"AD10+D10-500","v":7250},{"$f":"AD10+E10-500","v":7475},7700,{"$f":"AH10+C10-500","v":7925},{"$f":"AH10+D10-500","v":8150},{"$f":"AH10+E10-500","v":8375},8600,{"$f":"AL10+C10-500","v":8825},{"$f":"AL10+D10-500","v":9050},{"$f":"AL10+E10-500","v":9275},9500,{"$f":"AP10+C10-500","v":9725},{"$f":"AP10+D10-500","v":9950},{"$f":"AP10+E10-500","v":10175},10400,{"$f":"AT10+C10-500","v":10625},{"$f":"AT10+D10-500","v":10850},{"$f":"AT10+E10-500","v":11075},11300]
["LI",900,725,950,1175,1400,{"$f":"F11+C11-500","v":1625},{"$f":" F11+D11-500","v":1850},{"$f":"F11+E11-500","v":2075},2300,{"$f":"J11+C11-500","v":2525},{"$f":"J11+D11-500","v":2750},{"$f":"J11+E11-500","v":2975},3200,{"$f":"N11+C11-500","v":3425},{"$f":"N11+D11-500","v":3650},{"$f":"N11+E11-500","v":3875},4100,{"$f":"R11+C11-500","v":4325},{"$f":"R11+D11-500","v":4550},{"$f":"R11+E11-500","v":4775},5000,{"$f":"V11+C11-500","v":5225},{"$f":"V11+D11-500","v":5450},{"$f":"V11+E11-500","v":5675},5900,{"$f":"Z11+C11-500","v":6125},{"$f":"Z11+D11-500","v":6350},{"$f":"Z11+E11-500","v":6575},6800,{"$f":"AD11+C11-500","v":7025},{"$f":"AD11+D11-500","v":7250},{"$f":"AD11+E11-500","v":7475},7700,{"$f":"AH11+C11-500","v":7925},{"$f":"AH11+D11-500","v":8150},{"$f":"AH11+E11-500","v":8375},8600,{"$f":"AL11+C11-500","v":8825},{"$f":"AL11+D11-500","v":9050},{"$f":"AL11+E11-500","v":9275},9500,{"$f":"AP11+C11-500","v":9725},{"$f":"AP11+D11-500","v":9950},{"$f":"AP11+E11-500","v":10175},10400,{"$f":"AT11+C11-500","v":10625},{"$f":"AT11+D11-500","v":10850},{"$f":"AT11+E11-500","v":11075},11300]
["NO",900,725,950,1175,1400,1625,1850,2075,2300,2525,2750,2975,3200,3425,3650,3875,4100,4325,4550,4775,5000,5225,5450,5675,5900,6125,6350,6575,6800,7025,7250,7475,7700,7925,8150,8375,8600,8825,9050,9275,9500,9725,9950,10175,10400,10625,10850,11075,11300]
["HU",400,600,700,800,900,1000,1100,1200,1300,1400,1500,1600,1700,1800,1900,2000,2100,2200,2300,2400,2500,2600,2700,2800,2900,3000,3100,3200,3300,3400,3500,3600,3700,3800,3900,4000,4100,4200,4300,4400,4500,4600,4700,4800,4900,5000,5100,5200,5300]
[]
[]
[]
[]
[]
[]
[]
[]
[]
[]
[]
[]
[]
[]
[]
[]
[]
[]
[]
[]
[]
[]
[]
[]
[]
[]
[]
[]
[]
[]
[]
[]
[]
["HU"]

{"sheet":"Erasmus_kodok","index":11,"n_rows":64,"n_cols":7,"rows_kept":64,"cut":false,"hidden":true,"merged":[]}
["EUC Reference","Organisation","ID  CODE","PIC","Country","CITY CON","ID CODE-orig"]
["29904-EPP-1-2014-1-IS-EPPKA3-ECHE","HASKOLINN A AKUREYRI","IS AKUREYR01","998776409","IS","AKUREYRI","IS AKUREYR01"]
["28340-EPP-1-2014-1-IS-EPPKA3-ECHE","HASKOLINN A BIFROST","IS BORGARN01","949615451","IS","BORGARNES","IS BORGARN01"]
["219520-EPP-1-2014-1-IS-EPPKA3-ECHE","LANDBUNADARHASKOLI ISLANDS","IS BORGARN02","988542036","IS","BORGARNES","IS BORGARN02"]
["28332-EPP-1-2014-1-IS-EPPKA3-ECHE","HASKOLI ISLANDS","IS REYKJAV01","999884246","IS","REYKJAVIK","IS REYKJAV01"]
["210431-EPP-1-2014-1-IS-EPPKA3-ECHE","HASKOLINN I REYKJAVIK EHF","IS REYKJAV05","966834406","IS","REYKJAVIK","IS REYKJAV05"]
["28354-EPP-1-2014-1-IS-EPPKA3-ECHE","ICELAND ACADEMY OF THE ARTS","IS REYKJAV06","950429378","IS","REYKJAVIK","IS REYKJAV06"]
["239835-EPP-1-2014-1-IS-EPPKA3-ECHE","HOLAR UNIVERSITY COLLEGE","IS SAUDARK01","969226426","IS","SAUDARKORKUR","IS SAUDARK01"]
["28700-EPP-1-2014-1-LI-EPPKA3-ECHE","UNIVERSITAT LIECHTENSTEIN","LI VADUZ01","974688496","LI","Liechtenstein","LI VADUZ01"]
["218548-EPP-1-2014-1-NO-EPPKA3-ECHE","HØGSKOLEN I ÅLESUND","N  ALESUND01","949513310","NO","AALESUND","N  ALESUND01"]
["231111-EPP-1-2014-1-NO-EPPKA3-ECHE","NORGES MILJO-OG BIOVITENSKAPLIGE UNIVERSITET","N  AS02","999902967","NO","AS","N  AS02"]
["269986-EPP-1-2015-1-NO-EPPKA3-ECHE","Norwegian University of Life sciences","N  AS03","944678345","NO","Aas","N  AS03"]
["29643-EPP-1-2014-1-NO-EPPKA3-ECHE","UNIVERSITETET I BERGEN","N  BERGEN01","999974456","NO","BERGEN","N  BERGEN01"]
["29636-EPP-1-2014-1-NO-EPPKA3-ECHE","NORGES HANDELSHØYSKOLE","N  BERGEN02","949667443","NO","BERGEN","N  BERGEN02"]
["29669-EPP-1-2014-1-NO-EPPKA3-ECHE","KUNST- OG DESIGNHOEGSKOLEN I BERGEN","N  BERGEN04","949639216","NO","BERGEN","N  BERGEN04"]
["29630-EPP-1-2014-1-NO-EPPKA3-ECHE","HOGSKOLEN I BERGEN","N  BERGEN05","996081555","NO","BERGEN","N  BERGEN05"]
["239773-EPP-1-2014-1-NO-EPPKA3-ECHE","HARALDSPLASS DEACONESS UNIVERSITY COLLEGE","N  BERGEN11","949160909","NO","BERGEN","N  BERGEN11"]
["46918-EPP-1-2014-1-NO-EPPKA3-ECHE","NLA HØGSKOLEN","N  BERGEN12","949671614","NO","BERGEN","N  BERGEN12"]
["210351-EPP-1-2014-1-NO-EPPKA3-ECHE","BERGEN ARKITEKTHØGSKOLE","N  BERGEN13","949634075","NO","BERGEN","N  BERGEN13"]
["29625-EPP-1-2014-1-NO-EPPKA3-ECHE","UNIVERSITETET I NORDLAND","N  BODO04","998222927","NO","BODO","N  BODO04"]
["29682-EPP-1-2014-1-NO-EPPKA3-ECHE","HOGSKOLEN I HEDMARK","N  ELVERUM01","998027860","NO","ELVERUM","N  ELVERUM01"]
["219226-EPP-1-2014-1-NO-EPPKA3-ECHE","HØGSKOLEN BETANIEN AS","N  FYLLING01","949350447","NO","FYLLINGSDALEN","N  FYLLING01"]
["100293-EPP-1-2014-1-NO-EPPKA3-ECHE","HOGSKOLEN I GJOVIK","N  GJOVIK01","999639418","NO","GJOVIK","N  GJOVIK01"]
["29655-EPP-1-2014-1-NO-EPPKA3-ECHE","HOGSKOLEN I OSTFOLD","N  HALDEN02","975398439","NO","HALDEN","N  HALDEN02"]
["29664-EPP-1-2014-1-NO-EPPKA3-ECHE","HOGSKOLEN I HARSTAD","N  HARSTAD01","956344244","NO","HARSTAD","N  HARSTAD01"]
["269728-EPP-1-2015-1-NO-EPPKA3-ECHE","HOGSKOLEN I BUSKERUD OG VESTFOLD","N  KONGSBE02","948463091","NO","DRAMMEN","N  KONGSBE02"]
["29646-EPP-1-2014-1-NO-EPPKA3-ECHE","UNIVERSITETET I AGDER","N  KRISTIA01","949671711","NO","KRISTIANSAND","N  KRISTIA01"]
["228041-EPP-1-2014-1-NO-EPPKA3-ECHE","ANSGAR TEOLOGISKE HØGSKOLE","N  KRISTIA04","944123505","NO","KRISTIANSAND","N  KRISTIA04"]
["29627-EPP-1-2014-1-NO-EPPKA3-ECHE","HOGSKOLEN I LILLEHAMMER","N  LILLEHA01","997519386","NO","LILLEHAMMER","N  LILLEHA01"]
["29726-EPP-1-2014-1-NO-EPPKA3-ECHE","HØGSKOLEN I MOLDE - VITENSKAPELIG HØGSKOLE I LOGISTIKK","N  MOLDE01","949671420","NO","MOLDE","N  MOLDE01"]
["29642-EPP-1-2014-1-NO-EPPKA3-ECHE","HØGSKOLEN I NARVIK","N  NARVIK01","949613317","NO","NARVIK","N  NARVIK01"]
["269836-EPP-1-2015-1-NO-EPPKA3-ECHE","HOGSKOLEN I NESNA","N  NESNA01","953330745","NO","NESNA","N  NESNA01"]
["29714-EPP-1-2014-1-NO-EPPKA3-ECHE","UNIVERSITETET I OSLO","N  OSLO01","999975814","NO","OSLO","N  OSLO01"]
["29708-EPP-1-2014-1-NO-EPPKA3-ECHE","ARKITEKTUR- OG DESIGNHØGSKOLEN I OSLO","N  OSLO02","968780226","NO","OSLO","N  OSLO02"]
["29670-EPP-1-2014-1-NO-EPPKA3-ECHE","NORGES MUSIKKHØGSKOLE","N  OSLO03","949344336","NO","OSLO","N  OSLO03"]
["29663-EPP-1-2014-1-NO-EPPKA3-ECHE","NORGES IDRETTSHOGSKOLE","N  OSLO04","998301303","NO","OSLO","N  OSLO04"]
["29659-EPP-1-2014-1-NO-EPPKA3-ECHE","KUNSTHØGSKOLEN I OSLO","N  OSLO07","949598961","NO","OSLO","N  OSLO07"]
["29629-EPP-1-2014-1-NO-EPPKA3-ECHE","DIAKONHJEMMETS HOGSKOLE","N  OSLO32","998369494","NO","OSLO","N  OSLO32"]
["29650-EPP-1-2014-1-NO-EPPKA3-ECHE","NORGES VETERINAERHOGSKOLE","N  OSLO39","999879493","NO","OSLO","N  OSLO39"]
["29689-EPP-1-2014-1-NO-EPPKA3-ECHE","MF NORWEGIAN SCHOOL OF THEOLOGY","N  OSLO40","949670547","NO","OSLO","N  OSLO40"]
["252954-EPP-1-2014-1-NO-EPPKA3-ECHE","NORGES DANSEHØYSKOLE","N  OSLO42","949089808","NO","OSLO","N  OSLO42"]
["252079-EPP-1-2014-1-NO-EPPKA3-ECHE","LOVISENBERG DEACONAL UNIVERSITY COLLEGE","N  OSLO53","949293314","NO","OSLO","N  OSLO53"]
["222731-EPP-1-2014-1-NO-EPPKA3-ECHE","WESTERDALS HØYSKOLE - OSLO SCHOOL OF ARTS, COMMUNICATION AND TECHNOLOGY AS","N  OSLO56","949450163","NO","OSLO","N  OSLO56"]
["253194-EPP-1-2014-1-NO-EPPKA3-ECHE","DIAKONOVA UNIVERSITY COLLEGE","N  OSLO57","946106767","NO","OSLO","N  OSLO57"]
["257489-EPP-1-2014-1-NO-EPPKA3-ECHE","HØYSKOLEN CAMPUS KRISTIANIA","N  OSLO58","949422324","NO","OSLO","N  OSLO58"]
["259588-EPP-1-2014-1-NO-EPPKA3-ECHE","WESTERDALS HØYSKOLE AS","N  OSLO59 ","948278112","NO","OSLO","N  OSLO59 "]
["262768-EPP-1-2014-1-NO-EPPKA3-ECHE","HOGSKOLEN I OSLO OG AKERSHUS","N  OSLO60","954982461","NO","OSLO","N  OSLO60"]
["267345-EPP-1-2014-1-NO-EPPKA3-ECHE","HOYSKOLEN FOR LEDELSE OG TEOLOGI","N  OSLO61","949546775","NO","STABEKK","N  OSLO61"]
["268677-EPP-1-2014-1-NO-EPPKA3-ECHE","NISS HØYSKOLE AS","N  OSLO62","949483822","NO","OSLO","N  OSLO62"]
["269997-EPP-1-2015-1-NO-EPPKA3-ECHE","MUSIKKTEATERHØYSKOLEN","N  OSLO63","938958643","NO","Oslo","N  OSLO63"]
["270282-EPP-1-2015-1-NO-EPPKA3-ECHE","POLITIHØGSKOLEN (NORWEGIAN POLICE UNIVERSITY COLLEGE)","N  OSLO64","940703673","NO","OSLO ","N  OSLO64"]
["29702-EPP-1-2014-1-NO-EPPKA3-ECHE","HOGSKOLEN I TELEMARK","N  PORSGRU01","951413540","NO","PORSGRUNN","N  PORSGRU01"]
["29667-EPP-1-2014-1-NO-EPPKA3-ECHE","HØGSKOLEN STORD/HAUGESUND","N  ROMMETV01","949646006","NO","STORD","N  ROMMETV01"]
["29717-EPP-1-2014-1-NO-EPPKA3-ECHE","STIFTELSEN HANDELSHOYSKOLEN BI","N  SANDVIK02","986269617","NO","OSLO","N  SANDVIK02"]
["29626-EPP-1-2014-1-NO-EPPKA3-ECHE","HOGSKULEN I SOGN OG FJORDANE","N  SOGNDAL01","950046325","NO","SOGNDAL","N  SOGNDAL01"]
["29666-EPP-1-2014-1-NO-EPPKA3-ECHE","UNIVERSITETET I STAVANGER","N  STAVANG01","998023689","NO","STAVANGER","N  STAVANG01"]
["224072-EPP-1-2014-1-NO-EPPKA3-ECHE","MISJONSHØGSKOLEN","N  STAVANG07","949662787","NO","STAVANGER","N  STAVANG07"]
["270165-EPP-1-2015-1-NO-EPPKA3-ECHE","Høgskulen for landbruk og bygdeutvikling","N  STAVANG09","947349628","NO","Klepp Stasjon","N  STAVANG09"]
["29652-EPP-1-2014-1-NO-EPPKA3-ECHE","HOGSKOLEN I NORD TRONDELAG","N  STEINKJ01","997461283","NO","STEINKJER","N  STEINKJ01"]
["29724-EPP-1-2014-1-NO-EPPKA3-ECHE","UNIVERSITETET I TROMSOE","N  TROMSO01","999874643","NO","TROMSO","N  TROMSO01"]
["29704-EPP-1-2014-1-NO-EPPKA3-ECHE","NORGES TEKNISK-NATURVITENSKAPELIGE UNIVERSITET NTNU","N  TRONDHE01","999977851","NO","TRONDHEIM","N  TRONDHE01"]
["29684-EPP-1-2014-1-NO-EPPKA3-ECHE","HOGSKOLEN I SOR-TRONDELAG","N  TRONDHE03","997606104","NO","TRONDHEIM","N  TRONDHE03"]
["29676-EPP-1-2014-1-NO-EPPKA3-ECHE","DRONNING MAUDS MINNE HØGSKOLE FOR BARNEHAGELÆRERUTDANNING","N  TRONDHE06","952744380","NO","TRONDHEIM","N  TRONDHE06"]
["66311-EPP-1-2014-1-NO-EPPKA3-ECHE","HØGSKULEN I VOLDA","N  VOLDA01","949661235","NO","VOLDA","N  VOLDA01"]

{"sheet":"Munka1","index":12,"n_rows":0,"n_cols":0,"rows_kept":0,"cut":false,"hidden":false,"merged":[]}